Workbook

Sheet Base
A1: =C2/10-10 -> 0 | B1: a, sub factor | G1: =I2/100 -> 0.5 | H1: r, %I devoted to x if Px = Py | N1: Show graphics | W1: Examining Substitution and Income Effects | AC1: 7 Versions: 2-7 based on Inc = $20 (click last row number to jump to table) | AT1: Create your own scenario. | BA1: MU Check | CB1: rounded
A2: Sub | C2: 100 | D2: slider | F2: Comp | I2: 50 | J2: r slider | N2: 1 | O2: 2 | P2: Price of x | R2: 12 | S2: Income | U2: $L to $H | W2: $H to $L | Y2: Change these cells | AF2: Px=$1 | AG2: Px=$2 | AI2: 1. Table without highlighting (rows 9 to 33) | AT2: 7. General Table with Both | BA2: x | BB2: y | BD2: y | BE2: U(x,y) | BG2: =CB2-CB3 -> 12 | BH2: =CONCATENATE("= MUy(",BE5,", ",BD4,")") -> = MUy(12, 6) | CB2: =ROUND(BE3,0) -> 84
A3: Use sliders to change a, r, C & f | I3: Min r, 35% | L3: Max r, 75% | P3: Budget Constraint | X3: Substitution BC | AE3: Ends in row: | AF3: 63 | AG3: 123 | AI3: 2 & 4. Table with affordable bundles highlighted | AT3: Optimal Bundles Highlighted | BA3: 12 | BB3: 6 | BD3: =BD4+1 -> 7 | BE3: =VLOOKUP(BE$5,$CA$8:$CV$28,$BD3+2) -> 84 | BG3: =CC3-CB3 -> 6 | BH3: =CONCATENATE("= MUx(",BE5,", ",BD4,")") -> = MUx(12, 6) | CB3: =ROUND(BE4,0) -> 72 | CC3: =ROUND(BF4,0) -> 78
C4: 100 | I4: 100 | P4: Indifference Curve | X4: Substitution effect | AE4: Ends in row: | AF4: 93 | AG4: 153 | AI4: 3 & 5. Table with Optimal bundle highlighted | AT4: Highlighted General Table | BD4: =BB3 -> 6 | BE4: =VLOOKUP(BE$5,$CA$8:$CV$28,$BD4+2) -> 72 | BF4: =VLOOKUP(BD4,$CA$8:$CV$28,BF5+2) -> 78
A5: =C4 -> 100 | B5: C, Umaximum if Px=Py=$1, Inc.=$20. | I5: =I4/100 -> 1 | J5: f, flattening factor | N5: L | O5: H | P5: Price of x. | S5: Py=$1 | X5: Income effect | AG5: Px increase: a.Sub. | AH5: 183 | AJ5: b.Indep. | AK5: 213 | AM5: c.Comp. | AN5: 243 | AO5: 6. Substitution bundle highlighted for six Set Scenarios | BD5: y/x | BE5: =BA3 -> 12 | BF5: =BE5+1 -> 13 | BG5: x
A6: Note: Sub bundle cells are only highlighted for Set Scenarios. To get a Set Scenarios, click Data, What-If-Analysis, Scenario Manager | AG6: Px decrease: d.Sub. | AH6: 273 | AJ6: e.Indep. | AK6: 303 | AM6: f.Comp. | AN6: 333
AC7: NOTE: Tables 2-7 are based on analyzing the move between a price of x of $1 and $2 for x with Income = $20 and price of y = $1.
AD8: The highlighted cells in Tables 2-7 are static and will not work for other values for price of x and income. | CA8: 0 | CB8: =IF((CB$29-$A$1)<=0,"",IF(($CA8-$A$1*(1-$G$1)/$G$1)<=0,"",$A$5*((CB$29-$A$1)^$G$1*($CA8-$A$1*(1-$G$1)/$G$1)^(1-$G$1)/((20*$G$1-$A$1)^$G$1*(20*(1-$G$1)-$A$1*(1-$G$1)/$G$1)^(1-$G$1)))^(2*$I$5))) ->  | CL8: =IF((CL$29-$A$1)<=0,"",IF(($CA8-$A$1*(1-$G$1)/$G$1)<=0,"",$A$5*((CL$29-$A$1)^$G$1*($CA8-$A$1*(1-$G$1)/$G$1)^(1-$G$1)/((20*$G$1-$A$1)^$G$1*(20*(1-$G$1)-$A$1*(1-$G$1)/$G$1)^(1-$G$1)))^(2*$I$5))) -> 
A9: A Discrete Choice Utility Map | AD9: The general map to the left (in rows 9-33) will work for other values for price of x and income. | CA9: 1 | CC9: 1 | CD9: 2 | CE9: 3 | CF9: 4 | CG9: 5 | CH9: 6 | CI9: 7 | CJ9: 8 | CK9: 9 | CL9: 10 | CM9: 11 | CN9: 12 | CO9: 13 | CP9: 14 | CQ9: 15 | CR9: 16 | CS9: 17 | CT9: 18 | CU9: 19 | CV9: 20
B10: =IF(A1<=0,$A$5*((-$A$1)^$G$1*(-$A$1*(1-$G$1)/$G$1)^(1-$G$1)/((20*$G$1-$A$1)^$G$1*(20*(1-$G$1)-$A$1*(1-$G$1)/$G$1)^(1-$G$1)))^(2*$I$5),0) -> 0 | AE10: Enter the low price of x in N2, the high price of x in O2, and income in R2. | CA10: 2 | CC10: 2 | CD10: 4 | CE10: 6 | CF10: 8 | CG10: 10 | CH10: 12 | CI10: 14 | CJ10: 16 | CK10: 18 | CL10: 20 | CM10: 22 | CN10: 24 | CO10: 26 | CP10: 28 | CQ10: 30 | CR10: 32 | CS10: 34 | CT10: 36 | CU10: 38 | CV10: 40
B11: 20 | C11: =IF((C$32-$A$1)<=0,"",IF(($B11-$A$1*(1-$G$1)/$G$1)<=0,"",$A$5/($A$5-$B$10)*(($A$5*((C$32-$A$1)^$G$1*($B11-$A$1*(1-$G$1)/$G$1)^(1-$G$1)/((20*$G$1-$A$1)^$G$1*(20*(1-$G$1)-$A$1*(1-$G$1)/$G$1)^(1-$G$1)))^(2*$I$5))-$B$10))) ->  | D11: 20 | E11: 40 | F11: 60 | G11: 80 | H11: 100 | I11: 120 | J11: 140 | K11: 160 | L11: 180 | M11: 200 | N11: 220 | O11: 240 | P11: 260 | Q11: 280 | R11: 300 | S11: =IF((S$32-$A$1)<=0,"",IF(($B11-$A$1*(1-$G$1)/$G$1)<=0,"",$A$5/($A$5-$B$10)*(($A$5*((S$32-$A$1)^$G$1*($B11-$A$1*(1-$G$1)/$G$1)^(1-$G$1)/((20*$G$1-$A$1)^$G$1*(20*(1-$G$1)-$A$1*(1-$G$1)/$G$1)^(1-$G$1)))^(2*$I$5))-$B$10))) -> 320 | T11: 340 | U11: 360 | V11: 380 | W11: 400 | AC11: The equations producing the tables are protected but you are able to individually format cells if you wish to create highlighted versions of your own scenario. | CA11: 3 | CC11: 3 | CD11: 6 | CE11: 9 | CF11: 12 | CG11: 15 | CH11: 18 | CI11: 21 | CJ11: 24 | CK11: 27 | CL11: 30 | CM11: 33 | CN11: 36 | CO11: 39 | CP11: 42 | CQ11: 45 | CR11: 48 | CS11: 51 | CT11: 54 | CU11: 57 | CV11: 60
B12: 19 | C12: =IF((C$32-$A$1)<=0,"",IF(($B12-$A$1*(1-$G$1)/$G$1)<=0,"",$A$5/($A$5-$B$10)*(($A$5*((C$32-$A$1)^$G$1*($B12-$A$1*(1-$G$1)/$G$1)^(1-$G$1)/((20*$G$1-$A$1)^$G$1*(20*(1-$G$1)-$A$1*(1-$G$1)/$G$1)^(1-$G$1)))^(2*$I$5))-$B$10))) ->  | D12: 19 | E12: 38 | F12: 57 | G12: 76 | H12: 95 | I12: 114 | J12: 133 | K12: 152 | L12: 171 | M12: 190 | N12: 209 | O12: 228 | P12: 247 | Q12: 266 | R12: 285 | S12: 304 | T12: 323 | U12: 342 | V12: 361 | W12: 380 | CA12: 4 | CC12: 4 | CD12: 8 | CE12: 12 | CF12: 16 | CG12: 20 | CH12: 24 | CI12: 28 | CJ12: 32 | CK12: 36 | CL12: 40 | CM12: 44 | CN12: 48 | CO12: 52 | CP12: 56 | CQ12: 60 | CR12: 64 | CS12: 68 | CT12: 72 | CU12: 76 | CV12: 80
B13: 18 | D13: 18 | E13: 36 | F13: 54 | G13: 72 | H13: 90 | I13: 108 | J13: 126 | K13: 144 | L13: 162 | M13: 180 | N13: 198 | O13: 216 | P13: 234 | Q13: 252 | R13: 270 | S13: 288 | T13: 306 | U13: 324 | V13: 342 | W13: 360 | CA13: 5 | CC13: 5 | CD13: 10 | CE13: 15 | CF13: 20 | CG13: 25 | CH13: 30 | CI13: 35 | CJ13: 40 | CK13: 45 | CL13: 50 | CM13: 55 | CN13: 60 | CO13: 65 | CP13: 70 | CQ13: 75 | CR13: 80 | CS13: 85 | CT13: 90 | CU13: 95 | CV13: 100
B14: 17 | D14: 17 | E14: 34 | F14: 51 | G14: 68 | H14: 85 | I14: 102 | J14: 119 | K14: 136 | L14: 153 | M14: 170 | N14: 187 | O14: 204 | P14: 221 | Q14: 238 | R14: 255 | S14: 272 | T14: 289 | U14: 306 | V14: 323 | W14: 340 | CA14: 6 | CC14: 6 | CD14: 12 | CE14: 18 | CF14: 24 | CG14: 30 | CH14: 36 | CI14: 42 | CJ14: 48 | CK14: 54 | CL14: 60 | CM14: 66 | CN14: 72 | CO14: 78 | CP14: 84 | CQ14: 90 | CR14: 96 | CS14: 102 | CT14: 108 | CU14: 114 | CV14: 120
B15: 16 | D15: 16 | E15: 32 | F15: 48 | G15: 64 | H15: 80 | I15: 96 | J15: 112 | K15: 128 | L15: 144 | M15: 160 | N15: 176 | O15: 192 | P15: 208 | Q15: 224 | R15: 240 | S15: 256 | T15: 272 | U15: 288 | V15: 304 | W15: 320 | CA15: 7 | CC15: 7 | CD15: 14 | CE15: 21 | CF15: 28 | CG15: 35 | CH15: 42 | CI15: 49 | CJ15: 56 | CK15: 63 | CL15: 70 | CM15: 77 | CN15: 84 | CO15: 91 | CP15: 98 | CQ15: 105 | CR15: 112 | CS15: 119 | CT15: 126 | CU15: 133 | CV15: 140
B16: 15 | D16: 15 | E16: 30 | F16: 45 | G16: 60 | H16: 75 | I16: 90 | J16: 105 | K16: 120 | L16: 135 | M16: 150 | N16: 165 | O16: 180 | P16: 195 | Q16: 210 | R16: 225 | S16: 240 | T16: 255 | U16: 270 | V16: 285 | W16: 300 | CA16: 8 | CC16: 8 | CD16: 16 | CE16: 24 | CF16: 32 | CG16: 40 | CH16: 48 | CI16: 56 | CJ16: 64 | CK16: 72 | CL16: 80 | CM16: 88 | CN16: 96 | CO16: 104 | CP16: 112 | CQ16: 120 | CR16: 128 | CS16: 136 | CT16: 144 | CU16: 152 | CV16: 160
A17: Consumption of Good y | B17: 14 | D17: 14 | E17: 28 | F17: 42 | G17: 56 | H17: 70 | I17: 84 | J17: 98 | K17: 112 | L17: 126 | M17: 140 | N17: 154 | O17: 168 | P17: 182 | Q17: 196 | R17: 210 | S17: 224 | T17: 238 | U17: 252 | V17: 266 | W17: 280 | CA17: 9 | CC17: 9 | CD17: 18 | CE17: 27 | CF17: 36 | CG17: 45 | CH17: 54 | CI17: 63 | CJ17: 72 | CK17: 81 | CL17: 90 | CM17: 99 | CN17: 108 | CO17: 117 | CP17: 126 | CQ17: 135 | CR17: 144 | CS17: 153 | CT17: 162 | CU17: 171 | CV17: 180
B18: 13 | D18: 13 | E18: 26 | F18: 39 | G18: 52 | H18: 65 | I18: 78 | J18: 91 | K18: 104 | L18: 117 | M18: 130 | N18: 143 | O18: 156 | P18: 169 | Q18: 182 | R18: 195 | S18: 208 | T18: 221 | U18: 234 | V18: 247 | W18: 260 | CA18: 10 | CB18: =IF((CB$29-$A$1)<=0,"",IF(($CA18-$A$1*(1-$G$1)/$G$1)<=0,"",$A$5*((CB$29-$A$1)^$G$1*($CA18-$A$1*(1-$G$1)/$G$1)^(1-$G$1)/((20*$G$1-$A$1)^$G$1*(20*(1-$G$1)-$A$1*(1-$G$1)/$G$1)^(1-$G$1)))^(2*$I$5))) ->  | CC18: 10 | CD18: 20 | CE18: 30 | CF18: 40 | CG18: 50 | CH18: 60 | CI18: 70 | CJ18: 80 | CK18: 90 | CL18: =IF((CL$29-$A$1)<=0,"",IF(($CA18-$A$1*(1-$G$1)/$G$1)<=0,"",$A$5*((CL$29-$A$1)^$G$1*($CA18-$A$1*(1-$G$1)/$G$1)^(1-$G$1)/((20*$G$1-$A$1)^$G$1*(20*(1-$G$1)-$A$1*(1-$G$1)/$G$1)^(1-$G$1)))^(2*$I$5))) -> 100 | CM18: 110 | CN18: 120 | CO18: 130 | CP18: 140 | CQ18: 150 | CR18: 160 | CS18: 170 | CT18: 180 | CU18: 190 | CV18: 200
B19: 12 | D19: 12 | E19: 24 | F19: 36 | G19: 48 | H19: 60 | I19: 72 | J19: 84 | K19: 96 | L19: 108 | M19: 120 | N19: 132 | O19: 144 | P19: 156 | Q19: 168 | R19: 180 | S19: 192 | T19: 204 | U19: 216 | V19: 228 | W19: 240 | CA19: 11 | CC19: 11 | CD19: 22 | CE19: 33 | CF19: 44 | CG19: 55 | CH19: 66 | CI19: 77 | CJ19: 88 | CK19: 99 | CL19: 110 | CM19: 121 | CN19: 132 | CO19: 143 | CP19: 154 | CQ19: 165 | CR19: 176 | CS19: 187 | CT19: 198 | CU19: 209 | CV19: 220
B20: 11 | D20: 11 | E20: 22 | F20: 33 | G20: 44 | H20: 55 | I20: 66 | J20: 77 | K20: 88 | L20: 99 | M20: 110 | N20: 121 | O20: 132 | P20: 143 | Q20: 154 | R20: 165 | S20: 176 | T20: 187 | U20: 198 | V20: 209 | W20: 220 | CA20: 12 | CC20: 12 | CD20: 24 | CE20: 36 | CF20: 48 | CG20: 60 | CH20: 72 | CI20: 84 | CJ20: 96 | CK20: 108 | CL20: 120 | CM20: 132 | CN20: 144 | CO20: 156 | CP20: 168 | CQ20: 180 | CR20: 192 | CS20: 204 | CT20: 216 | CU20: 228 | CV20: 240
B21: 10 | D21: 10 | E21: 20 | F21: 30 | G21: 40 | H21: 50 | I21: 60 | J21: 70 | K21: 80 | L21: 90 | M21: 100 | N21: 110 | O21: 120 | P21: 130 | Q21: 140 | R21: 150 | S21: 160 | T21: 170 | U21: 180 | V21: 190 | W21: 200 | CA21: 13 | CC21: 13 | CD21: 26 | CE21: 39 | CF21: 52 | CG21: 65 | CH21: 78 | CI21: 91 | CJ21: 104 | CK21: 117 | CL21: 130 | CM21: 143 | CN21: 156 | CO21: 169 | CP21: 182 | CQ21: 195 | CR21: 208 | CS21: 221 | CT21: 234 | CU21: 247 | CV21: 260
B22: 9 | D22: 9 | E22: 18 | F22: 27 | G22: 36 | H22: 45 | I22: 54 | J22: 63 | K22: 72 | L22: 81 | M22: 90 | N22: 99 | O22: 108 | P22: 117 | Q22: 126 | R22: 135 | S22: 144 | T22: 153 | U22: 162 | V22: 171 | W22: 180 | CA22: 14 | CC22: 14 | CD22: 28 | CE22: 42 | CF22: 56 | CG22: 70 | CH22: 84 | CI22: 98 | CJ22: 112 | CK22: 126 | CL22: 140 | CM22: 154 | CN22: 168 | CO22: 182 | CP22: 196 | CQ22: 210 | CR22: 224 | CS22: 238 | CT22: 252 | CU22: 266 | CV22: 280
B23: 8 | D23: 8 | E23: 16 | F23: 24 | G23: 32 | H23: 40 | I23: 48 | J23: 56 | K23: 64 | L23: 72 | M23: 80 | N23: 88 | O23: 96 | P23: 104 | Q23: 112 | R23: 120 | S23: 128 | T23: 136 | U23: 144 | V23: 152 | W23: 160 | CA23: 15 | CC23: 15 | CD23: 30 | CE23: 45 | CF23: 60 | CG23: 75 | CH23: 90 | CI23: 105 | CJ23: 120 | CK23: 135 | CL23: 150 | CM23: 165 | CN23: 180 | CO23: 195 | CP23: 210 | CQ23: 225 | CR23: 240 | CS23: 255 | CT23: 270 | CU23: 285 | CV23: 300
B24: 7 | D24: 7 | E24: 14 | F24: 21 | G24: 28 | H24: 35 | I24: 42 | J24: 49 | K24: 56 | L24: 63 | M24: 70 | N24: =IF((N$32-$A$1)<=0,"",IF(($B24-$A$1*(1-$G$1)/$G$1)<=0,"",$A$5/($A$5-$B$10)*(($A$5*((N$32-$A$1)^$G$1*($B24-$A$1*(1-$G$1)/$G$1)^(1-$G$1)/((20*$G$1-$A$1)^$G$1*(20*(1-$G$1)-$A$1*(1-$G$1)/$G$1)^(1-$G$1)))^(2*$I$5))-$B$10))) -> 77 | O24: 84 | P24: 91 | Q24: 98 | R24: 105 | S24: 112 | T24: 119 | U24: 126 | V24: 133 | W24: 140 | CA24: 16 | CC24: 16 | CD24: 32 | CE24: 48 | CF24: 64 | CG24: 80 | CH24: 96 | CI24: 112 | CJ24: 128 | CK24: 144 | CL24: 160 | CM24: 176 | CN24: 192 | CO24: 208 | CP24: 224 | CQ24: 240 | CR24: 256 | CS24: 272 | CT24: 288 | CU24: 304 | CV24: 320
B25: 6 | D25: 6 | E25: 12 | F25: 18 | G25: 24 | H25: 30 | I25: 36 | J25: 42 | K25: 48 | L25: 54 | M25: 60 | N25: 66 | O25: 72 | P25: 78 | Q25: 84 | R25: 90 | S25: 96 | T25: 102 | U25: 108 | V25: 114 | W25: 120 | CA25: 17 | CC25: 17 | CD25: 34 | CE25: 51 | CF25: 68 | CG25: 85 | CH25: 102 | CI25: 119 | CJ25: 136 | CK25: 153 | CL25: 170 | CM25: 187 | CN25: 204 | CO25: 221 | CP25: 238 | CQ25: 255 | CR25: 272 | CS25: 289 | CT25: 306 | CU25: 323 | CV25: 340
B26: 5 | D26: 5 | E26: 10 | F26: 15 | G26: 20 | H26: 25 | I26: 30 | J26: 35 | K26: 40 | L26: 45 | M26: 50 | N26: 55 | O26: 60 | P26: 65 | Q26: 70 | R26: 75 | S26: 80 | T26: 85 | U26: 90 | V26: 95 | W26: 100 | CA26: 18 | CC26: 18 | CD26: 36 | CE26: 54 | CF26: 72 | CG26: 90 | CH26: 108 | CI26: 126 | CJ26: 144 | CK26: 162 | CL26: 180 | CM26: 198 | CN26: 216 | CO26: 234 | CP26: 252 | CQ26: 270 | CR26: 288 | CS26: 306 | CT26: 324 | CU26: 342 | CV26: 360
B27: 4 | D27: 4 | E27: 8 | F27: 12 | G27: 16 | H27: 20 | I27: 24 | J27: 28 | K27: 32 | L27: 36 | M27: 40 | N27: 44 | O27: 48 | P27: 52 | Q27: 56 | R27: 60 | S27: 64 | T27: 68 | U27: 72 | V27: 76 | W27: 80 | CA27: 19 | CC27: 19 | CD27: 38 | CE27: 57 | CF27: 76 | CG27: 95 | CH27: 114 | CI27: 133 | CJ27: 152 | CK27: 171 | CL27: 190 | CM27: 209 | CN27: 228 | CO27: 247 | CP27: 266 | CQ27: 285 | CR27: 304 | CS27: 323 | CT27: 342 | CU27: 361 | CV27: 380
B28: 3 | D28: 3 | E28: 6 | F28: 9 | G28: 12 | H28: 15 | I28: 18 | J28: 21 | K28: 24 | L28: 27 | M28: 30 | N28: 33 | O28: 36 | P28: 39 | Q28: 42 | R28: 45 | S28: 48 | T28: 51 | U28: 54 | V28: 57 | W28: 60 | CA28: 20 | CC28: 20 | CD28: 40 | CE28: 60 | CF28: 80 | CG28: 100 | CH28: 120 | CI28: 140 | CJ28: 160 | CK28: 180 | CL28: 200 | CM28: 220 | CN28: 240 | CO28: 260 | CP28: 280 | CQ28: 300 | CR28: 320 | CS28: 340 | CT28: 360 | CU28: 380 | CV28: 400
B29: 2 | D29: 2 | E29: 4 | F29: 6 | G29: 8 | H29: 10 | I29: 12 | J29: 14 | K29: 16 | L29: 18 | M29: 20 | N29: 22 | O29: 24 | P29: 26 | Q29: 28 | R29: 30 | S29: 32 | T29: 34 | U29: 36 | V29: 38 | W29: 40 | CB29: 0 | CC29: 1 | CD29: 2 | CE29: 3 | CF29: 4 | CG29: 5 | CH29: 6 | CI29: 7 | CJ29: 8 | CK29: 9 | CL29: 10 | CM29: 11 | CN29: 12 | CO29: 13 | CP29: 14 | CQ29: 15 | CR29: 16 | CS29: 17 | CT29: 18 | CU29: 19 | CV29: 20
B30: 1 | D30: 1 | E30: 2 | F30: 3 | G30: 4 | H30: 5 | I30: 6 | J30: 7 | K30: 8 | L30: 9 | M30: 10 | N30: 11 | O30: 12 | P30: 13 | Q30: 14 | R30: 15 | S30: 16 | T30: 17 | U30: 18 | V30: 19 | W30: 20
B31: 0
B32: y/x | C32: 0 | D32: 1 | E32: 2 | F32: 3 | G32: 4 | H32: 5 | I32: 6 | J32: 7 | K32: 8 | L32: 9 | M32: 10 | N32: 11 | O32: 12 | P32: 13 | Q32: 14 | R32: 15 | S32: 16 | T32: 17 | U32: 18 | V32: 19 | W32: 20
J33: Consumption of Good x | Y33: Next map (2)
A39: Affordable bundles given Income = $20, and the prices of both x and y are $1
A41: Consumption of Good y | B41: 20 | C41: =IF((C$32-$A$1)<=0,"",IF(($B41-$A$1*(1-$G$1)/$G$1)<=0,"",$A$5/($A$5-$B$10)*(($A$5*((C$32-$A$1)^$G$1*($B41-$A$1*(1-$G$1)/$G$1)^(1-$G$1)/((20*$G$1-$A$1)^$G$1*(20*(1-$G$1)-$A$1*(1-$G$1)/$G$1)^(1-$G$1)))^(2*$I$5))-$B$10))) ->  | D41: 20 | E41: 40 | F41: 60 | G41: 80 | H41: 100 | I41: 120 | J41: 140 | K41: 160 | L41: 180 | M41: 200 | N41: 220 | O41: 240 | P41: 260 | Q41: 280 | R41: 300 | S41: =IF((S$32-$A$1)<=0,"",IF(($B41-$A$1*(1-$G$1)/$G$1)<=0,"",$A$5/($A$5-$B$10)*(($A$5*((S$32-$A$1)^$G$1*($B41-$A$1*(1-$G$1)/$G$1)^(1-$G$1)/((20*$G$1-$A$1)^$G$1*(20*(1-$G$1)-$A$1*(1-$G$1)/$G$1)^(1-$G$1)))^(2*$I$5))-$B$10))) -> 320 | T41: 340 | U41: 360 | V41: 380 | W41: 400
B42: 19 | D42: 19 | E42: 38 | F42: 57 | G42: 76 | H42: 95 | I42: 114 | J42: 133 | K42: 152 | L42: 171 | M42: 190 | N42: 209 | O42: 228 | P42: 247 | Q42: 266 | R42: 285 | S42: 304 | T42: 323 | U42: 342 | V42: 361 | W42: 380
B43: 18 | D43: 18 | E43: 36 | F43: 54 | G43: 72 | H43: 90 | I43: 108 | J43: 126 | K43: 144 | L43: 162 | M43: 180 | N43: 198 | O43: 216 | P43: 234 | Q43: 252 | R43: 270 | S43: 288 | T43: 306 | U43: 324 | V43: 342 | W43: 360
B44: 17 | D44: 17 | E44: 34 | F44: 51 | G44: 68 | H44: 85 | I44: 102 | J44: 119 | K44: 136 | L44: 153 | M44: 170 | N44: 187 | O44: 204 | P44: 221 | Q44: 238 | R44: 255 | S44: 272 | T44: 289 | U44: 306 | V44: 323 | W44: 340
B45: 16 | D45: 16 | E45: 32 | F45: 48 | G45: 64 | H45: 80 | I45: 96 | J45: 112 | K45: 128 | L45: 144 | M45: 160 | N45: 176 | O45: 192 | P45: 208 | Q45: 224 | R45: 240 | S45: 256 | T45: 272 | U45: 288 | V45: 304 | W45: 320
B46: 15 | D46: 15 | E46: 30 | F46: 45 | G46: 60 | H46: 75 | I46: 90 | J46: 105 | K46: 120 | L46: 135 | M46: 150 | N46: 165 | O46: 180 | P46: 195 | Q46: 210 | R46: 225 | S46: 240 | T46: 255 | U46: 270 | V46: 285 | W46: 300
B47: 14 | D47: 14 | E47: 28 | F47: 42 | G47: 56 | H47: 70 | I47: 84 | J47: 98 | K47: 112 | L47: 126 | M47: 140 | N47: 154 | O47: 168 | P47: 182 | Q47: 196 | R47: 210 | S47: 224 | T47: 238 | U47: 252 | V47: 266 | W47: 280
B48: 13 | D48: 13 | E48: 26 | F48: 39 | G48: 52 | H48: 65 | I48: 78 | J48: 91 | K48: 104 | L48: 117 | M48: 130 | N48: 143 | O48: 156 | P48: 169 | Q48: 182 | R48: 195 | S48: 208 | T48: 221 | U48: 234 | V48: 247 | W48: 260
B49: 12 | D49: 12 | E49: 24 | F49: 36 | G49: 48 | H49: 60 | I49: 72 | J49: 84 | K49: 96 | L49: 108 | M49: 120 | N49: 132 | O49: 144 | P49: 156 | Q49: 168 | R49: 180 | S49: 192 | T49: 204 | U49: 216 | V49: 228 | W49: 240
B50: 11 | D50: 11 | E50: 22 | F50: 33 | G50: 44 | H50: 55 | I50: 66 | J50: 77 | K50: 88 | L50: 99 | M50: 110 | N50: 121 | O50: 132 | P50: 143 | Q50: 154 | R50: 165 | S50: 176 | T50: 187 | U50: 198 | V50: 209 | W50: 220
B51: 10 | D51: 10 | E51: 20 | F51: 30 | G51: 40 | H51: 50 | I51: 60 | J51: 70 | K51: 80 | L51: 90 | M51: 100 | N51: 110 | O51: 120 | P51: 130 | Q51: 140 | R51: 150 | S51: 160 | T51: 170 | U51: 180 | V51: 190 | W51: 200
B52: 9 | D52: 9 | E52: 18 | F52: 27 | G52: 36 | H52: 45 | I52: 54 | J52: 63 | K52: 72 | L52: 81 | M52: 90 | N52: 99 | O52: 108 | P52: 117 | Q52: 126 | R52: 135 | S52: 144 | T52: 153 | U52: 162 | V52: 171 | W52: 180
B53: 8 | D53: 8 | E53: 16 | F53: 24 | G53: 32 | H53: 40 | I53: 48 | J53: 56 | K53: 64 | L53: 72 | M53: 80 | N53: 88 | O53: 96 | P53: 104 | Q53: 112 | R53: 120 | S53: 128 | T53: 136 | U53: 144 | V53: 152 | W53: 160
B54: 7 | D54: 7 | E54: 14 | F54: 21 | G54: 28 | H54: 35 | I54: 42 | J54: 49 | K54: 56 | L54: 63 | M54: 70 | N54: 77 | O54: 84 | P54: 91 | Q54: 98 | R54: 105 | S54: 112 | T54: 119 | U54: 126 | V54: 133 | W54: 140
B55: 6 | D55: 6 | E55: 12 | F55: 18 | G55: 24 | H55: 30 | I55: 36 | J55: 42 | K55: 48 | L55: 54 | M55: 60 | N55: 66 | O55: 72 | P55: 78 | Q55: 84 | R55: 90 | S55: 96 | T55: 102 | U55: 108 | V55: 114 | W55: 120
B56: 5 | D56: 5 | E56: 10 | F56: 15 | G56: 20 | H56: 25 | I56: 30 | J56: 35 | K56: 40 | L56: 45 | M56: 50 | N56: 55 | O56: 60 | P56: 65 | Q56: 70 | R56: =IF((R$32-$A$1)<=0,"",IF(($B56-$A$1*(1-$G$1)/$G$1)<=0,"",$A$5/($A$5-$B$10)*(($A$5*((R$32-$A$1)^$G$1*($B56-$A$1*(1-$G$1)/$G$1)^(1-$G$1)/((20*$G$1-$A$1)^$G$1*(20*(1-$G$1)-$A$1*(1-$G$1)/$G$1)^(1-$G$1)))^(2*$I$5))-$B$10))) -> 75 | S56: 80 | T56: 85 | U56: 90 | V56: 95 | W56: 100
B57: 4 | C57: =IF((C$32-$A$1)<=0,"",IF(($B57-$A$1*(1-$G$1)/$G$1)<=0,"",$A$5/($A$5-$B$10)*(($A$5*((C$32-$A$1)^$G$1*($B57-$A$1*(1-$G$1)/$G$1)^(1-$G$1)/((20*$G$1-$A$1)^$G$1*(20*(1-$G$1)-$A$1*(1-$G$1)/$G$1)^(1-$G$1)))^(2*$I$5))-$B$10))) ->  | D57: 4 | E57: 8 | F57: 12 | G57: 16 | H57: 20 | I57: 24 | J57: 28 | K57: 32 | L57: 36 | M57: 40 | N57: 44 | O57: 48 | P57: 52 | Q57: 56 | R57: 60 | S57: 64 | T57: 68 | U57: 72 | V57: 76 | W57: 80
B58: 3 | D58: 3 | E58: 6 | F58: 9 | G58: 12 | H58: 15 | I58: 18 | J58: 21 | K58: 24 | L58: 27 | M58: 30 | N58: 33 | O58: 36 | P58: 39 | Q58: 42 | R58: 45 | S58: 48 | T58: 51 | U58: 54 | V58: 57 | W58: 60
B59: 2 | D59: 2 | E59: 4 | F59: 6 | G59: 8 | H59: 10 | I59: 12 | J59: 14 | K59: 16 | L59: 18 | M59: 20 | N59: 22 | O59: 24 | P59: 26 | Q59: 28 | R59: 30 | S59: 32 | T59: 34 | U59: 36 | V59: 38 | W59: 40
B60: 1 | D60: 1 | E60: 2 | F60: 3 | G60: 4 | H60: 5 | I60: 6 | J60: 7 | K60: 8 | L60: 9 | M60: 10 | N60: 11 | O60: 12 | P60: 13 | Q60: 14 | R60: 15 | S60: 16 | T60: 17 | U60: 18 | V60: 19 | W60: 20
B61: 0 | C61: =IF((C$32-$A$1)<=0,"",IF(($B61-$A$1*(1-$G$1)/$G$1)<=0,"",$A$5/($A$5-$B$10)*(($A$5*((C$32-$A$1)^$G$1*($B61-$A$1*(1-$G$1)/$G$1)^(1-$G$1)/((20*$G$1-$A$1)^$G$1*(20*(1-$G$1)-$A$1*(1-$G$1)/$G$1)^(1-$G$1)))^(2*$I$5))-$B$10))) -> 
B62: y/x | C62: 0 | D62: 1 | E62: 2 | F62: 3 | G62: 4 | H62: 5 | I62: 6 | J62: 7 | K62: 8 | L62: 9 | M62: 10 | N62: 11 | O62: 12 | P62: 13 | Q62: 14 | R62: 15 | S62: 16 | T62: 17 | U62: 18 | V62: 19 | W62: 20 | Y62: Next map (3)
C63: Consumption of Good x | Y63: Return to top
A69: Optimal bundle given Income = $20, Py = $1 and Px = $1
A71: Consumption of Good y | B71: 20 | C71: =IF((C$32-$A$1)<=0,"",IF(($B71-$A$1*(1-$G$1)/$G$1)<=0,"",$A$5/($A$5-$B$10)*(($A$5*((C$32-$A$1)^$G$1*($B71-$A$1*(1-$G$1)/$G$1)^(1-$G$1)/((20*$G$1-$A$1)^$G$1*(20*(1-$G$1)-$A$1*(1-$G$1)/$G$1)^(1-$G$1)))^(2*$I$5))-$B$10))) ->  | D71: 20 | E71: 40 | F71: 60 | G71: 80 | H71: 100 | I71: 120 | J71: 140 | K71: 160 | L71: 180 | M71: 200 | N71: 220 | O71: 240 | P71: 260 | Q71: 280 | R71: 300 | S71: =IF((S$32-$A$1)<=0,"",IF(($B71-$A$1*(1-$G$1)/$G$1)<=0,"",$A$5/($A$5-$B$10)*(($A$5*((S$32-$A$1)^$G$1*($B71-$A$1*(1-$G$1)/$G$1)^(1-$G$1)/((20*$G$1-$A$1)^$G$1*(20*(1-$G$1)-$A$1*(1-$G$1)/$G$1)^(1-$G$1)))^(2*$I$5))-$B$10))) -> 320 | T71: 340 | U71: 360 | V71: 380 | W71: 400
B72: 19 | D72: 19 | E72: 38 | F72: 57 | G72: 76 | H72: 95 | I72: 114 | J72: 133 | K72: 152 | L72: 171 | M72: 190 | N72: 209 | O72: 228 | P72: 247 | Q72: 266 | R72: 285 | S72: 304 | T72: 323 | U72: 342 | V72: 361 | W72: 380
B73: 18 | D73: 18 | E73: 36 | F73: 54 | G73: 72 | H73: 90 | I73: 108 | J73: 126 | K73: 144 | L73: 162 | M73: 180 | N73: 198 | O73: 216 | P73: 234 | Q73: 252 | R73: 270 | S73: 288 | T73: 306 | U73: 324 | V73: 342 | W73: 360
B74: 17 | D74: 17 | E74: 34 | F74: 51 | G74: 68 | H74: 85 | I74: 102 | J74: 119 | K74: 136 | L74: 153 | M74: 170 | N74: 187 | O74: 204 | P74: 221 | Q74: 238 | R74: 255 | S74: 272 | T74: 289 | U74: 306 | V74: 323 | W74: 340
B75: 16 | D75: 16 | E75: 32 | F75: 48 | G75: 64 | H75: 80 | I75: 96 | J75: 112 | K75: 128 | L75: 144 | M75: 160 | N75: 176 | O75: 192 | P75: 208 | Q75: 224 | R75: 240 | S75: 256 | T75: 272 | U75: 288 | V75: 304 | W75: 320
B76: 15 | D76: 15 | E76: 30 | F76: 45 | G76: 60 | H76: 75 | I76: 90 | J76: 105 | K76: 120 | L76: 135 | M76: 150 | N76: 165 | O76: 180 | P76: 195 | Q76: 210 | R76: 225 | S76: 240 | T76: 255 | U76: 270 | V76: 285 | W76: 300
B77: 14 | D77: 14 | E77: 28 | F77: 42 | G77: 56 | H77: 70 | I77: 84 | J77: 98 | K77: 112 | L77: 126 | M77: 140 | N77: 154 | O77: 168 | P77: 182 | Q77: 196 | R77: 210 | S77: 224 | T77: 238 | U77: 252 | V77: 266 | W77: 280
B78: 13 | D78: 13 | E78: 26 | F78: 39 | G78: 52 | H78: 65 | I78: 78 | J78: 91 | K78: 104 | L78: 117 | M78: 130 | N78: 143 | O78: 156 | P78: 169 | Q78: 182 | R78: 195 | S78: 208 | T78: 221 | U78: 234 | V78: 247 | W78: 260
B79: 12 | D79: 12 | E79: 24 | F79: 36 | G79: 48 | H79: 60 | I79: 72 | J79: 84 | K79: 96 | L79: 108 | M79: 120 | N79: 132 | O79: 144 | P79: 156 | Q79: 168 | R79: 180 | S79: 192 | T79: 204 | U79: 216 | V79: 228 | W79: 240
B80: 11 | D80: 11 | E80: 22 | F80: 33 | G80: 44 | H80: 55 | I80: 66 | J80: 77 | K80: 88 | L80: 99 | M80: 110 | N80: 121 | O80: 132 | P80: 143 | Q80: 154 | R80: 165 | S80: 176 | T80: 187 | U80: 198 | V80: 209 | W80: 220
B81: 10 | D81: 10 | E81: 20 | F81: 30 | G81: 40 | H81: 50 | I81: 60 | J81: 70 | K81: 80 | L81: 90 | M81: 100 | N81: 110 | O81: 120 | P81: 130 | Q81: 140 | R81: 150 | S81: 160 | T81: 170 | U81: 180 | V81: 190 | W81: 200
B82: 9 | D82: 9 | E82: 18 | F82: 27 | G82: 36 | H82: 45 | I82: 54 | J82: 63 | K82: 72 | L82: 81 | M82: 90 | N82: 99 | O82: 108 | P82: 117 | Q82: 126 | R82: 135 | S82: 144 | T82: 153 | U82: 162 | V82: 171 | W82: 180
B83: 8 | D83: 8 | E83: 16 | F83: 24 | G83: 32 | H83: 40 | I83: 48 | J83: 56 | K83: 64 | L83: 72 | M83: 80 | N83: 88 | O83: 96 | P83: 104 | Q83: 112 | R83: 120 | S83: 128 | T83: 136 | U83: 144 | V83: 152 | W83: 160
B84: 7 | D84: 7 | E84: 14 | F84: 21 | G84: 28 | H84: 35 | I84: 42 | J84: 49 | K84: 56 | L84: 63 | M84: 70 | N84: 77 | O84: 84 | P84: 91 | Q84: 98 | R84: 105 | S84: 112 | T84: 119 | U84: 126 | V84: 133 | W84: 140
B85: 6 | D85: 6 | E85: 12 | F85: 18 | G85: 24 | H85: 30 | I85: 36 | J85: 42 | K85: 48 | L85: 54 | M85: 60 | N85: 66 | O85: 72 | P85: 78 | Q85: 84 | R85: 90 | S85: 96 | T85: 102 | U85: 108 | V85: 114 | W85: 120
B86: 5 | D86: 5 | E86: 10 | F86: 15 | G86: 20 | H86: 25 | I86: 30 | J86: 35 | K86: 40 | L86: 45 | M86: 50 | N86: 55 | O86: 60 | P86: 65 | Q86: 70 | R86: =IF((R$32-$A$1)<=0,"",IF(($B86-$A$1*(1-$G$1)/$G$1)<=0,"",$A$5/($A$5-$B$10)*(($A$5*((R$32-$A$1)^$G$1*($B86-$A$1*(1-$G$1)/$G$1)^(1-$G$1)/((20*$G$1-$A$1)^$G$1*(20*(1-$G$1)-$A$1*(1-$G$1)/$G$1)^(1-$G$1)))^(2*$I$5))-$B$10))) -> 75 | S86: 80 | T86: 85 | U86: 90 | V86: 95 | W86: 100
B87: 4 | C87: =IF((C$32-$A$1)<=0,"",IF(($B87-$A$1*(1-$G$1)/$G$1)<=0,"",$A$5/($A$5-$B$10)*(($A$5*((C$32-$A$1)^$G$1*($B87-$A$1*(1-$G$1)/$G$1)^(1-$G$1)/((20*$G$1-$A$1)^$G$1*(20*(1-$G$1)-$A$1*(1-$G$1)/$G$1)^(1-$G$1)))^(2*$I$5))-$B$10))) ->  | D87: 4 | E87: 8 | F87: 12 | G87: 16 | H87: 20 | I87: 24 | J87: 28 | K87: 32 | L87: 36 | M87: 40 | N87: 44 | O87: 48 | P87: 52 | Q87: 56 | R87: 60 | S87: 64 | T87: 68 | U87: 72 | V87: 76 | W87: 80
B88: 3 | D88: 3 | E88: 6 | F88: 9 | G88: 12 | H88: 15 | I88: 18 | J88: 21 | K88: 24 | L88: 27 | M88: 30 | N88: 33 | O88: 36 | P88: 39 | Q88: 42 | R88: 45 | S88: 48 | T88: 51 | U88: 54 | V88: 57 | W88: 60
B89: 2 | D89: 2 | E89: 4 | F89: 6 | G89: 8 | H89: 10 | I89: 12 | J89: 14 | K89: 16 | L89: 18 | M89: 20 | N89: 22 | O89: 24 | P89: 26 | Q89: 28 | R89: 30 | S89: 32 | T89: 34 | U89: 36 | V89: 38 | W89: 40
B90: 1 | D90: 1 | E90: 2 | F90: 3 | G90: 4 | H90: 5 | I90: 6 | J90: 7 | K90: 8 | L90: 9 | M90: 10 | N90: 11 | O90: 12 | P90: 13 | Q90: 14 | R90: 15 | S90: 16 | T90: 17 | U90: 18 | V90: 19 | W90: 20
B91: 0 | C91: =IF((C$32-$A$1)<=0,"",IF(($B91-$A$1*(1-$G$1)/$G$1)<=0,"",$A$5/($A$5-$B$10)*(($A$5*((C$32-$A$1)^$G$1*($B91-$A$1*(1-$G$1)/$G$1)^(1-$G$1)/((20*$G$1-$A$1)^$G$1*(20*(1-$G$1)-$A$1*(1-$G$1)/$G$1)^(1-$G$1)))^(2*$I$5))-$B$10))) -> 
B92: y/x | C92: 0 | D92: 1 | E92: 2 | F92: 3 | G92: 4 | H92: 5 | I92: 6 | J92: 7 | K92: 8 | L92: 9 | M92: 10 | N92: 11 | O92: 12 | P92: 13 | Q92: 14 | R92: 15 | S92: 16 | T92: 17 | U92: 18 | V92: 19 | W92: 20 | Y92: Next map (4)
C93: Consumption of Good x | Y93: Return to top
A99: Affordable bundles given Income = $20, Py = $1 and Px = $2
A101: Consumption of Good y | B101: 20 | C101: =IF((C$32-$A$1)<=0,"",IF(($B101-$A$1*(1-$G$1)/$G$1)<=0,"",$A$5/($A$5-$B$10)*(($A$5*((C$32-$A$1)^$G$1*($B101-$A$1*(1-$G$1)/$G$1)^(1-$G$1)/((20*$G$1-$A$1)^$G$1*(20*(1-$G$1)-$A$1*(1-$G$1)/$G$1)^(1-$G$1)))^(2*$I$5))-$B$10))) ->  | D101: 20 | E101: 40 | F101: 60 | G101: 80 | H101: 100 | I101: 120 | J101: 140 | K101: 160 | L101: 180 | M101: 200 | N101: 220 | O101: 240 | P101: 260 | Q101: 280 | R101: 300 | S101: =IF((S$32-$A$1)<=0,"",IF(($B101-$A$1*(1-$G$1)/$G$1)<=0,"",$A$5/($A$5-$B$10)*(($A$5*((S$32-$A$1)^$G$1*($B101-$A$1*(1-$G$1)/$G$1)^(1-$G$1)/((20*$G$1-$A$1)^$G$1*(20*(1-$G$1)-$A$1*(1-$G$1)/$G$1)^(1-$G$1)))^(2*$I$5))-$B$10))) -> 320 | T101: 340 | U101: 360 | V101: 380 | W101: 400
B102: 19 | D102: 19 | E102: 38 | F102: 57 | G102: 76 | H102: 95 | I102: 114 | J102: 133 | K102: 152 | L102: 171 | M102: 190 | N102: 209 | O102: 228 | P102: 247 | Q102: 266 | R102: 285 | S102: 304 | T102: 323 | U102: 342 | V102: 361 | W102: 380
B103: 18 | D103: 18 | E103: 36 | F103: 54 | G103: 72 | H103: 90 | I103: 108 | J103: 126 | K103: 144 | L103: 162 | M103: 180 | N103: 198 | O103: 216 | P103: 234 | Q103: 252 | R103: 270 | S103: 288 | T103: 306 | U103: 324 | V103: 342 | W103: 360
B104: 17 | D104: 17 | E104: 34 | F104: 51 | G104: 68 | H104: 85 | I104: 102 | J104: 119 | K104: 136 | L104: 153 | M104: 170 | N104: 187 | O104: 204 | P104: 221 | Q104: 238 | R104: 255 | S104: 272 | T104: 289 | U104: 306 | V104: 323 | W104: 340
B105: 16 | D105: 16 | E105: 32 | F105: 48 | G105: 64 | H105: 80 | I105: 96 | J105: 112 | K105: 128 | L105: 144 | M105: 160 | N105: 176 | O105: 192 | P105: 208 | Q105: 224 | R105: 240 | S105: 256 | T105: 272 | U105: 288 | V105: 304 | W105: 320
B106: 15 | D106: 15 | E106: 30 | F106: 45 | G106: 60 | H106: 75 | I106: 90 | J106: 105 | K106: 120 | L106: 135 | M106: 150 | N106: 165 | O106: 180 | P106: 195 | Q106: 210 | R106: 225 | S106: 240 | T106: 255 | U106: 270 | V106: 285 | W106: 300
B107: 14 | D107: 14 | E107: 28 | F107: 42 | G107: 56 | H107: 70 | I107: 84 | J107: 98 | K107: 112 | L107: 126 | M107: 140 | N107: 154 | O107: 168 | P107: 182 | Q107: 196 | R107: 210 | S107: 224 | T107: 238 | U107: 252 | V107: 266 | W107: 280
B108: 13 | D108: 13 | E108: 26 | F108: 39 | G108: 52 | H108: 65 | I108: 78 | J108: 91 | K108: 104 | L108: 117 | M108: 130 | N108: 143 | O108: 156 | P108: 169 | Q108: 182 | R108: 195 | S108: 208 | T108: 221 | U108: 234 | V108: 247 | W108: 260
B109: 12 | D109: 12 | E109: 24 | F109: 36 | G109: 48 | H109: 60 | I109: 72 | J109: 84 | K109: 96 | L109: 108 | M109: 120 | N109: 132 | O109: 144 | P109: 156 | Q109: 168 | R109: 180 | S109: 192 | T109: 204 | U109: 216 | V109: 228 | W109: 240
B110: 11 | D110: 11 | E110: 22 | F110: 33 | G110: 44 | H110: 55 | I110: 66 | J110: 77 | K110: 88 | L110: 99 | M110: 110 | N110: 121 | O110: 132 | P110: 143 | Q110: 154 | R110: 165 | S110: 176 | T110: 187 | U110: 198 | V110: 209 | W110: 220
B111: 10 | D111: 10 | E111: 20 | F111: 30 | G111: 40 | H111: 50 | I111: 60 | J111: 70 | K111: 80 | L111: 90 | M111: 100 | N111: 110 | O111: 120 | P111: 130 | Q111: 140 | R111: 150 | S111: 160 | T111: 170 | U111: 180 | V111: 190 | W111: 200
B112: 9 | D112: 9 | E112: 18 | F112: 27 | G112: 36 | H112: 45 | I112: 54 | J112: 63 | K112: 72 | L112: 81 | M112: 90 | N112: 99 | O112: 108 | P112: 117 | Q112: 126 | R112: 135 | S112: 144 | T112: 153 | U112: 162 | V112: 171 | W112: 180
B113: 8 | D113: 8 | E113: 16 | F113: 24 | G113: 32 | H113: 40 | I113: 48 | J113: 56 | K113: 64 | L113: 72 | M113: 80 | N113: 88 | O113: 96 | P113: 104 | Q113: 112 | R113: 120 | S113: 128 | T113: 136 | U113: 144 | V113: 152 | W113: 160
B114: 7 | D114: 7 | E114: 14 | F114: 21 | G114: 28 | H114: 35 | I114: 42 | J114: 49 | K114: 56 | L114: 63 | M114: 70 | N114: 77 | O114: 84 | P114: 91 | Q114: 98 | R114: 105 | S114: 112 | T114: 119 | U114: 126 | V114: 133 | W114: 140
B115: 6 | D115: 6 | E115: 12 | F115: 18 | G115: 24 | H115: 30 | I115: 36 | J115: 42 | K115: 48 | L115: 54 | M115: 60 | N115: 66 | O115: 72 | P115: 78 | Q115: 84 | R115: 90 | S115: 96 | T115: 102 | U115: 108 | V115: 114 | W115: 120
B116: 5 | D116: 5 | E116: 10 | F116: 15 | G116: 20 | H116: 25 | I116: 30 | J116: 35 | K116: 40 | L116: 45 | M116: 50 | N116: 55 | O116: 60 | P116: 65 | Q116: 70 | R116: =IF((R$32-$A$1)<=0,"",IF(($B116-$A$1*(1-$G$1)/$G$1)<=0,"",$A$5/($A$5-$B$10)*(($A$5*((R$32-$A$1)^$G$1*($B116-$A$1*(1-$G$1)/$G$1)^(1-$G$1)/((20*$G$1-$A$1)^$G$1*(20*(1-$G$1)-$A$1*(1-$G$1)/$G$1)^(1-$G$1)))^(2*$I$5))-$B$10))) -> 75 | S116: 80 | T116: 85 | U116: 90 | V116: 95 | W116: 100
B117: 4 | C117: =IF((C$32-$A$1)<=0,"",IF(($B117-$A$1*(1-$G$1)/$G$1)<=0,"",$A$5/($A$5-$B$10)*(($A$5*((C$32-$A$1)^$G$1*($B117-$A$1*(1-$G$1)/$G$1)^(1-$G$1)/((20*$G$1-$A$1)^$G$1*(20*(1-$G$1)-$A$1*(1-$G$1)/$G$1)^(1-$G$1)))^(2*$I$5))-$B$10))) ->  | D117: 4 | E117: 8 | F117: 12 | G117: 16 | H117: 20 | I117: 24 | J117: 28 | K117: 32 | L117: 36 | M117: 40 | N117: 44 | O117: 48 | P117: 52 | Q117: 56 | R117: 60 | S117: 64 | T117: 68 | U117: 72 | V117: 76 | W117: 80
B118: 3 | D118: 3 | E118: 6 | F118: 9 | G118: 12 | H118: 15 | I118: 18 | J118: 21 | K118: 24 | L118: 27 | M118: 30 | N118: 33 | O118: 36 | P118: 39 | Q118: 42 | R118: 45 | S118: 48 | T118: 51 | U118: 54 | V118: 57 | W118: 60
B119: 2 | D119: 2 | E119: 4 | F119: 6 | G119: 8 | H119: 10 | I119: 12 | J119: 14 | K119: 16 | L119: 18 | M119: 20 | N119: 22 | O119: 24 | P119: 26 | Q119: 28 | R119: 30 | S119: 32 | T119: 34 | U119: 36 | V119: 38 | W119: 40
B120: 1 | D120: 1 | E120: 2 | F120: 3 | G120: 4 | H120: 5 | I120: 6 | J120: 7 | K120: 8 | L120: 9 | M120: 10 | N120: 11 | O120: 12 | P120: 13 | Q120: 14 | R120: 15 | S120: 16 | T120: 17 | U120: 18 | V120: 19 | W120: 20
B121: 0 | C121: =IF((C$32-$A$1)<=0,"",IF(($B121-$A$1*(1-$G$1)/$G$1)<=0,"",$A$5/($A$5-$B$10)*(($A$5*((C$32-$A$1)^$G$1*($B121-$A$1*(1-$G$1)/$G$1)^(1-$G$1)/((20*$G$1-$A$1)^$G$1*(20*(1-$G$1)-$A$1*(1-$G$1)/$G$1)^(1-$G$1)))^(2*$I$5))-$B$10))) -> 
B122: y/x | C122: 0 | D122: 1 | E122: 2 | F122: 3 | G122: 4 | H122: 5 | I122: 6 | J122: 7 | K122: 8 | L122: 9 | M122: 10 | N122: 11 | O122: 12 | P122: 13 | Q122: 14 | R122: 15 | S122: 16 | T122: 17 | U122: 18 | V122: 19 | W122: 20 | Y122: Next map (5)
C123: Consumption of Good x | Y123: Return to top
A129: Optimal bundle given Income = $20, Py = $1 and Px = $2
A131: Consumption of Good y | B131: 20 | C131: =IF((C$32-$A$1)<=0,"",IF(($B131-$A$1*(1-$G$1)/$G$1)<=0,"",$A$5/($A$5-$B$10)*(($A$5*((C$32-$A$1)^$G$1*($B131-$A$1*(1-$G$1)/$G$1)^(1-$G$1)/((20*$G$1-$A$1)^$G$1*(20*(1-$G$1)-$A$1*(1-$G$1)/$G$1)^(1-$G$1)))^(2*$I$5))-$B$10))) ->  | D131: 20 | E131: 40 | F131: 60 | G131: 80 | H131: 100 | I131: 120 | J131: 140 | K131: 160 | L131: 180 | M131: 200 | N131: 220 | O131: 240 | P131: 260 | Q131: 280 | R131: 300 | S131: =IF((S$32-$A$1)<=0,"",IF(($B131-$A$1*(1-$G$1)/$G$1)<=0,"",$A$5/($A$5-$B$10)*(($A$5*((S$32-$A$1)^$G$1*($B131-$A$1*(1-$G$1)/$G$1)^(1-$G$1)/((20*$G$1-$A$1)^$G$1*(20*(1-$G$1)-$A$1*(1-$G$1)/$G$1)^(1-$G$1)))^(2*$I$5))-$B$10))) -> 320 | T131: 340 | U131: 360 | V131: 380 | W131: 400
B132: 19 | D132: 19 | E132: 38 | F132: 57 | G132: 76 | H132: 95 | I132: 114 | J132: 133 | K132: 152 | L132: 171 | M132: 190 | N132: 209 | O132: 228 | P132: 247 | Q132: 266 | R132: 285 | S132: 304 | T132: 323 | U132: 342 | V132: 361 | W132: 380
B133: 18 | D133: 18 | E133: 36 | F133: 54 | G133: 72 | H133: 90 | I133: 108 | J133: 126 | K133: 144 | L133: 162 | M133: 180 | N133: 198 | O133: 216 | P133: 234 | Q133: 252 | R133: 270 | S133: 288 | T133: 306 | U133: 324 | V133: 342 | W133: 360
B134: 17 | D134: 17 | E134: 34 | F134: 51 | G134: 68 | H134: 85 | I134: 102 | J134: 119 | K134: 136 | L134: 153 | M134: 170 | N134: 187 | O134: 204 | P134: 221 | Q134: 238 | R134: 255 | S134: 272 | T134: 289 | U134: 306 | V134: 323 | W134: 340
B135: 16 | D135: 16 | E135: 32 | F135: 48 | G135: 64 | H135: 80 | I135: 96 | J135: 112 | K135: 128 | L135: 144 | M135: 160 | N135: 176 | O135: 192 | P135: 208 | Q135: 224 | R135: 240 | S135: 256 | T135: 272 | U135: 288 | V135: 304 | W135: 320
B136: 15 | D136: 15 | E136: 30 | F136: 45 | G136: 60 | H136: 75 | I136: 90 | J136: 105 | K136: 120 | L136: 135 | M136: 150 | N136: 165 | O136: 180 | P136: 195 | Q136: 210 | R136: 225 | S136: 240 | T136: 255 | U136: 270 | V136: 285 | W136: 300
B137: 14 | D137: 14 | E137: 28 | F137: 42 | G137: 56 | H137: 70 | I137: 84 | J137: 98 | K137: 112 | L137: 126 | M137: 140 | N137: 154 | O137: 168 | P137: 182 | Q137: 196 | R137: 210 | S137: 224 | T137: 238 | U137: 252 | V137: 266 | W137: 280
B138: 13 | D138: 13 | E138: 26 | F138: 39 | G138: 52 | H138: 65 | I138: 78 | J138: 91 | K138: 104 | L138: 117 | M138: 130 | N138: 143 | O138: 156 | P138: 169 | Q138: 182 | R138: 195 | S138: 208 | T138: 221 | U138: 234 | V138: 247 | W138: 260
B139: 12 | D139: 12 | E139: 24 | F139: 36 | G139: 48 | H139: 60 | I139: 72 | J139: 84 | K139: 96 | L139: 108 | M139: 120 | N139: 132 | O139: 144 | P139: 156 | Q139: 168 | R139: 180 | S139: 192 | T139: 204 | U139: 216 | V139: 228 | W139: 240
B140: 11 | D140: 11 | E140: 22 | F140: 33 | G140: 44 | H140: 55 | I140: 66 | J140: 77 | K140: 88 | L140: 99 | M140: 110 | N140: 121 | O140: 132 | P140: 143 | Q140: 154 | R140: 165 | S140: 176 | T140: 187 | U140: 198 | V140: 209 | W140: 220
B141: 10 | D141: 10 | E141: 20 | F141: 30 | G141: 40 | H141: 50 | I141: 60 | J141: 70 | K141: 80 | L141: 90 | M141: 100 | N141: 110 | O141: 120 | P141: 130 | Q141: 140 | R141: 150 | S141: 160 | T141: 170 | U141: 180 | V141: 190 | W141: 200
B142: 9 | D142: 9 | E142: 18 | F142: 27 | G142: 36 | H142: 45 | I142: 54 | J142: 63 | K142: 72 | L142: 81 | M142: 90 | N142: 99 | O142: 108 | P142: 117 | Q142: 126 | R142: 135 | S142: 144 | T142: 153 | U142: 162 | V142: 171 | W142: 180
B143: 8 | D143: 8 | E143: 16 | F143: 24 | G143: 32 | H143: 40 | I143: 48 | J143: 56 | K143: 64 | L143: 72 | M143: 80 | N143: 88 | O143: 96 | P143: 104 | Q143: 112 | R143: 120 | S143: 128 | T143: 136 | U143: 144 | V143: 152 | W143: 160
B144: 7 | D144: 7 | E144: 14 | F144: 21 | G144: 28 | H144: 35 | I144: 42 | J144: 49 | K144: 56 | L144: 63 | M144: 70 | N144: 77 | O144: 84 | P144: 91 | Q144: 98 | R144: 105 | S144: 112 | T144: 119 | U144: 126 | V144: 133 | W144: 140
B145: 6 | D145: 6 | E145: 12 | F145: 18 | G145: 24 | H145: 30 | I145: 36 | J145: 42 | K145: 48 | L145: 54 | M145: 60 | N145: 66 | O145: 72 | P145: 78 | Q145: 84 | R145: 90 | S145: 96 | T145: 102 | U145: 108 | V145: 114 | W145: 120
B146: 5 | D146: 5 | E146: 10 | F146: 15 | G146: 20 | H146: 25 | I146: 30 | J146: 35 | K146: 40 | L146: 45 | M146: 50 | N146: 55 | O146: 60 | P146: 65 | Q146: 70 | R146: =IF((R$32-$A$1)<=0,"",IF(($B146-$A$1*(1-$G$1)/$G$1)<=0,"",$A$5/($A$5-$B$10)*(($A$5*((R$32-$A$1)^$G$1*($B146-$A$1*(1-$G$1)/$G$1)^(1-$G$1)/((20*$G$1-$A$1)^$G$1*(20*(1-$G$1)-$A$1*(1-$G$1)/$G$1)^(1-$G$1)))^(2*$I$5))-$B$10))) -> 75 | S146: 80 | T146: 85 | U146: 90 | V146: 95 | W146: 100
B147: 4 | C147: =IF((C$32-$A$1)<=0,"",IF(($B147-$A$1*(1-$G$1)/$G$1)<=0,"",$A$5/($A$5-$B$10)*(($A$5*((C$32-$A$1)^$G$1*($B147-$A$1*(1-$G$1)/$G$1)^(1-$G$1)/((20*$G$1-$A$1)^$G$1*(20*(1-$G$1)-$A$1*(1-$G$1)/$G$1)^(1-$G$1)))^(2*$I$5))-$B$10))) ->  | D147: 4 | E147: 8 | F147: 12 | G147: 16 | H147: 20 | I147: 24 | J147: 28 | K147: 32 | L147: 36 | M147: 40 | N147: 44 | O147: 48 | P147: 52 | Q147: 56 | R147: 60 | S147: 64 | T147: 68 | U147: 72 | V147: 76 | W147: 80
B148: 3 | D148: 3 | E148: 6 | F148: 9 | G148: 12 | H148: 15 | I148: 18 | J148: 21 | K148: 24 | L148: 27 | M148: 30 | N148: 33 | O148: 36 | P148: 39 | Q148: 42 | R148: 45 | S148: 48 | T148: 51 | U148: 54 | V148: 57 | W148: 60
B149: 2 | D149: 2 | E149: 4 | F149: 6 | G149: 8 | H149: 10 | I149: 12 | J149: 14 | K149: 16 | L149: 18 | M149: 20 | N149: 22 | O149: 24 | P149: 26 | Q149: 28 | R149: 30 | S149: 32 | T149: 34 | U149: 36 | V149: 38 | W149: 40
B150: 1 | D150: 1 | E150: 2 | F150: 3 | G150: 4 | H150: 5 | I150: 6 | J150: 7 | K150: 8 | L150: 9 | M150: 10 | N150: 11 | O150: 12 | P150: 13 | Q150: 14 | R150: 15 | S150: 16 | T150: 17 | U150: 18 | V150: 19 | W150: 20
B151: 0 | C151: =IF((C$32-$A$1)<=0,"",IF(($B151-$A$1*(1-$G$1)/$G$1)<=0,"",$A$5/($A$5-$B$10)*(($A$5*((C$32-$A$1)^$G$1*($B151-$A$1*(1-$G$1)/$G$1)^(1-$G$1)/((20*$G$1-$A$1)^$G$1*(20*(1-$G$1)-$A$1*(1-$G$1)/$G$1)^(1-$G$1)))^(2*$I$5))-$B$10))) ->  | Y151: Go to map with both optimal bundles highlighted (7)
B152: y/x | C152: 0 | D152: 1 | E152: 2 | F152: 3 | G152: 4 | H152: 5 | I152: 6 | J152: 7 | K152: 8 | L152: 9 | M152: 10 | N152: 11 | O152: 12 | P152: 13 | Q152: 14 | R152: 15 | S152: 16 | T152: 17 | U152: 18 | V152: 19 | W152: 20 | Y152: Next map (6a)
C153: Consumption of Good x | Y153: Return to top
A159: Decomposing a Price Increase into Substitution and Income Effects: X and Y are Substitutes | Z159: NOTE: The substitution bundle on this graph is shaded for a Set Scenario.
AA160: Use 4 sliders and set to the following values or click: Data, What-If-Analysis, Scenario Manager. | AV160: Then click: | AW160: Substitutes
A161: Consumption of Good y | B161: 20 | C161: =IF((C$32-$A$1)<=0,"",IF(($B161-$A$1*(1-$G$1)/$G$1)<=0,"",$A$5/($A$5-$B$10)*(($A$5*((C$32-$A$1)^$G$1*($B161-$A$1*(1-$G$1)/$G$1)^(1-$G$1)/((20*$G$1-$A$1)^$G$1*(20*(1-$G$1)-$A$1*(1-$G$1)/$G$1)^(1-$G$1)))^(2*$I$5))-$B$10))) ->  | D161: 20 | E161: 40 | F161: 60 | G161: 80 | H161: 100 | I161: 120 | J161: 140 | K161: 160 | L161: 180 | M161: 200 | N161: 220 | O161: 240 | P161: 260 | Q161: 280 | R161: 300 | S161: =IF((S$32-$A$1)<=0,"",IF(($B161-$A$1*(1-$G$1)/$G$1)<=0,"",$A$5/($A$5-$B$10)*(($A$5*((S$32-$A$1)^$G$1*($B161-$A$1*(1-$G$1)/$G$1)^(1-$G$1)/((20*$G$1-$A$1)^$G$1*(20*(1-$G$1)-$A$1*(1-$G$1)/$G$1)^(1-$G$1)))^(2*$I$5))-$B$10))) -> 320 | T161: 340 | U161: 360 | V161: 380 | W161: 400 | AA161: -7.2 | AB161: a, Sub factor | AG161: 0.5 | AH161: r, %I devoted to x if Px = Py
B162: 19 | D162: 19 | E162: 38 | F162: 57 | G162: 76 | H162: 95 | I162: 114 | J162: 133 | K162: 152 | L162: 171 | M162: 190 | N162: 209 | O162: 228 | P162: 247 | Q162: 266 | R162: 285 | S162: 304 | T162: 323 | U162: 342 | V162: 361 | W162: 380 | AA162: 200 | AB162: C, U max with Px = Py | AG162: 1 | AH162: f, flattening factor
B163: 18 | D163: 18 | E163: 36 | F163: 54 | G163: 72 | H163: 90 | I163: 108 | J163: 126 | K163: 144 | L163: 162 | M163: 180 | N163: 198 | O163: 216 | P163: 234 | Q163: 252 | R163: 270 | S163: 288 | T163: 306 | U163: 324 | V163: 342 | W163: 360
B164: 17 | D164: 17 | E164: 34 | F164: 51 | G164: 68 | H164: 85 | I164: 102 | J164: 119 | K164: 136 | L164: 153 | M164: 170 | N164: 187 | O164: 204 | P164: 221 | Q164: 238 | R164: 255 | S164: 272 | T164: 289 | U164: 306 | V164: 323 | W164: 340
B165: 16 | D165: 16 | E165: 32 | F165: 48 | G165: 64 | H165: 80 | I165: 96 | J165: 112 | K165: 128 | L165: 144 | M165: 160 | N165: 176 | O165: 192 | P165: 208 | Q165: 224 | R165: 240 | S165: 256 | T165: 272 | U165: 288 | V165: 304 | W165: 320
B166: 15 | D166: 15 | E166: 30 | F166: 45 | G166: 60 | H166: 75 | I166: 90 | J166: 105 | K166: 120 | L166: 135 | M166: 150 | N166: 165 | O166: 180 | P166: 195 | Q166: 210 | R166: 225 | S166: 240 | T166: 255 | U166: 270 | V166: 285 | W166: 300
B167: 14 | D167: 14 | E167: 28 | F167: 42 | G167: 56 | H167: 70 | I167: 84 | J167: 98 | K167: 112 | L167: 126 | M167: 140 | N167: 154 | O167: 168 | P167: 182 | Q167: 196 | R167: 210 | S167: 224 | T167: 238 | U167: 252 | V167: 266 | W167: 280
B168: 13 | D168: 13 | E168: 26 | F168: 39 | G168: 52 | H168: 65 | I168: 78 | J168: 91 | K168: 104 | L168: 117 | M168: 130 | N168: 143 | O168: 156 | P168: 169 | Q168: 182 | R168: 195 | S168: 208 | T168: 221 | U168: 234 | V168: 247 | W168: 260
B169: 12 | D169: 12 | E169: 24 | F169: 36 | G169: 48 | H169: 60 | I169: 72 | J169: 84 | K169: 96 | L169: 108 | M169: 120 | N169: 132 | O169: 144 | P169: 156 | Q169: 168 | R169: 180 | S169: 192 | T169: 204 | U169: 216 | V169: 228 | W169: 240
B170: 11 | D170: 11 | E170: 22 | F170: 33 | G170: 44 | H170: 55 | I170: 66 | J170: 77 | K170: 88 | L170: 99 | M170: 110 | N170: 121 | O170: 132 | P170: 143 | Q170: 154 | R170: 165 | S170: 176 | T170: 187 | U170: 198 | V170: 209 | W170: 220
B171: 10 | D171: 10 | E171: 20 | F171: 30 | G171: 40 | H171: 50 | I171: 60 | J171: 70 | K171: 80 | L171: 90 | M171: 100 | N171: 110 | O171: 120 | P171: 130 | Q171: 140 | R171: 150 | S171: 160 | T171: 170 | U171: 180 | V171: 190 | W171: 200
B172: 9 | D172: 9 | E172: 18 | F172: 27 | G172: 36 | H172: 45 | I172: 54 | J172: 63 | K172: 72 | L172: 81 | M172: 90 | N172: 99 | O172: 108 | P172: 117 | Q172: 126 | R172: 135 | S172: 144 | T172: 153 | U172: 162 | V172: 171 | W172: 180
B173: 8 | D173: 8 | E173: 16 | F173: 24 | G173: 32 | H173: 40 | I173: 48 | J173: 56 | K173: 64 | L173: 72 | M173: 80 | N173: 88 | O173: 96 | P173: 104 | Q173: 112 | R173: 120 | S173: 128 | T173: 136 | U173: 144 | V173: 152 | W173: 160
B174: 7 | D174: 7 | E174: 14 | F174: 21 | G174: 28 | H174: 35 | I174: 42 | J174: 49 | K174: 56 | L174: 63 | M174: 70 | N174: 77 | O174: 84 | P174: 91 | Q174: 98 | R174: 105 | S174: 112 | T174: 119 | U174: 126 | V174: 133 | W174: 140
B175: 6 | D175: 6 | E175: 12 | F175: 18 | G175: 24 | H175: 30 | I175: 36 | J175: 42 | K175: 48 | L175: 54 | M175: 60 | N175: 66 | O175: 72 | P175: 78 | Q175: 84 | R175: 90 | S175: 96 | T175: 102 | U175: 108 | V175: 114 | W175: 120
B176: 5 | D176: 5 | E176: 10 | F176: 15 | G176: 20 | H176: 25 | I176: 30 | J176: 35 | K176: 40 | L176: 45 | M176: 50 | N176: 55 | O176: 60 | P176: 65 | Q176: 70 | R176: =IF((R$32-$A$1)<=0,"",IF(($B176-$A$1*(1-$G$1)/$G$1)<=0,"",$A$5/($A$5-$B$10)*(($A$5*((R$32-$A$1)^$G$1*($B176-$A$1*(1-$G$1)/$G$1)^(1-$G$1)/((20*$G$1-$A$1)^$G$1*(20*(1-$G$1)-$A$1*(1-$G$1)/$G$1)^(1-$G$1)))^(2*$I$5))-$B$10))) -> 75 | S176: 80 | T176: 85 | U176: 90 | V176: 95 | W176: 100
B177: 4 | C177: =IF((C$32-$A$1)<=0,"",IF(($B177-$A$1*(1-$G$1)/$G$1)<=0,"",$A$5/($A$5-$B$10)*(($A$5*((C$32-$A$1)^$G$1*($B177-$A$1*(1-$G$1)/$G$1)^(1-$G$1)/((20*$G$1-$A$1)^$G$1*(20*(1-$G$1)-$A$1*(1-$G$1)/$G$1)^(1-$G$1)))^(2*$I$5))-$B$10))) ->  | D177: 4 | E177: 8 | F177: 12 | G177: 16 | H177: 20 | I177: 24 | J177: 28 | K177: 32 | L177: 36 | M177: 40 | N177: 44 | O177: 48 | P177: 52 | Q177: 56 | R177: 60 | S177: 64 | T177: 68 | U177: 72 | V177: 76 | W177: 80
B178: 3 | D178: 3 | E178: 6 | F178: 9 | G178: 12 | H178: 15 | I178: 18 | J178: 21 | K178: 24 | L178: 27 | M178: 30 | N178: 33 | O178: 36 | P178: 39 | Q178: 42 | R178: 45 | S178: 48 | T178: 51 | U178: 54 | V178: 57 | W178: 60
B179: 2 | D179: 2 | E179: 4 | F179: 6 | G179: 8 | H179: 10 | I179: 12 | J179: 14 | K179: 16 | L179: 18 | M179: 20 | N179: 22 | O179: 24 | P179: 26 | Q179: 28 | R179: 30 | S179: 32 | T179: 34 | U179: 36 | V179: 38 | W179: 40
B180: 1 | D180: 1 | E180: 2 | F180: 3 | G180: 4 | H180: 5 | I180: 6 | J180: 7 | K180: 8 | L180: 9 | M180: 10 | N180: 11 | O180: 12 | P180: 13 | Q180: 14 | R180: 15 | S180: 16 | T180: 17 | U180: 18 | V180: 19 | W180: 20
B181: 0 | C181: =IF((C$32-$A$1)<=0,"",IF(($B181-$A$1*(1-$G$1)/$G$1)<=0,"",$A$5/($A$5-$B$10)*(($A$5*((C$32-$A$1)^$G$1*($B181-$A$1*(1-$G$1)/$G$1)^(1-$G$1)/((20*$G$1-$A$1)^$G$1*(20*(1-$G$1)-$A$1*(1-$G$1)/$G$1)^(1-$G$1)))^(2*$I$5))-$B$10))) ->  | Y181: Price decrease map for substitutes (6d)
B182: y/x | C182: 0 | D182: 1 | E182: 2 | F182: 3 | G182: 4 | H182: 5 | I182: 6 | J182: 7 | K182: 8 | L182: 9 | M182: 10 | N182: 11 | O182: 12 | P182: 13 | Q182: 14 | R182: 15 | S182: 16 | T182: 17 | U182: 18 | V182: 19 | W182: 20 | Y182: Next map (6b)
C183: Consumption of Good x | Y183: Return to top
A189: Decomposing a Price Increase into Substitution and Income Effects: X and Y are Independent | Z189: NOTE: The substitution bundle on this graph is shaded for a Set Scenario.
AA190: Use 4 sliders and set to the following values or click: Data, What-If-Analysis, Scenario Manager. | AV190: Then click: | AW190: Independent, Px increase
A191: Consumption of Good y | B191: 20 | C191: =IF((C$32-$A$1)<=0,"",IF(($B191-$A$1*(1-$G$1)/$G$1)<=0,"",$A$5/($A$5-$B$10)*(($A$5*((C$32-$A$1)^$G$1*($B191-$A$1*(1-$G$1)/$G$1)^(1-$G$1)/((20*$G$1-$A$1)^$G$1*(20*(1-$G$1)-$A$1*(1-$G$1)/$G$1)^(1-$G$1)))^(2*$I$5))-$B$10))) ->  | D191: 20 | E191: 40 | F191: 60 | G191: 80 | H191: 100 | I191: 120 | J191: 140 | K191: 160 | L191: 180 | M191: 200 | N191: 220 | O191: 240 | P191: 260 | Q191: 280 | R191: 300 | S191: =IF((S$32-$A$1)<=0,"",IF(($B191-$A$1*(1-$G$1)/$G$1)<=0,"",$A$5/($A$5-$B$10)*(($A$5*((S$32-$A$1)^$G$1*($B191-$A$1*(1-$G$1)/$G$1)^(1-$G$1)/((20*$G$1-$A$1)^$G$1*(20*(1-$G$1)-$A$1*(1-$G$1)/$G$1)^(1-$G$1)))^(2*$I$5))-$B$10))) -> 320 | T191: 340 | U191: 360 | V191: 380 | W191: 400 | AA191: 0 | AB191: a, Sub factor | AG191: 0.5 | AH191: r, %I devoted to x if Px = Py
B192: 19 | D192: 19 | E192: 38 | F192: 57 | G192: 76 | H192: 95 | I192: 114 | J192: 133 | K192: 152 | L192: 171 | M192: 190 | N192: 209 | O192: 228 | P192: 247 | Q192: 266 | R192: 285 | S192: 304 | T192: 323 | U192: 342 | V192: 361 | W192: 380 | AA192: 100 | AB192: C, U max with Px = Py | AG192: 0.24 | AH192: f, flattening factor
B193: 18 | D193: 18 | E193: 36 | F193: 54 | G193: 72 | H193: 90 | I193: 108 | J193: 126 | K193: 144 | L193: 162 | M193: 180 | N193: 198 | O193: 216 | P193: 234 | Q193: 252 | R193: 270 | S193: 288 | T193: 306 | U193: 324 | V193: 342 | W193: 360
B194: 17 | D194: 17 | E194: 34 | F194: 51 | G194: 68 | H194: 85 | I194: 102 | J194: 119 | K194: 136 | L194: 153 | M194: 170 | N194: 187 | O194: 204 | P194: 221 | Q194: 238 | R194: 255 | S194: 272 | T194: 289 | U194: 306 | V194: 323 | W194: 340
B195: 16 | D195: 16 | E195: 32 | F195: 48 | G195: 64 | H195: 80 | I195: 96 | J195: 112 | K195: 128 | L195: 144 | M195: 160 | N195: 176 | O195: 192 | P195: 208 | Q195: 224 | R195: 240 | S195: 256 | T195: 272 | U195: 288 | V195: 304 | W195: 320
B196: 15 | D196: 15 | E196: 30 | F196: 45 | G196: 60 | H196: 75 | I196: 90 | J196: 105 | K196: 120 | L196: 135 | M196: 150 | N196: 165 | O196: 180 | P196: 195 | Q196: 210 | R196: 225 | S196: 240 | T196: 255 | U196: 270 | V196: 285 | W196: 300
B197: 14 | D197: 14 | E197: 28 | F197: 42 | G197: 56 | H197: 70 | I197: 84 | J197: 98 | K197: 112 | L197: 126 | M197: 140 | N197: 154 | O197: 168 | P197: 182 | Q197: 196 | R197: 210 | S197: 224 | T197: 238 | U197: 252 | V197: 266 | W197: 280
B198: 13 | D198: 13 | E198: 26 | F198: 39 | G198: 52 | H198: 65 | I198: 78 | J198: 91 | K198: 104 | L198: 117 | M198: 130 | N198: 143 | O198: 156 | P198: 169 | Q198: 182 | R198: 195 | S198: 208 | T198: 221 | U198: 234 | V198: 247 | W198: 260
B199: 12 | D199: 12 | E199: 24 | F199: 36 | G199: 48 | H199: 60 | I199: 72 | J199: 84 | K199: 96 | L199: 108 | M199: 120 | N199: 132 | O199: 144 | P199: 156 | Q199: 168 | R199: 180 | S199: 192 | T199: 204 | U199: 216 | V199: 228 | W199: 240
B200: 11 | D200: 11 | E200: 22 | F200: 33 | G200: 44 | H200: 55 | I200: 66 | J200: 77 | K200: 88 | L200: 99 | M200: 110 | N200: 121 | O200: 132 | P200: 143 | Q200: 154 | R200: 165 | S200: 176 | T200: 187 | U200: 198 | V200: 209 | W200: 220
B201: 10 | D201: 10 | E201: 20 | F201: 30 | G201: 40 | H201: 50 | I201: 60 | J201: 70 | K201: 80 | L201: 90 | M201: 100 | N201: 110 | O201: 120 | P201: 130 | Q201: 140 | R201: 150 | S201: 160 | T201: 170 | U201: 180 | V201: 190 | W201: 200
B202: 9 | D202: 9 | E202: 18 | F202: 27 | G202: 36 | H202: 45 | I202: 54 | J202: 63 | K202: 72 | L202: 81 | M202: 90 | N202: 99 | O202: 108 | P202: 117 | Q202: 126 | R202: 135 | S202: 144 | T202: 153 | U202: 162 | V202: 171 | W202: 180
B203: 8 | D203: 8 | E203: 16 | F203: 24 | G203: 32 | H203: 40 | I203: 48 | J203: 56 | K203: 64 | L203: 72 | M203: 80 | N203: 88 | O203: 96 | P203: 104 | Q203: 112 | R203: 120 | S203: 128 | T203: 136 | U203: 144 | V203: 152 | W203: 160
B204: 7 | D204: 7 | E204: 14 | F204: 21 | G204: 28 | H204: 35 | I204: 42 | J204: 49 | K204: 56 | L204: 63 | M204: 70 | N204: 77 | O204: 84 | P204: 91 | Q204: 98 | R204: 105 | S204: 112 | T204: 119 | U204: 126 | V204: 133 | W204: 140
B205: 6 | D205: 6 | E205: 12 | F205: 18 | G205: 24 | H205: 30 | I205: 36 | J205: 42 | K205: 48 | L205: 54 | M205: 60 | N205: 66 | O205: 72 | P205: 78 | Q205: 84 | R205: 90 | S205: 96 | T205: 102 | U205: 108 | V205: 114 | W205: 120
B206: 5 | D206: 5 | E206: 10 | F206: 15 | G206: 20 | H206: 25 | I206: 30 | J206: 35 | K206: 40 | L206: 45 | M206: 50 | N206: 55 | O206: 60 | P206: 65 | Q206: 70 | R206: =IF((R$32-$A$1)<=0,"",IF(($B206-$A$1*(1-$G$1)/$G$1)<=0,"",$A$5/($A$5-$B$10)*(($A$5*((R$32-$A$1)^$G$1*($B206-$A$1*(1-$G$1)/$G$1)^(1-$G$1)/((20*$G$1-$A$1)^$G$1*(20*(1-$G$1)-$A$1*(1-$G$1)/$G$1)^(1-$G$1)))^(2*$I$5))-$B$10))) -> 75 | S206: 80 | T206: 85 | U206: 90 | V206: 95 | W206: 100
B207: 4 | C207: =IF((C$32-$A$1)<=0,"",IF(($B207-$A$1*(1-$G$1)/$G$1)<=0,"",$A$5/($A$5-$B$10)*(($A$5*((C$32-$A$1)^$G$1*($B207-$A$1*(1-$G$1)/$G$1)^(1-$G$1)/((20*$G$1-$A$1)^$G$1*(20*(1-$G$1)-$A$1*(1-$G$1)/$G$1)^(1-$G$1)))^(2*$I$5))-$B$10))) ->  | D207: 4 | E207: 8 | F207: 12 | G207: 16 | H207: 20 | I207: 24 | J207: 28 | K207: 32 | L207: 36 | M207: 40 | N207: 44 | O207: 48 | P207: 52 | Q207: 56 | R207: 60 | S207: 64 | T207: 68 | U207: 72 | V207: 76 | W207: 80
B208: 3 | D208: 3 | E208: 6 | F208: 9 | G208: 12 | H208: 15 | I208: 18 | J208: 21 | K208: 24 | L208: 27 | M208: 30 | N208: 33 | O208: 36 | P208: 39 | Q208: 42 | R208: 45 | S208: 48 | T208: 51 | U208: 54 | V208: 57 | W208: 60
B209: 2 | D209: 2 | E209: 4 | F209: 6 | G209: 8 | H209: 10 | I209: 12 | J209: 14 | K209: 16 | L209: 18 | M209: 20 | N209: 22 | O209: 24 | P209: 26 | Q209: 28 | R209: 30 | S209: 32 | T209: 34 | U209: 36 | V209: 38 | W209: 40
B210: 1 | D210: 1 | E210: 2 | F210: 3 | G210: 4 | H210: 5 | I210: 6 | J210: 7 | K210: 8 | L210: 9 | M210: 10 | N210: 11 | O210: 12 | P210: 13 | Q210: 14 | R210: 15 | S210: 16 | T210: 17 | U210: 18 | V210: 19 | W210: 20
B211: 0 | C211: =IF((C$32-$A$1)<=0,"",IF(($B211-$A$1*(1-$G$1)/$G$1)<=0,"",$A$5/($A$5-$B$10)*(($A$5*((C$32-$A$1)^$G$1*($B211-$A$1*(1-$G$1)/$G$1)^(1-$G$1)/((20*$G$1-$A$1)^$G$1*(20*(1-$G$1)-$A$1*(1-$G$1)/$G$1)^(1-$G$1)))^(2*$I$5))-$B$10))) ->  | Y211: Price decrease map for independent goods (6e)
B212: y/x | C212: 0 | D212: 1 | E212: 2 | F212: 3 | G212: 4 | H212: 5 | I212: 6 | J212: 7 | K212: 8 | L212: 9 | M212: 10 | N212: 11 | O212: 12 | P212: 13 | Q212: 14 | R212: 15 | S212: 16 | T212: 17 | U212: 18 | V212: 19 | W212: 20 | Y212: Next map (6c)
C213: Consumption of Good x | Y213: Return to top
A219: Decomposing a Price Increase into Substitution and Income Effects: X and Y are Complements | Z219: NOTE: The substitution bundle on this graph is shaded for a Set Scenario.
AA220: Use 4 sliders and set to the following values or click: Data, What-If-Analysis, Scenario Manager. | AV220: Then click: | AW220: Complements, Px increase
A221: Consumption of Good y | B221: 20 | C221: =IF((C$32-$A$1)<=0,"",IF(($B221-$A$1*(1-$G$1)/$G$1)<=0,"",$A$5/($A$5-$B$10)*(($A$5*((C$32-$A$1)^$G$1*($B221-$A$1*(1-$G$1)/$G$1)^(1-$G$1)/((20*$G$1-$A$1)^$G$1*(20*(1-$G$1)-$A$1*(1-$G$1)/$G$1)^(1-$G$1)))^(2*$I$5))-$B$10))) ->  | D221: 20 | E221: 40 | F221: 60 | G221: 80 | H221: 100 | I221: 120 | J221: 140 | K221: 160 | L221: 180 | M221: 200 | N221: 220 | O221: 240 | P221: 260 | Q221: 280 | R221: 300 | S221: =IF((S$32-$A$1)<=0,"",IF(($B221-$A$1*(1-$G$1)/$G$1)<=0,"",$A$5/($A$5-$B$10)*(($A$5*((S$32-$A$1)^$G$1*($B221-$A$1*(1-$G$1)/$G$1)^(1-$G$1)/((20*$G$1-$A$1)^$G$1*(20*(1-$G$1)-$A$1*(1-$G$1)/$G$1)^(1-$G$1)))^(2*$I$5))-$B$10))) -> 320 | T221: 340 | U221: 360 | V221: 380 | W221: 400 | AA221: 2.5 | AB221: a, Sub factor | AG221: 0.4 | AH221: r, %I devoted to x if Px = Py
B222: 19 | D222: 19 | E222: 38 | F222: 57 | G222: 76 | H222: 95 | I222: 114 | J222: 133 | K222: 152 | L222: 171 | M222: 190 | N222: 209 | O222: 228 | P222: 247 | Q222: 266 | R222: 285 | S222: 304 | T222: 323 | U222: 342 | V222: 361 | W222: 380 | AA222: 200 | AB222: C, U max with Px = Py | AG222: 0.23 | AH222: f, flattening factor
B223: 18 | D223: 18 | E223: 36 | F223: 54 | G223: 72 | H223: 90 | I223: 108 | J223: 126 | K223: 144 | L223: 162 | M223: 180 | N223: 198 | O223: 216 | P223: 234 | Q223: 252 | R223: 270 | S223: 288 | T223: 306 | U223: 324 | V223: 342 | W223: 360
B224: 17 | D224: 17 | E224: 34 | F224: 51 | G224: 68 | H224: 85 | I224: 102 | J224: 119 | K224: 136 | L224: 153 | M224: 170 | N224: 187 | O224: 204 | P224: 221 | Q224: 238 | R224: 255 | S224: 272 | T224: 289 | U224: 306 | V224: 323 | W224: 340
B225: 16 | D225: 16 | E225: 32 | F225: 48 | G225: 64 | H225: 80 | I225: 96 | J225: 112 | K225: 128 | L225: 144 | M225: 160 | N225: 176 | O225: 192 | P225: 208 | Q225: 224 | R225: 240 | S225: 256 | T225: 272 | U225: 288 | V225: 304 | W225: 320
B226: 15 | D226: 15 | E226: 30 | F226: 45 | G226: 60 | H226: 75 | I226: 90 | J226: 105 | K226: 120 | L226: 135 | M226: 150 | N226: 165 | O226: 180 | P226: 195 | Q226: 210 | R226: 225 | S226: 240 | T226: 255 | U226: 270 | V226: 285 | W226: 300
B227: 14 | D227: 14 | E227: 28 | F227: 42 | G227: 56 | H227: 70 | I227: 84 | J227: 98 | K227: 112 | L227: 126 | M227: 140 | N227: 154 | O227: 168 | P227: 182 | Q227: 196 | R227: 210 | S227: 224 | T227: 238 | U227: 252 | V227: 266 | W227: 280
B228: 13 | D228: 13 | E228: 26 | F228: 39 | G228: 52 | H228: 65 | I228: 78 | J228: 91 | K228: 104 | L228: 117 | M228: 130 | N228: 143 | O228: 156 | P228: 169 | Q228: 182 | R228: 195 | S228: 208 | T228: 221 | U228: 234 | V228: 247 | W228: 260
B229: 12 | D229: 12 | E229: 24 | F229: 36 | G229: 48 | H229: 60 | I229: 72 | J229: 84 | K229: 96 | L229: 108 | M229: 120 | N229: 132 | O229: 144 | P229: 156 | Q229: 168 | R229: 180 | S229: 192 | T229: 204 | U229: 216 | V229: 228 | W229: 240
B230: 11 | D230: 11 | E230: 22 | F230: 33 | G230: 44 | H230: 55 | I230: 66 | J230: 77 | K230: 88 | L230: 99 | M230: 110 | N230: 121 | O230: 132 | P230: 143 | Q230: 154 | R230: 165 | S230: 176 | T230: 187 | U230: 198 | V230: 209 | W230: 220
B231: 10 | D231: 10 | E231: 20 | F231: 30 | G231: 40 | H231: 50 | I231: 60 | J231: 70 | K231: 80 | L231: 90 | M231: 100 | N231: 110 | O231: 120 | P231: 130 | Q231: 140 | R231: 150 | S231: 160 | T231: 170 | U231: 180 | V231: 190 | W231: 200
B232: 9 | D232: 9 | E232: 18 | F232: 27 | G232: 36 | H232: 45 | I232: 54 | J232: 63 | K232: 72 | L232: 81 | M232: 90 | N232: 99 | O232: 108 | P232: 117 | Q232: 126 | R232: 135 | S232: 144 | T232: 153 | U232: 162 | V232: 171 | W232: 180
B233: 8 | D233: 8 | E233: 16 | F233: 24 | G233: 32 | H233: 40 | I233: 48 | J233: 56 | K233: 64 | L233: 72 | M233: 80 | N233: 88 | O233: 96 | P233: 104 | Q233: 112 | R233: 120 | S233: 128 | T233: 136 | U233: 144 | V233: 152 | W233: 160
B234: 7 | D234: 7 | E234: 14 | F234: 21 | G234: 28 | H234: 35 | I234: 42 | J234: 49 | K234: 56 | L234: 63 | M234: 70 | N234: 77 | O234: 84 | P234: 91 | Q234: 98 | R234: 105 | S234: 112 | T234: 119 | U234: 126 | V234: 133 | W234: 140
B235: 6 | D235: 6 | E235: 12 | F235: 18 | G235: 24 | H235: 30 | I235: 36 | J235: 42 | K235: 48 | L235: 54 | M235: 60 | N235: 66 | O235: 72 | P235: 78 | Q235: 84 | R235: 90 | S235: 96 | T235: 102 | U235: 108 | V235: 114 | W235: 120
B236: 5 | D236: 5 | E236: 10 | F236: 15 | G236: 20 | H236: 25 | I236: 30 | J236: 35 | K236: 40 | L236: 45 | M236: 50 | N236: 55 | O236: 60 | P236: 65 | Q236: 70 | R236: =IF((R$32-$A$1)<=0,"",IF(($B236-$A$1*(1-$G$1)/$G$1)<=0,"",$A$5/($A$5-$B$10)*(($A$5*((R$32-$A$1)^$G$1*($B236-$A$1*(1-$G$1)/$G$1)^(1-$G$1)/((20*$G$1-$A$1)^$G$1*(20*(1-$G$1)-$A$1*(1-$G$1)/$G$1)^(1-$G$1)))^(2*$I$5))-$B$10))) -> 75 | S236: 80 | T236: 85 | U236: 90 | V236: 95 | W236: 100
B237: 4 | C237: =IF((C$32-$A$1)<=0,"",IF(($B237-$A$1*(1-$G$1)/$G$1)<=0,"",$A$5/($A$5-$B$10)*(($A$5*((C$32-$A$1)^$G$1*($B237-$A$1*(1-$G$1)/$G$1)^(1-$G$1)/((20*$G$1-$A$1)^$G$1*(20*(1-$G$1)-$A$1*(1-$G$1)/$G$1)^(1-$G$1)))^(2*$I$5))-$B$10))) ->  | D237: 4 | E237: 8 | F237: 12 | G237: 16 | H237: 20 | I237: 24 | J237: 28 | K237: 32 | L237: 36 | M237: 40 | N237: 44 | O237: 48 | P237: 52 | Q237: 56 | R237: 60 | S237: 64 | T237: 68 | U237: 72 | V237: 76 | W237: 80
B238: 3 | D238: 3 | E238: 6 | F238: 9 | G238: 12 | H238: 15 | I238: 18 | J238: 21 | K238: 24 | L238: 27 | M238: 30 | N238: 33 | O238: 36 | P238: 39 | Q238: 42 | R238: 45 | S238: 48 | T238: 51 | U238: 54 | V238: 57 | W238: 60
B239: 2 | D239: 2 | E239: 4 | F239: 6 | G239: 8 | H239: 10 | I239: 12 | J239: 14 | K239: 16 | L239: 18 | M239: 20 | N239: 22 | O239: 24 | P239: 26 | Q239: 28 | R239: 30 | S239: 32 | T239: 34 | U239: 36 | V239: 38 | W239: 40
... 103 more rows

Sheet Price & Income Scenarios
A1: Alternative Consumer Choice Income, Px­ and Px¯ Scenarios yielding Integer Bundle Solutions given U(x, y) = x∙y (Table 3) and Py = $1
A2: Income (Base cell R2) | B2: Low Px (Base cell N2) | C2: High Px (Base cell O2) | D2: Low Price Bundle | F2: High Price Bundle | H2: Px­ Subsitution Bundle | J2: Px¯ Subsitution Bundle | M2: Cost of Substitution bundle | O2: Required Compensation
D3: x | E3: y | F3: x | G3: y | H3: x | I3: y | J3: x | K3: y | L3: Scenario Notes | M3: Px­ case | N3: Px¯ case | O3: Px­ case | P3: Px¯ case
A4: 4 | B4: 0.1 | C4: 0.4 | D4: 20 | E4: 2 | F4: 5 | G4: 2 | H4: 10 | I4: 4 | J4: 10 | K4: 1 | L4: One bundle has x = 20 | M4: =C4*H4+I4 -> 8 | N4: =B4*J4+K4 -> 2 | O4: =M4-A4 -> 4 | P4: =A4-N4 -> 2
A5: 8 | B5: 0.2 | C5: 0.8 | D5: 20 | E5: 4 | F5: 5 | G5: 4 | H5: 10 | I5: 8 | J5: 10 | K5: 2 | L5: One bundle has x = 20 | M5: 16 | N5: 4 | O5: 8 | P5: 4
A6: 4 | B6: 0.25 | C6: 1 | D6: 8 | E6: 2 | F6: 2 | G6: 2 | H6: 4 | I6: 4 | J6: 4 | K6: 1 | M6: 8 | N6: 2 | O6: 4 | P6: 2
A7: 8 | B7: 0.25 | C7: 1 | D7: 16 | E7: 4 | F7: 4 | G7: 4 | H7: 8 | I7: 8 | J7: 8 | K7: 2 | M7: 16 | N7: 4 | O7: 8 | P7: 4
A8: 12 | B8: 0.3 | C8: 1.2 | D8: 20 | E8: 6 | F8: 5 | G8: 6 | H8: 10 | I8: 12 | J8: 10 | K8: 3 | L8: One bundle has x = 20 | M8: 24 | N8: 6 | O8: 12 | P8: 6
A9: 16 | B9: 0.4 | C9: 1.6 | D9: 20 | E9: 8 | F9: 5 | G9: 8 | H9: 10 | I9: 16 | J9: 10 | K9: 4 | L9: One bundle has x = 20 | M9: =C9*H9+I9 -> 32 | N9: =B9*J9+K9 -> 8 | O9: =M9-A9 -> 16 | P9: =A9-N9 -> 8
A10: 4 | B10: 0.5 | C10: 2 | D10: 4 | E10: 2 | F10: 1 | G10: 2 | H10: 2 | I10: 4 | J10: 2 | K10: 1 | M10: =C10*H10+I10 -> 8 | N10: =B10*J10+K10 -> 2 | O10: =M10-A10 -> 4 | P10: =A10-N10 -> 2
A11: 8 | B11: 0.5 | C11: 2 | D11: 8 | E11: 4 | F11: 2 | G11: 4 | H11: 4 | I11: 8 | J11: 4 | K11: 2 | M11: 16 | N11: 4 | O11: 8 | P11: 4
A12: 12 | B12: 0.5 | C12: 2 | D12: 12 | E12: 6 | F12: 3 | G12: 6 | H12: 6 | I12: 12 | J12: 6 | K12: 3 | L12: Scenario used in the paper | M12: 24 | N12: 6 | O12: 12 | P12: 6
A13: 16 | B13: 0.5 | C13: 2 | D13: 16 | E13: 8 | F13: 4 | G13: 8 | H13: 8 | I13: 16 | J13: 8 | K13: 4 | M13: 32 | N13: 8 | O13: 16 | P13: 8
A14: 20 | B14: 0.5 | C14: 2 | D14: 20 | E14: 10 | F14: 5 | G14: 10 | H14: 10 | I14: 20 | J14: 10 | K14: 5 | L14: Two bundles have x = 20 or y = 20 | M14: 40 | N14: 10 | O14: 20 | P14: 10
A15: 12 | B15: 0.75 | C15: 3 | D15: 8 | E15: 6 | F15: 2 | G15: 6 | H15: 4 | I15: 12 | J15: 4 | K15: 3 | M15: 24 | N15: 6 | O15: 12 | P15: 6
A16: 8 | B16: 1 | C16: 4 | D16: 4 | E16: 4 | F16: 1 | G16: 4 | H16: 2 | I16: 8 | J16: 2 | K16: 2 | M16: 16 | N16: 4 | O16: 8 | P16: 4
A17: 16 | B17: 1 | C17: 4 | D17: 8 | E17: 8 | F17: 2 | G17: 8 | H17: 4 | I17: 16 | J17: 4 | K17: 4 | M17: 32 | N17: 8 | O17: 16 | P17: 8
A18: 18 | B18: 0.5 | C18: 4.5 | D18: 18 | E18: 9 | F18: 2 | G18: 9 | H18: 6 | I18: 27 | J18: 6 | K18: 3 | L18: Do Px¯ only. Px­ has ysub > 20 | M18: 54 | N18: 6 | O18: 36 | P18: 12
A19: 18 | B19: 1 | C19: 9 | D19: 9 | E19: 9 | F19: 1 | G19: 9 | H19: 3 | I19: 27 | J19: 3 | K19: 3 | L19: Do Px¯ only. Px­ has ysub > 20 | M19: 54 | N19: 6 | O19: 36 | P19: 12
A20: 20 | B20: 1.25 | C20: 5 | D20: 8 | E20: 10 | F20: 2 | G20: 10 | H20: 4 | I20: 20 | J20: 4 | K20: 5 | L20: One bundle has y = 20 | M20: =C20*H20+I20 -> 40 | N20: =B20*J20+K20 -> 10 | O20: =M20-A20 -> 20 | P20: =A20-N20 -> 10
A21: 12 | B21: 1.5 | C21: 6 | D21: 4 | E21: 6 | F21: 1 | G21: 6 | H21: 2 | I21: 12 | J21: 2 | K21: 3 | M21: 24 | N21: 6 | O21: 12 | P21: 6
A22: 24 | B22: 1.5 | C22: 6 | D22: 8 | E22: 12 | F22: 2 | G22: 12 | H22: 4 | I22: 24 | J22: 4 | K22: 6 | L22: Do Px¯ only. Px­ has ysub > 20 | M22: 48 | N22: 12 | O22: 24 | P22: 12
A23: 16 | B23: 2 | C23: 8 | D23: 4 | E23: 8 | F23: 1 | G23: 8 | H23: 2 | I23: 16 | J23: 2 | K23: 4 | M23: 32 | N23: 8 | O23: 16 | P23: 8
A24: 20 | B24: 2.5 | C24: 10 | D24: 4 | E24: 10 | F24: 1 | G24: 10 | H24: 2 | I24: 20 | J24: 2 | K24: 5 | L24: One bundle has y = 20 | M24: 40 | N24: 10 | O24: 20 | P24: 10
A56: =#REF! ->  | B56: =#REF! ->  | C56: =#REF! ->  | D56: =#REF! ->  | E56: =#REF! ->  | F56: =#REF! ->  | G56: =#REF! ->  | H56: =#REF! ->  | I56: =#REF! ->  | J56: =#REF! ->  | K56: =#REF! -> 
A61: =#REF! ->  | B61: =#REF! ->  | C61: =#REF! ->  | D61: =#REF! ->  | E61: =#REF! ->  | F61: =#REF! ->  | G61: =#REF! ->  | H61: =#REF! ->  | I61: =#REF! ->  | J61: =#REF! ->  | K61: =#REF! -> 

Sheet Equations (hidden)
A1: =Base!A1 -> 0 | B1: a, sub factor | E1: Initial BC | F1: FALSE | I1: Sub BC Pinc | J1: FALSE | L1: Sub BC Pdec | M1: FALSE | O1: Before sending, hide this tab. Do this by clicking on the tab, then select hide. To unhide, click on any tab that is visible and click unhide.
A2: =Base!I5 -> 1 | B2: b, flattening factor | E2: x | F2: y | I2: x | J2: y | L2: x | M2: y
A3: =Base!G1 -> 0.5 | B3: r, %I devoted to x if Px = Py | E3: 0 | F3: =IF(F1,A5,100) -> 100 | I3: 0 | J3: =IF(J1,J12,100) -> 100 | L3: 0 | M3: =IF(M1,M12,100) -> 100
A4: =Base!A5 -> 100 | B4: C, Maximum U level if Px = Py | E4: =IF(F1,A5/A6,100) -> 100 | F4: 0 | I4: =IF(J1,J12/J8,100) -> 100 | J4: 0 | L4: =IF(M1,M12/M8,100) -> 100 | M4: 0
A5: =Base!R2 -> 12 | B5: Income | C5: U(x,y) = C∙((x-a)r∙(y-a(1-r)/r)(1-r)/((20r-a)r(20(1-r)-a(1-r)/r)(1-r)))(2f) | K5: if a >= 0. If a < 0, U is scaled by z = U(0, 0) as V(x, y) = C/(C-z)*(U(x, y)-z) This is a monotonic transformation that sets the utility of (0,0) to 0 and U with both prices = $1 of C.
A6: =Base!N2 -> 1 | B6: Pxinitial | E6: Final BC | F6: FALSE
A7: =Base!O2 -> 2 | B7: Pxfinal | E7: x | F7: y | I7: SubInc given | J7: Px 1-->2 | L7: SubDec given | M7: Px 2-->1
E8: 0 | F8: =IF(F6,A5,0) -> 0 | I8: Px | J8: =A7 -> 2 | L8: Px | M8: =A6 -> 1
E9: =IF(F6,A5/A7,0) -> 0 | F9: 0 | I9: x | J9: =$B$13*((1/J8)*($A$3/(1-$A$3)))^(1-$A$3)+$A$1 -> 4.242640687 | L9: x | M9: =$F$13*((1/M8)*($A$3/(1-$A$3)))^(1-$A$3)+$A$1 -> 4.242640687
A10: Px= | B10: =A6 -> 1 | E10: Px= | F10: =A7 -> 2 | I10: y | J10: =$B$13*(J8*((1-$A$3)/$A$3))^$A$3+$A$1*(1-$A$3)/$A$3 -> 8.485281374 | L10: y | M10: =F13*(M8*((1-$A$3)/$A$3))^$A$3+$A$1*(1-$A$3)/$A$3 -> 4.242640687
A11: x | B11: =(A5*$A$3+(1-$A$3)*$A$1*(B10-1))/B10 -> 6 | E11: x | F11: =(A5*$A$3+(1-$A$3)*$A$1*(F10-1))/F10 -> 3 | I11: Utility | J11: =(J9-$A$1)^$A$3*(J10-$A$1*(1-$A$3)/$A$3)^(1-$A$3) -> 6 | L11: Utility | M11: =(M9-$A$1)^$A$3*(M10-$A$1*(1-$A$3)/$A$3)^(1-$A$3) -> 4.242640687
A12: y | B12: =A5*(1-$A$3)+(1-$A$3)*$A$1*(1-B10) -> 6 | C12: check | E12: y | F12: =A5*(1-$A$3)+(1-$A$3)*$A$1*(1-F10) -> 6 | I12: Income | J12: =J8*J9+J10 -> 16.97056275 | L12: Income | M12: =M8*M9+M10 -> 8.485281374
A13: Utility | B13: =(B11-$A$1)^$A$3*(B12-$A$1*(1-$A$3)/$A$3)^(1-$A$3) -> 6 | C13: =B13 -> 6 | E13: Utility | F13: =(F11-$A$1)^$A$3*(F12-$A$1*(1-$A$3)/$A$3)^(1-$A$3) -> 4.242640687
B14: U1 | C14: FALSE | F14: U1 | G14: FALSE | I14: SubPinc | J14: FALSE | L14: SubPdec | M14: FALSE
A15: x no shift | B15: x | C15: y | E15: x no shift | F15: x | G15: y | I15: =IF(J14,B11,0) -> 0 | J15: =IF(J14,B12,0) -> 0 | L15: =IF(M14,F11,0) -> 0 | M15: =IF(M14,F12,0) -> 0
A16: =IF(A1=0,0.0001,0) -> 0.0001 | B16: =IF(A16>$A$1,A16,100000) -> 0.0001 | C16: =IF($C$14=TRUE,(B$13/(B16-$A$1)^$A$3)^(1/(1-$A$3))+$A$1*(1-$A$3)/$A$3,100) -> 100 | E16: =A16 -> 0.0001 | F16: =IF($G$14=TRUE,IF(E16>$A$1,E16,100000),"") ->  | G16: =IF($G$14=TRUE,(F$13/(F16-$A$1)^$A$3)^(1/(1-$A$3))+$A$1*(1-$A$3)/$A$3,100) -> 100 | I16: =IF(J14,J9,0) -> 0 | J16: =IF(J14,J10,0) -> 0 | L16: =IF(M14,M9,0) -> 0 | M16: =IF(M14,M10,0) -> 0
A17: 0.1 | B17: 0.1 | C17: =IF($C$14=TRUE,(B$13/(B17-$A$1)^$A$3)^(1/(1-$A$3))+$A$1*(1-$A$3)/$A$3,100) -> 100 | E17: 0.1 | G17: 100
A18: 0.2 | B18: 0.2 | C18: 100 | E18: 0.2 | G18: 100 | I18: IncPinc | J18: FALSE | L18: IncPinc | M18: FALSE
A19: 0.3 | B19: 0.3 | C19: 100 | E19: 0.3 | G19: 100 | I19: =IF(J18,J9,0) -> 0 | J19: =IF(J18,J10,0) -> 0 | L19: =IF(M18,M9,0) -> 0 | M19: =IF(M18,M10,0) -> 0
A20: 0.4 | B20: 0.4 | C20: 100 | E20: 0.4 | G20: 100 | I20: =IF(J18,F11,0) -> 0 | J20: =IF(J18,F12,0) -> 0 | L20: =IF(M18,B11,0) -> 0 | M20: =IF(M18,B12,0) -> 0
A21: 0.5 | B21: 0.5 | C21: 100 | E21: 0.5 | G21: 100
A22: 0.6 | B22: 0.6 | C22: 100 | E22: 0.6 | G22: 100
A23: 0.7 | B23: 0.7 | C23: 100 | E23: 0.7 | G23: 100
A24: 0.8 | B24: 0.8 | C24: 100 | E24: 0.8 | G24: 100
A25: 0.9 | B25: 0.9 | C25: 100 | E25: 0.9 | G25: 100
A26: 1 | B26: 1 | C26: 100 | E26: 1 | G26: 100
A27: 1.1 | B27: 1.1 | C27: 100 | E27: 1.1 | G27: 100
A28: 1.2 | B28: 1.2 | C28: 100 | E28: 1.2 | G28: 100
A29: 1.3 | B29: 1.3 | C29: 100 | E29: 1.3 | G29: 100
A30: 1.4 | B30: 1.4 | C30: 100 | E30: 1.4 | G30: 100
A31: 1.5 | B31: 1.5 | C31: 100 | E31: 1.5 | G31: 100
A32: 1.6 | B32: 1.6 | C32: 100 | E32: 1.6 | G32: 100
A33: 1.7 | B33: 1.7 | C33: 100 | E33: 1.7 | G33: 100
A34: 1.8 | B34: 1.8 | C34: 100 | E34: 1.8 | G34: 100
A35: 1.9 | B35: 1.9 | C35: 100 | E35: 1.9 | G35: 100
A36: 2 | B36: 2 | C36: 100 | E36: 2 | G36: 100
A37: 2.1 | B37: 2.1 | C37: 100 | E37: 2.1 | G37: 100
A38: 2.2 | B38: 2.2 | C38: 100 | E38: 2.2 | G38: 100
A39: 2.3 | B39: 2.3 | C39: 100 | E39: 2.3 | G39: 100
A40: 2.4 | B40: 2.4 | C40: 100 | E40: 2.4 | G40: 100
A41: 2.5 | B41: 2.5 | C41: 100 | E41: 2.5 | G41: 100
A42: 2.6 | B42: 2.6 | C42: 100 | E42: 2.6 | G42: 100
A43: 2.7 | B43: 2.7 | C43: 100 | E43: 2.7 | G43: 100
A44: 2.8 | B44: 2.8 | C44: 100 | E44: 2.8 | G44: 100
A45: 2.9 | B45: 2.9 | C45: 100 | E45: 2.9 | G45: 100
A46: 3 | B46: 3 | C46: 100 | E46: 3 | G46: 100
A47: 3.1 | B47: 3.1 | C47: 100 | E47: 3.1 | G47: 100
A48: 3.2 | B48: 3.2 | C48: 100 | E48: 3.2 | G48: 100
A49: 3.3 | B49: 3.3 | C49: 100 | E49: 3.3 | G49: 100
A50: 3.4 | B50: 3.4 | C50: 100 | E50: 3.4 | G50: 100
A51: 3.5 | B51: 3.5 | C51: 100 | E51: 3.5 | G51: 100
A52: 3.6 | B52: 3.6 | C52: 100 | E52: 3.6 | G52: 100
A53: 3.7 | B53: 3.7 | C53: 100 | E53: 3.7 | G53: 100
A54: 3.8 | B54: 3.8 | C54: 100 | E54: 3.8 | G54: 100
A55: 3.9 | B55: 3.9 | C55: 100 | E55: 3.9 | G55: 100
A56: 4 | B56: 4 | C56: 100 | E56: 4 | G56: 100
A57: 4.01 | B57: 4.01 | C57: 100 | E57: 4.01 | G57: 100
A58: 4.1 | B58: 4.1 | C58: 100 | E58: 4.1 | G58: 100
A59: 4.2 | B59: 4.2 | C59: 100 | E59: 4.2 | G59: 100
A60: 4.3 | B60: 4.3 | C60: 100 | E60: 4.3 | G60: 100
A61: 4.4 | B61: 4.4 | C61: 100 | E61: 4.4 | G61: 100
A62: 4.5 | B62: 4.5 | C62: 100 | E62: 4.5 | G62: 100
A63: 4.6 | B63: 4.6 | C63: 100 | E63: 4.6 | G63: 100
A64: 4.7 | B64: 4.7 | C64: 100 | E64: 4.7 | G64: 100
A65: 4.8 | B65: 4.8 | C65: 100 | E65: 4.8 | G65: 100
A66: 4.9 | B66: 4.9 | C66: 100 | E66: 4.9 | G66: 100
A67: 5 | B67: 5 | C67: 100 | E67: 5 | G67: 100
A68: 5.1 | B68: 5.1 | C68: 100 | E68: 5.1 | G68: 100
A69: 5.2 | B69: 5.2 | C69: 100 | E69: 5.2 | G69: 100
A70: 5.3 | B70: 5.3 | C70: 100 | E70: 5.3 | G70: 100
A71: 5.4 | B71: 5.4 | C71: 100 | E71: 5.4 | G71: 100
A72: 5.5 | B72: 5.5 | C72: 100 | E72: 5.5 | G72: 100
A73: 5.6 | B73: 5.6 | C73: 100 | E73: 5.6 | G73: 100
A74: 5.7 | B74: 5.7 | C74: 100 | E74: 5.7 | G74: 100
A75: 5.8 | B75: 5.8 | C75: 100 | E75: 5.8 | G75: 100
A76: 5.9 | B76: 5.9 | C76: 100 | E76: 5.9 | G76: 100
A77: 6 | B77: 6 | C77: 100 | E77: 6 | G77: 100
A78: 6.1 | B78: 6.1 | C78: 100 | E78: 6.1 | G78: 100
A79: 6.2 | B79: 6.2 | C79: 100 | E79: 6.2 | G79: 100
A80: 6.3 | B80: =IF(A80>$A$1,A80,100000) -> 6.3 | C80: =IF($C$14=TRUE,(B$13/(B80-$A$1)^$A$3)^(1/(1-$A$3))+$A$1*(1-$A$3)/$A$3,100) -> 100 | E80: 6.3 | F80: =IF($G$14=TRUE,IF(E80>$A$1,E80,100000),"") ->  | G80: =IF($G$14=TRUE,(F$13/(F80-$A$1)^$A$3)^(1/(1-$A$3))+$A$1*(1-$A$3)/$A$3,100) -> 100
A81: 6.4 | B81: 6.4 | C81: 100 | E81: 6.4 | G81: 100
A82: 6.5 | B82: 6.5 | C82: 100 | E82: 6.5 | G82: 100
A83: 6.6 | B83: 6.6 | C83: 100 | E83: 6.6 | G83: 100
A84: 6.7 | B84: 6.7 | C84: 100 | E84: 6.7 | G84: 100
A85: 6.8 | B85: 6.8 | C85: 100 | E85: 6.8 | G85: 100
A86: 6.9 | B86: 6.9 | C86: 100 | E86: 6.9 | G86: 100
A87: 7 | B87: 7 | C87: 100 | E87: 7 | G87: 100
A88: 7.1 | B88: 7.1 | C88: 100 | E88: 7.1 | G88: 100
A89: 7.2 | B89: 7.2 | C89: 100 | E89: 7.2 | G89: 100
A90: 7.3 | B90: 7.3 | C90: 100 | E90: 7.3 | G90: 100
A91: 7.4 | B91: 7.4 | C91: 100 | E91: 7.4 | G91: 100
A92: 7.5 | B92: 7.5 | C92: 100 | E92: 7.5 | G92: 100
A93: 7.6 | B93: 7.6 | C93: 100 | E93: 7.6 | G93: 100
A94: 7.7 | B94: 7.7 | C94: 100 | E94: 7.7 | G94: 100
A95: 7.8 | B95: 7.8 | C95: 100 | E95: 7.8 | G95: 100
A96: 7.9 | B96: 7.9 | C96: 100 | E96: 7.9 | G96: 100
A97: 8 | B97: 8 | C97: 100 | E97: 8 | G97: 100
A98: 8.1 | B98: 8.1 | C98: 100 | E98: 8.1 | G98: 100
A99: 8.2 | B99: 8.2 | C99: 100 | E99: 8.2 | G99: 100
A100: 8.3 | B100: 8.3 | C100: 100 | E100: 8.3 | G100: 100
A101: 8.4 | B101: 8.4 | C101: 100 | E101: 8.4 | G101: 100
A102: 8.5 | B102: 8.5 | C102: 100 | E102: 8.5 | G102: 100
A103: 8.6 | B103: 8.6 | C103: 100 | E103: 8.6 | G103: 100
A104: 8.7 | B104: 8.7 | C104: 100 | E104: 8.7 | G104: 100
A105: 8.8 | B105: 8.8 | C105: 100 | E105: 8.8 | G105: 100
A106: 8.9 | B106: 8.9 | C106: 100 | E106: 8.9 | G106: 100
A107: 9 | B107: 9 | C107: 100 | E107: 9 | G107: 100
A108: 9.1 | B108: 9.1 | C108: 100 | E108: 9.1 | G108: 100
A109: 9.2 | B109: 9.2 | C109: 100 | E109: 9.2 | G109: 100
A110: 9.3 | B110: 9.3 | C110: 100 | E110: 9.3 | G110: 100
A111: 9.4 | B111: 9.4 | C111: 100 | E111: 9.4 | G111: 100
A112: 9.5 | B112: 9.5 | C112: 100 | E112: 9.5 | G112: 100
A113: 9.6 | B113: 9.6 | C113: 100 | E113: 9.6 | G113: 100
A114: 9.7 | B114: 9.7 | C114: 100 | E114: 9.7 | G114: 100
A115: 9.8 | B115: 9.8 | C115: 100 | E115: 9.8 | G115: 100
A116: 9.9 | B116: 9.9 | C116: 100 | E116: 9.9 | G116: 100
A117: 10 | B117: 10 | C117: 100 | E117: 10 | G117: 100
A118: 10.1 | B118: 10.1 | C118: 100 | E118: 10.1 | G118: 100
A119: 10.2 | B119: 10.2 | C119: 100 | E119: 10.2 | G119: 100
A120: 10.3 | B120: 10.3 | C120: 100 | E120: 10.3 | G120: 100
A121: 10.4 | B121: 10.4 | C121: 100 | E121: 10.4 | G121: 100
A122: 10.5 | B122: 10.5 | C122: 100 | E122: 10.5 | G122: 100
A123: 10.6 | B123: 10.6 | C123: 100 | E123: 10.6 | G123: 100
A124: 10.7 | B124: 10.7 | C124: 100 | E124: 10.7 | G124: 100
A125: 10.8 | B125: 10.8 | C125: 100 | E125: 10.8 | G125: 100
A126: 10.9 | B126: 10.9 | C126: 100 | E126: 10.9 | G126: 100
A127: 11 | B127: 11 | C127: 100 | E127: 11 | G127: 100
A128: 11.1 | B128: 11.1 | C128: 100 | E128: 11.1 | G128: 100
A129: 11.2 | B129: 11.2 | C129: 100 | E129: 11.2 | G129: 100
A130: 11.3 | B130: 11.3 | C130: 100 | E130: 11.3 | G130: 100
A131: 11.4 | B131: 11.4 | C131: 100 | E131: 11.4 | G131: 100
A132: 11.5 | B132: 11.5 | C132: 100 | E132: 11.5 | G132: 100
A133: 11.6 | B133: 11.6 | C133: 100 | E133: 11.6 | G133: 100
A134: 11.7 | B134: 11.7 | C134: 100 | E134: 11.7 | G134: 100
A135: 11.8 | B135: 11.8 | C135: 100 | E135: 11.8 | G135: 100
A136: 11.9 | B136: 11.9 | C136: 100 | E136: 11.9 | G136: 100
A137: 12 | B137: 12 | C137: 100 | E137: 12 | G137: 100
A138: 12.1 | B138: 12.1 | C138: 100 | E138: 12.1 | G138: 100
A139: 12.2 | B139: 12.2 | C139: 100 | E139: 12.2 | G139: 100
A140: 12.3 | B140: 12.3 | C140: 100 | E140: 12.3 | G140: 100
A141: 12.4 | B141: 12.4 | C141: 100 | E141: 12.4 | G141: 100
A142: 12.5 | B142: 12.5 | C142: 100 | E142: 12.5 | G142: 100
A143: 12.6 | B143: 12.6 | C143: 100 | E143: 12.6 | G143: 100
A144: 12.7 | B144: =IF(A144>$A$1,A144,100000) -> 12.7 | C144: =IF($C$14=TRUE,(B$13/(B144-$A$1)^$A$3)^(1/(1-$A$3))+$A$1*(1-$A$3)/$A$3,100) -> 100 | E144: 12.7 | F144: =IF($G$14=TRUE,IF(E144>$A$1,E144,100000),"") ->  | G144: =IF($G$14=TRUE,(F$13/(F144-$A$1)^$A$3)^(1/(1-$A$3))+$A$1*(1-$A$3)/$A$3,100) -> 100
A145: 12.8 | B145: 12.8 | C145: 100 | E145: 12.8 | G145: 100
A146: 12.9 | B146: 12.9 | C146: 100 | E146: 12.9 | G146: 100
A147: 13 | B147: 13 | C147: 100 | E147: 13 | G147: 100
A148: 13.1 | B148: 13.1 | C148: 100 | E148: 13.1 | G148: 100
A149: 13.2 | B149: 13.2 | C149: 100 | E149: 13.2 | G149: 100
A150: 13.3 | B150: 13.3 | C150: 100 | E150: 13.3 | G150: 100
A151: 13.4 | B151: 13.4 | C151: 100 | E151: 13.4 | G151: 100
A152: 13.5 | B152: 13.5 | C152: 100 | E152: 13.5 | G152: 100
A153: 13.6 | B153: 13.6 | C153: 100 | E153: 13.6 | G153: 100
A154: 13.7 | B154: 13.7 | C154: 100 | E154: 13.7 | G154: 100
A155: 13.8 | B155: 13.8 | C155: 100 | E155: 13.8 | G155: 100
A156: 13.9 | B156: 13.9 | C156: 100 | E156: 13.9 | G156: 100
A157: 14 | B157: 14 | C157: 100 | E157: 14 | G157: 100
A158: 14.1 | B158: 14.1 | C158: 100 | E158: 14.1 | G158: 100
A159: 14.2 | B159: 14.2 | C159: 100 | E159: 14.2 | G159: 100
A160: 14.3 | B160: 14.3 | C160: 100 | E160: 14.3 | G160: 100
A161: 14.4 | B161: 14.4 | C161: 100 | E161: 14.4 | G161: 100
A162: 14.5 | B162: 14.5 | C162: 100 | E162: 14.5 | G162: 100
A163: 14.6 | B163: 14.6 | C163: 100 | E163: 14.6 | G163: 100
A164: 14.7 | B164: 14.7 | C164: 100 | E164: 14.7 | G164: 100
A165: 14.8 | B165: 14.8 | C165: 100 | E165: 14.8 | G165: 100
A166: 14.9 | B166: 14.9 | C166: 100 | E166: 14.9 | G166: 100
A167: 15 | B167: 15 | C167: 100 | E167: 15 | G167: 100
A168: 15.1 | B168: 15.1 | C168: 100 | E168: 15.1 | G168: 100
A169: 15.2 | B169: 15.2 | C169: 100 | E169: 15.2 | G169: 100
A170: 15.3 | B170: 15.3 | C170: 100 | E170: 15.3 | G170: 100
A171: 15.4 | B171: 15.4 | C171: 100 | E171: 15.4 | G171: 100
A172: 15.5 | B172: 15.5 | C172: 100 | E172: 15.5 | G172: 100
A173: 15.6 | B173: 15.6 | C173: 100 | E173: 15.6 | G173: 100
A174: 15.7 | B174: 15.7 | C174: 100 | E174: 15.7 | G174: 100
A175: 15.8 | B175: 15.8 | C175: 100 | E175: 15.8 | G175: 100
A176: 15.9 | B176: 15.9 | C176: 100 | E176: 15.9 | G176: 100
A177: 16 | B177: 16 | C177: 100 | E177: 16 | G177: 100
A178: 16.1 | B178: 16.1 | C178: 100 | E178: 16.1 | G178: 100
A179: 16.2 | B179: 16.2 | C179: 100 | E179: 16.2 | G179: 100
A180: 16.3 | B180: 16.3 | C180: 100 | E180: 16.3 | G180: 100
A181: 16.4 | B181: 16.4 | C181: 100 | E181: 16.4 | G181: 100
A182: 16.5 | B182: 16.5 | C182: 100 | E182: 16.5 | G182: 100
A183: 16.6 | B183: 16.6 | C183: 100 | E183: 16.6 | G183: 100
A184: 16.7 | B184: 16.7 | C184: 100 | E184: 16.7 | G184: 100
A185: 16.8 | B185: 16.8 | C185: 100 | E185: 16.8 | G185: 100
A186: 16.9 | B186: 16.9 | C186: 100 | E186: 16.9 | G186: 100
A187: 17 | B187: 17 | C187: 100 | E187: 17 | G187: 100
A188: 17.1 | B188: 17.1 | C188: 100 | E188: 17.1 | G188: 100
A189: 17.2 | B189: 17.2 | C189: 100 | E189: 17.2 | G189: 100
A190: 17.3 | B190: 17.3 | C190: 100 | E190: 17.3 | G190: 100
A191: 17.4 | B191: 17.4 | C191: 100 | E191: 17.4 | G191: 100
A192: 17.5 | B192: 17.5 | C192: 100 | E192: 17.5 | G192: 100
A193: 17.6 | B193: 17.6 | C193: 100 | E193: 17.6 | G193: 100
A194: 17.7 | B194: 17.7 | C194: 100 | E194: 17.7 | G194: 100
A195: 17.8 | B195: 17.8 | C195: 100 | E195: 17.8 | G195: 100
A196: 17.9 | B196: 17.9 | C196: 100 | E196: 17.9 | G196: 100
A197: 18 | B197: 18 | C197: 100 | E197: 18 | G197: 100
A198: 18.1 | B198: 18.1 | C198: 100 | E198: 18.1 | G198: 100
A199: 18.2 | B199: 18.2 | C199: 100 | E199: 18.2 | G199: 100
A200: 18.3 | B200: 18.3 | C200: 100 | E200: 18.3 | G200: 100
... 31 more rows

Sheet Utility Tables
AA1: This table is not shown in the JET article but is discussed in footnote 5 in the article.
A2: Table 3a - An altered Indifference Map where x and y are Independent Goods | AB2: Note: Prices and income can only be changed in N2:R2 of the Base sheet.
AD3: Budget Constraint | AI3: $L to $H | AK3: $H to $L
B4: 20 | C4: =$B4*C$24 -> 20 | D4: =$B4*D$24 -> 40 | E4: 60 | F4: 80 | G4: 100 | H4: 120 | I4: 140 | J4: 160 | K4: 180 | L4: 200 | M4: 220 | N4: 240 | O4: 260 | P4: 280 | Q4: 300 | R4: 320 | S4: 340 | T4: 360 | U4: 380 | V4: 400 | AD4: Indifference Curve | AL4: Substitution BC
B5: 19 | C5: 19 | D5: 38 | E5: 57 | F5: 76 | G5: 95 | H5: 114 | I5: 133 | J5: 152 | K5: 171 | L5: 190 | M5: 209 | N5: 228 | O5: 247 | P5: 266 | Q5: 285 | R5: 304 | S5: 323 | T5: 342 | U5: 361 | V5: 380 | AB5: L | AC5: H | AD5: Price of x. | AL5: Substitution effect
B6: 18 | C6: 18 | D6: 36 | E6: 54 | F6: 72 | G6: 90 | H6: 108 | I6: 126 | J6: 144 | K6: 162 | L6: 180 | M6: 198 | N6: 216 | O6: 234 | P6: 252 | Q6: 270 | R6: 288 | S6: 306 | T6: 324 | U6: 342 | V6: 360 | AL6: Income effect
B7: 17 | C7: 17 | D7: 34 | E7: 51 | F7: 68 | G7: 85 | H7: 102 | I7: 119 | J7: 136 | K7: 153 | L7: 170 | M7: 187 | N7: 204 | O7: 221 | P7: 238 | Q7: 255 | R7: 272 | S7: 289 | T7: 306 | U7: 323 | V7: 340
B8: 16 | C8: 16 | D8: 32 | E8: 48 | F8: 64 | G8: 80 | H8: 96 | I8: 112 | J8: 128 | K8: 144 | L8: 160 | M8: 176 | N8: 192 | O8: 208 | P8: 224 | Q8: 240 | R8: 256 | S8: 272 | T8: 288 | U8: 304 | V8: 320
B9: 15 | C9: 15 | D9: 30 | E9: 45 | F9: 60 | G9: 75 | H9: 90 | I9: 105 | J9: 120 | K9: 135 | L9: 150 | M9: 165 | N9: 180 | O9: 195 | P9: 210 | Q9: 225 | R9: 240 | S9: 255 | T9: 270 | U9: 285 | V9: 300
A10: Consumption of Good y | B10: 14 | C10: 14 | D10: 28 | E10: 42 | F10: 56 | G10: 70 | H10: 84 | I10: 100 | J10: 112 | K10: 126 | L10: 140 | M10: 154 | N10: 168 | O10: 182 | P10: 196 | Q10: 210 | R10: 224 | S10: 238 | T10: 252 | U10: 266 | V10: 280
B11: 13 | C11: 13 | D11: 26 | E11: 39 | F11: 52 | G11: 65 | H11: 78 | I11: 91 | J11: 104 | K11: 117 | L11: 130 | M11: 143 | N11: 156 | O11: 169 | P11: 182 | Q11: 195 | R11: 208 | S11: 221 | T11: 234 | U11: 247 | V11: 260
B12: 12 | C12: 12 | D12: 24 | E12: 36 | F12: 48 | G12: 60 | H12: 72 | I12: 84 | J12: 96 | K12: 108 | L12: 120 | M12: 132 | N12: 144 | O12: 156 | P12: 168 | Q12: 180 | R12: 192 | S12: 204 | T12: 216 | U12: 228 | V12: 240
B13: 11 | C13: 11 | D13: 22 | E13: 33 | F13: 44 | G13: 55 | H13: 66 | I13: 77 | J13: 88 | K13: 99 | L13: 110 | M13: 121 | N13: 132 | O13: 143 | P13: 154 | Q13: 165 | R13: 176 | S13: 187 | T13: 198 | U13: 209 | V13: 220
B14: 10 | C14: 10 | D14: 20 | E14: 30 | F14: 40 | G14: 50 | H14: 60 | I14: 70 | J14: 80 | K14: 90 | L14: 100 | M14: 110 | N14: 120 | O14: 130 | P14: 140 | Q14: 150 | R14: 160 | S14: 170 | T14: 180 | U14: 190 | V14: 200
B15: 9 | C15: 9 | D15: 18 | E15: 27 | F15: 36 | G15: 45 | H15: 54 | I15: 63 | J15: 72 | K15: 81 | L15: 90 | M15: 99 | N15: 108 | O15: 117 | P15: 126 | Q15: 135 | R15: 144 | S15: 153 | T15: 162 | U15: 171 | V15: 180
B16: 8 | C16: 8 | D16: 16 | E16: 24 | F16: 32 | G16: 40 | H16: 48 | I16: 56 | J16: 64 | K16: 72 | L16: 80 | M16: 88 | N16: 96 | O16: 104 | P16: 112 | Q16: 120 | R16: 128 | S16: 136 | T16: 144 | U16: 152 | V16: 160
B17: 7 | C17: 7 | D17: 14 | E17: 21 | F17: 28 | G17: 35 | H17: 42 | I17: 50 | J17: 56 | K17: 63 | L17: =$B17*L$24 -> 70 | M17: 77 | N17: 84 | O17: 91 | P17: 100 | Q17: =$B17*Q$24 -> 105 | R17: 112 | S17: 119 | T17: 126 | U17: 133 | V17: 140
B18: 6 | C18: 6 | D18: =$B18*D$24 -> 12 | E18: 18 | F18: 24 | G18: 30 | H18: 36 | I18: 42 | J18: 48 | K18: 54 | L18: 60 | M18: 66 | N18: 72 | O18: 78 | P18: =$B18*P$24 -> 84 | Q18: 90 | R18: 96 | S18: 102 | T18: 108 | U18: 114 | V18: 120
B19: 5 | C19: 5 | D19: 10 | E19: 15 | F19: 20 | G19: 25 | H19: 30 | I19: 35 | J19: 40 | K19: 45 | L19: 50 | M19: 55 | N19: 60 | O19: 65 | P19: 70 | Q19: 75 | R19: 80 | S19: 85 | T19: 90 | U19: 95 | V19: 100
B20: 4 | C20: 4 | D20: 8 | E20: 12 | F20: 16 | G20: 20 | H20: 24 | I20: 28 | J20: 32 | K20: 36 | L20: 40 | M20: 44 | N20: 48 | O20: 52 | P20: 56 | Q20: 60 | R20: 64 | S20: 68 | T20: 72 | U20: 76 | V20: 80
B21: 3 | C21: 3 | D21: 6 | E21: 9 | F21: 12 | G21: 15 | H21: 18 | I21: 21 | J21: 24 | K21: 27 | L21: 30 | M21: 33 | N21: 36 | O21: 39 | P21: 42 | Q21: 45 | R21: 48 | S21: 51 | T21: 54 | U21: 57 | V21: 60
B22: 2 | C22: 2 | D22: 4 | E22: 6 | F22: 8 | G22: 10 | H22: 12 | I22: 14 | J22: 16 | K22: 18 | L22: 20 | M22: 22 | N22: 24 | O22: 26 | P22: 28 | Q22: 30 | R22: 32 | S22: 34 | T22: 36 | U22: 38 | V22: 40
B23: 1 | C23: 1 | D23: 2 | E23: 3 | F23: 4 | G23: 5 | H23: 6 | I23: 7 | J23: 8 | K23: 9 | L23: 10 | M23: 11 | N23: 12 | O23: 13 | P23: 14 | Q23: 15 | R23: 16 | S23: 17 | T23: 18 | U23: 19 | V23: 20
C24: 1 | D24: 2 | E24: 3 | F24: 4 | G24: 5 | H24: 6 | I24: 7 | J24: 8 | K24: 9 | L24: 10 | M24: 11 | N24: 12 | O24: 13 | P24: 14 | Q24: 15 | R24: 16 | S24: 17 | T24: 18 | U24: 19 | V24: 20
I25: Consumption of Good x
A27: Holmgren (2017) uses U = x∙y and adjusts (7, 14) from 98 to 100 in order to discuss the income and substitution effect of a price of x increase from $1 to $2 (given Income = $20 and Py = $1).
A28: Two further adjustments are made to this table.
B29: 1. The bundle (7, 7) is adjusted from 49 to 50 in order to discuss the income and substitution effect of a price of x decrease from $2 to $1 (given Income = $20 and Py = $1).
C30: Note that the bundle (7, 7) is also the substitution bundle for a price of y decrease from $2 to $1 (given Income = $20 and Px = $1).
B31: 2. The bundle (14, 7) is adjusted from 98 to 100 in order to discuss the income and substitution effect of a price of y increase from $1 to $2 (given Income = $20 and Px = $1).
A32: With these adjustments, students are able to analyze the income and substitution effects of four scenarios; the price increase and price decrease of both x and y.
A36: Table 1 - Three Indifference Curves: Six indifferent bundles with U = 40, Eight bundles with U = 60, and Six bundles with U = 80, given U = x∙y
AA37: Table 2 - The same bundles have V = 63.2, V = 77.5, and V = 89.4, given V = 10∙(x∙y)0.5
B39: 20 | C39: =$B39*C$24 -> 20 | D39: 40 | E39: 60 | F39: 80 | G39: 100 | H39: 120 | I39: 140 | J39: 160 | K39: 180 | L39: 200 | M39: =$B39*M$24 -> 220 | N39: 240 | O39: 260 | P39: 280 | Q39: 300 | R39: 320 | S39: 340 | T39: 360 | U39: 380 | V39: 400 | AB39: 20 | AC39: =10*C39^0.5 -> 44.72135955 | AD39: =10*D39^0.5 -> 63.2455532 | AE39: =10*E39^0.5 -> 77.45966692 | AF39: =10*F39^0.5 -> 89.4427191 | AG39: =10*G39^0.5 -> 100 | AH39: =10*H39^0.5 -> 109.5445115 | AI39: =10*I39^0.5 -> 118.3215957 | AJ39: =10*J39^0.5 -> 126.4911064 | AK39: =10*K39^0.5 -> 134.1640786 | AL39: =10*L39^0.5 -> 141.4213562 | AM39: =10*M39^0.5 -> 148.3239697 | AN39: =10*N39^0.5 -> 154.9193338 | AO39: =10*O39^0.5 -> 161.245155 | AP39: =10*P39^0.5 -> 167.3320053 | AQ39: =10*Q39^0.5 -> 173.2050808 | AR39: =10*R39^0.5 -> 178.8854382 | AS39: =10*S39^0.5 -> 184.3908891 | AT39: =10*T39^0.5 -> 189.7366596 | AU39: =10*U39^0.5 -> 194.9358869 | AV39: =10*V39^0.5 -> 200
B40: 19 | C40: 19 | D40: 38 | E40: 57 | F40: 76 | G40: 95 | H40: 114 | I40: 133 | J40: 152 | K40: 171 | L40: 190 | M40: 209 | N40: 228 | O40: 247 | P40: 266 | Q40: 285 | R40: 304 | S40: 323 | T40: 342 | U40: 361 | V40: 380 | AB40: 19 | AC40: =10*C40^0.5 -> 43.58898944 | AD40: 61.64414003 | AE40: 75.49834435 | AF40: 87.17797887 | AG40: 97.46794345 | AH40: 106.7707825 | AI40: 115.3256259 | AJ40: 123.2882801 | AK40: 130.7669683 | AL40: 137.8404875 | AM40: 144.5683229 | AN40: 150.9966887 | AO40: 157.1623365 | AP40: 163.0950643 | AQ40: 168.8194302 | AR40: 174.3559577 | AS40: 179.7220076 | AT40: 184.9324201 | AU40: 190 | AV40: 194.9358869
B41: 18 | C41: 18 | D41: 36 | E41: 54 | F41: 72 | G41: 90 | H41: 108 | I41: 126 | J41: 144 | K41: 162 | L41: 180 | M41: 198 | N41: 216 | O41: 234 | P41: 252 | Q41: 270 | R41: 288 | S41: 306 | T41: 324 | U41: 342 | V41: 360 | AB41: 18 | AC41: 42.42640687 | AD41: 60 | AE41: 73.48469228 | AF41: 84.85281374 | AG41: 94.86832981 | AH41: 103.9230485 | AI41: 112.2497216 | AJ41: 120 | AK41: 127.2792206 | AL41: 134.1640786 | AM41: 140.7124728 | AN41: 146.9693846 | AO41: 152.9705854 | AP41: 158.7450787 | AQ41: 164.3167673 | AR41: 169.7056275 | AS41: 174.9285568 | AT41: 180 | AU41: 184.9324201 | AV41: 189.7366596
B42: 17 | C42: 17 | D42: 34 | E42: 51 | F42: 68 | G42: 85 | H42: 102 | I42: 119 | J42: 136 | K42: 153 | L42: 170 | M42: 187 | N42: 204 | O42: 221 | P42: 238 | Q42: 255 | R42: 272 | S42: 289 | T42: 306 | U42: 323 | V42: 340 | AB42: 17 | AC42: 41.23105626 | AD42: 58.30951895 | AE42: 71.41428429 | AF42: 82.46211251 | AG42: 92.19544457 | AH42: 100.9950494 | AI42: 109.0871211 | AJ42: 116.6190379 | AK42: 123.6931688 | AL42: 130.3840481 | AM42: 136.7479433 | AN42: 142.8285686 | AO42: 148.6606875 | AP42: 154.2724862 | AQ42: 159.6871942 | AR42: 164.924225 | AS42: 170 | AT42: 174.9285568 | AU42: 179.7220076 | AV42: 184.3908891
B43: 16 | C43: 16 | D43: 32 | E43: 48 | F43: 64 | G43: 80 | H43: 96 | I43: 112 | J43: 128 | K43: 144 | L43: 160 | M43: 176 | N43: 192 | O43: 208 | P43: 224 | Q43: 240 | R43: 256 | S43: 272 | T43: 288 | U43: 304 | V43: 320 | AB43: 16 | AC43: 40 | AD43: 56.56854249 | AE43: 69.2820323 | AF43: 80 | AG43: 89.4427191 | AH43: 97.97958971 | AI43: 105.8300524 | AJ43: 113.137085 | AK43: 120 | AL43: 126.4911064 | AM43: 132.6649916 | AN43: 138.5640646 | AO43: 144.222051 | AP43: 149.6662955 | AQ43: 154.9193338 | AR43: 160 | AS43: 164.924225 | AT43: 169.7056275 | AU43: 174.3559577 | AV43: 178.8854382
B44: 15 | C44: 15 | D44: 30 | E44: 45 | F44: 60 | G44: 75 | H44: 90 | I44: 105 | J44: 120 | K44: 135 | L44: 150 | M44: 165 | N44: 180 | O44: 195 | P44: 210 | Q44: 225 | R44: 240 | S44: 255 | T44: 270 | U44: 285 | V44: 300 | AB44: 15 | AC44: 38.72983346 | AD44: 54.77225575 | AE44: 67.08203932 | AF44: 77.45966692 | AG44: 86.60254038 | AH44: 94.86832981 | AI44: 102.4695077 | AJ44: 109.5445115 | AK44: 116.1895004 | AL44: 122.4744871 | AM44: 128.4523258 | AN44: 134.1640786 | AO44: 139.6424004 | AP44: 144.9137675 | AQ44: 150 | AR44: 154.9193338 | AS44: 159.6871942 | AT44: 164.3167673 | AU44: 168.8194302 | AV44: 173.2050808
A45: Consumption of Good y | B45: 14 | C45: =$B45*C$24 -> 14 | D45: 28 | E45: 42 | F45: 56 | G45: 70 | H45: 84 | I45: =$B45*I$24 -> 98 | J45: =$B45*J$24 -> 112 | K45: 126 | L45: 140 | M45: 154 | N45: 168 | O45: 182 | P45: 196 | Q45: 210 | R45: 224 | S45: 238 | T45: 252 | U45: 266 | V45: 280 | AA45: Consumption of Good y | AB45: 14 | AC45: 37.41657387 | AD45: 52.91502622 | AE45: 64.80740698 | AF45: 74.83314774 | AG45: 83.66600265 | AH45: 91.6515139 | AI45: 98.99494937 | AJ45: 105.8300524 | AK45: 112.2497216 | AL45: 118.3215957 | AM45: 124.0967365 | AN45: 129.614814 | AO45: 134.9073756 | AP45: 140 | AQ45: 144.9137675 | AR45: 149.6662955 | AS45: 154.2724862 | AT45: 158.7450787 | AU45: 163.0950643 | AV45: 167.3320053
B46: 13 | C46: 13 | D46: 26 | E46: 39 | F46: 52 | G46: 65 | H46: 78 | I46: 91 | J46: 104 | K46: 117 | L46: 130 | M46: 143 | N46: 156 | O46: 169 | P46: 182 | Q46: 195 | R46: 208 | S46: 221 | T46: 234 | U46: 247 | V46: 260 | AB46: 13 | AC46: 36.05551275 | AD46: 50.99019514 | AE46: 62.44997998 | AF46: 72.11102551 | AG46: 80.62257748 | AH46: 88.31760866 | AI46: 95.39392014 | AJ46: 101.9803903 | AK46: 108.1665383 | AL46: 114.0175425 | AM46: 119.5826074 | AN46: 124.89996 | AO46: 130 | AP46: 134.9073756 | AQ46: 139.6424004 | AR46: 144.222051 | AS46: 148.6606875 | AT46: 152.9705854 | AU46: 157.1623365 | AV46: 161.245155
B47: 12 | C47: 12 | D47: 24 | E47: 36 | F47: 48 | G47: 60 | H47: 72 | I47: 84 | J47: 96 | K47: 108 | L47: 120 | M47: 132 | N47: 144 | O47: 156 | P47: 168 | Q47: 180 | R47: 192 | S47: 204 | T47: 216 | U47: 228 | V47: 240 | AB47: 12 | AC47: 34.64101615 | AD47: 48.98979486 | AE47: 60 | AF47: 69.2820323 | AG47: 77.45966692 | AH47: 84.85281374 | AI47: 91.6515139 | AJ47: 97.97958971 | AK47: 103.9230485 | AL47: 109.5445115 | AM47: 114.8912529 | AN47: 120 | AO47: 124.89996 | AP47: 129.614814 | AQ47: 134.1640786 | AR47: 138.5640646 | AS47: 142.8285686 | AT47: 146.9693846 | AU47: 150.9966887 | AV47: 154.9193338
B48: 11 | C48: 11 | D48: 22 | E48: 33 | F48: 44 | G48: 55 | H48: 66 | I48: 77 | J48: 88 | K48: 99 | L48: 110 | M48: 121 | N48: 132 | O48: 143 | P48: 154 | Q48: 165 | R48: 176 | S48: 187 | T48: 198 | U48: 209 | V48: 220 | AB48: 11 | AC48: 33.1662479 | AD48: 46.9041576 | AE48: 57.44562647 | AF48: 66.33249581 | AG48: 74.16198487 | AH48: 81.24038405 | AI48: 87.74964387 | AJ48: 93.8083152 | AK48: 99.49874371 | AL48: 104.8808848 | AM48: 110 | AN48: 114.8912529 | AO48: 119.5826074 | AP48: 124.0967365 | AQ48: 128.4523258 | AR48: 132.6649916 | AS48: 136.7479433 | AT48: 140.7124728 | AU48: 144.5683229 | AV48: 148.3239697
B49: 10 | C49: 10 | D49: 20 | E49: 30 | F49: 40 | G49: 50 | H49: 60 | I49: 70 | J49: 80 | K49: 90 | L49: 100 | M49: 110 | N49: 120 | O49: 130 | P49: 140 | Q49: 150 | R49: 160 | S49: 170 | T49: 180 | U49: 190 | V49: 200 | AB49: 10 | AC49: 31.6227766 | AD49: 44.72135955 | AE49: 54.77225575 | AF49: 63.2455532 | AG49: 70.71067812 | AH49: 77.45966692 | AI49: 83.66600265 | AJ49: 89.4427191 | AK49: 94.86832981 | AL49: 100 | AM49: 104.8808848 | AN49: 109.5445115 | AO49: 114.0175425 | AP49: 118.3215957 | AQ49: 122.4744871 | AR49: 126.4911064 | AS49: 130.3840481 | AT49: 134.1640786 | AU49: 137.8404875 | AV49: 141.4213562
B50: 9 | C50: 9 | D50: 18 | E50: 27 | F50: 36 | G50: 45 | H50: 54 | I50: 63 | J50: 72 | K50: 81 | L50: 90 | M50: 99 | N50: 108 | O50: 117 | P50: 126 | Q50: 135 | R50: 144 | S50: 153 | T50: 162 | U50: 171 | V50: 180 | AB50: 9 | AC50: 30 | AD50: 42.42640687 | AE50: 51.96152423 | AF50: 60 | AG50: 67.08203932 | AH50: 73.48469228 | AI50: 79.37253933 | AJ50: 84.85281374 | AK50: 90 | AL50: 94.86832981 | AM50: 99.49874371 | AN50: 103.9230485 | AO50: 108.1665383 | AP50: 112.2497216 | AQ50: 116.1895004 | AR50: 120 | AS50: 123.6931688 | AT50: 127.2792206 | AU50: 130.7669683 | AV50: 134.1640786
B51: 8 | C51: 8 | D51: 16 | E51: 24 | F51: 32 | G51: 40 | H51: 48 | I51: 56 | J51: 64 | K51: 72 | L51: 80 | M51: 88 | N51: 96 | O51: 104 | P51: 112 | Q51: 120 | R51: 128 | S51: 136 | T51: 144 | U51: 152 | V51: 160 | AB51: 8 | AC51: 28.28427125 | AD51: 40 | AE51: 48.98979486 | AF51: 56.56854249 | AG51: 63.2455532 | AH51: 69.2820323 | AI51: 74.83314774 | AJ51: 80 | AK51: 84.85281374 | AL51: 89.4427191 | AM51: 93.8083152 | AN51: 97.97958971 | AO51: 101.9803903 | AP51: 105.8300524 | AQ51: 109.5445115 | AR51: 113.137085 | AS51: 116.6190379 | AT51: 120 | AU51: 123.2882801 | AV51: 126.4911064
B52: 7 | C52: 7 | D52: 14 | E52: 21 | F52: 28 | G52: 35 | H52: 42 | I52: 49 | J52: =$B52*J$24 -> 56 | K52: 63 | L52: 70 | M52: 77 | N52: =$B52*N$24 -> 84 | O52: 91 | P52: 98 | Q52: 105 | R52: 112 | S52: 119 | T52: 126 | U52: 133 | V52: 140 | AB52: 7 | AC52: 26.45751311 | AD52: 37.41657387 | AE52: 45.82575695 | AF52: 52.91502622 | AG52: 59.16079783 | AH52: 64.80740698 | AI52: 70 | AJ52: 74.83314774 | AK52: 79.37253933 | AL52: 83.66600265 | AM52: 87.74964387 | AN52: 91.6515139 | AO52: 95.39392014 | AP52: 98.99494937 | AQ52: 102.4695077 | AR52: 105.8300524 | AS52: 109.0871211 | AT52: 112.2497216 | AU52: 115.3256259 | AV52: 118.3215957
B53: 6 | C53: 6 | D53: 12 | E53: 18 | F53: 24 | G53: 30 | H53: 36 | I53: 42 | J53: 48 | K53: 54 | L53: 60 | M53: 66 | N53: =$B53*N$24 -> 72 | O53: 78 | P53: 84 | Q53: 90 | R53: 96 | S53: 102 | T53: 108 | U53: 114 | V53: 120 | AB53: 6 | AC53: 24.49489743 | AD53: 34.64101615 | AE53: 42.42640687 | AF53: 48.98979486 | AG53: 54.77225575 | AH53: 60 | AI53: 64.80740698 | AJ53: 69.2820323 | AK53: 73.48469228 | AL53: 77.45966692 | AM53: 81.24038405 | AN53: 84.85281374 | AO53: 88.31760866 | AP53: 91.6515139 | AQ53: 94.86832981 | AR53: 97.97958971 | AS53: 100.9950494 | AT53: 103.9230485 | AU53: 106.7707825 | AV53: 109.5445115
B54: 5 | C54: 5 | D54: 10 | E54: 15 | F54: 20 | G54: 25 | H54: 30 | I54: 35 | J54: 40 | K54: 45 | L54: 50 | M54: 55 | N54: 60 | O54: 65 | P54: 70 | Q54: 75 | R54: 80 | S54: 85 | T54: 90 | U54: 95 | V54: 100 | AB54: 5 | AC54: 22.36067977 | AD54: 31.6227766 | AE54: 38.72983346 | AF54: 44.72135955 | AG54: 50 | AH54: 54.77225575 | AI54: 59.16079783 | AJ54: 63.2455532 | AK54: 67.08203932 | AL54: 70.71067812 | AM54: 74.16198487 | AN54: 77.45966692 | AO54: 80.62257748 | AP54: 83.66600265 | AQ54: 86.60254038 | AR54: 89.4427191 | AS54: 92.19544457 | AT54: 94.86832981 | AU54: 97.46794345 | AV54: 100
B55: 4 | C55: 4 | D55: 8 | E55: 12 | F55: 16 | G55: 20 | H55: 24 | I55: 28 | J55: 32 | K55: 36 | L55: 40 | M55: 44 | N55: 48 | O55: 52 | P55: 56 | Q55: 60 | R55: 64 | S55: 68 | T55: 72 | U55: 76 | V55: 80 | AB55: 4 | AC55: 20 | AD55: 28.28427125 | AE55: 34.64101615 | AF55: 40 | AG55: 44.72135955 | AH55: 48.98979486 | AI55: 52.91502622 | AJ55: 56.56854249 | AK55: 60 | AL55: 63.2455532 | AM55: 66.33249581 | AN55: 69.2820323 | AO55: 72.11102551 | AP55: 74.83314774 | AQ55: 77.45966692 | AR55: 80 | AS55: 82.46211251 | AT55: 84.85281374 | AU55: 87.17797887 | AV55: 89.4427191
B56: 3 | C56: 3 | D56: 6 | E56: 9 | F56: 12 | G56: 15 | H56: 18 | I56: 21 | J56: 24 | K56: 27 | L56: 30 | M56: 33 | N56: 36 | O56: 39 | P56: 42 | Q56: 45 | R56: 48 | S56: 51 | T56: 54 | U56: 57 | V56: 60 | AB56: 3 | AC56: 17.32050808 | AD56: 24.49489743 | AE56: 30 | AF56: 34.64101615 | AG56: 38.72983346 | AH56: 42.42640687 | AI56: 45.82575695 | AJ56: 48.98979486 | AK56: 51.96152423 | AL56: 54.77225575 | AM56: 57.44562647 | AN56: 60 | AO56: 62.44997998 | AP56: 64.80740698 | AQ56: 67.08203932 | AR56: 69.2820323 | AS56: 71.41428429 | AT56: 73.48469228 | AU56: 75.49834435 | AV56: 77.45966692
B57: 2 | C57: 2 | D57: 4 | E57: 6 | F57: 8 | G57: 10 | H57: 12 | I57: 14 | J57: 16 | K57: 18 | L57: 20 | M57: 22 | N57: 24 | O57: 26 | P57: 28 | Q57: 30 | R57: 32 | S57: 34 | T57: 36 | U57: 38 | V57: 40 | AB57: 2 | AC57: 14.14213562 | AD57: 20 | AE57: 24.49489743 | AF57: 28.28427125 | AG57: 31.6227766 | AH57: 34.64101615 | AI57: 37.41657387 | AJ57: 40 | AK57: 42.42640687 | AL57: 44.72135955 | AM57: 46.9041576 | AN57: 48.98979486 | AO57: 50.99019514 | AP57: 52.91502622 | AQ57: 54.77225575 | AR57: 56.56854249 | AS57: 58.30951895 | AT57: 60 | AU57: 61.64414003 | AV57: 63.2455532
B58: 1 | C58: 1 | D58: 2 | E58: 3 | F58: 4 | G58: 5 | H58: 6 | I58: 7 | J58: 8 | K58: 9 | L58: 10 | M58: 11 | N58: 12 | O58: 13 | P58: 14 | Q58: 15 | R58: 16 | S58: 17 | T58: 18 | U58: 19 | V58: 20 | AB58: 1 | AC58: 10 | AD58: 14.14213562 | AE58: 17.32050808 | AF58: 20 | AG58: 22.36067977 | AH58: 24.49489743 | AI58: 26.45751311 | AJ58: 28.28427125 | AK58: 30 | AL58: 31.6227766 | AM58: 33.1662479 | AN58: 34.64101615 | AO58: 36.05551275 | AP58: 37.41657387 | AQ58: 38.72983346 | AR58: 40 | AS58: 41.23105626 | AT58: 42.42640687 | AU58: 43.58898944 | AV58: 44.72135955
C59: 1 | D59: 2 | E59: 3 | F59: 4 | G59: 5 | H59: 6 | I59: 7 | J59: 8 | K59: 9 | L59: 10 | M59: 11 | N59: 12 | O59: 13 | P59: 14 | Q59: 15 | R59: 16 | S59: 17 | T59: 18 | U59: 19 | V59: 20 | AC59: 1 | AD59: 2 | AE59: 3 | AF59: 4 | AG59: 5 | AH59: 6 | AI59: 7 | AJ59: 8 | AK59: 9 | AL59: 10 | AM59: 11 | AN59: 12 | AO59: 13 | AP59: 14 | AQ59: 15 | AR59: 16 | AS59: 17 | AT59: 18 | AU59: 19 | AV59: 20
I60: Consumption of Good x | AI60: Consumption of Good x
A62: Table 3 - A Discrete Choice Utility table where x and y are Independent Goods
B64: 20 | D64: =$B64*C$24 -> 20 | E64: =$B64*D$24 -> 40 | F64: 60 | G64: 80 | H64: 100 | I64: 120 | J64: 140 | K64: 160 | L64: 180 | M64: 200 | N64: 220 | O64: 240 | P64: 260 | Q64: 280 | R64: 300 | S64: 320 | T64: 340 | U64: 360 | V64: 380 | W64: 400
B65: 19 | D65: =$B65*C$24 -> 19 | E65: 38 | F65: 57 | G65: 76 | H65: 95 | I65: 114 | J65: 133 | K65: 152 | L65: 171 | M65: 190 | N65: 209 | O65: 228 | P65: 247 | Q65: 266 | R65: 285 | S65: 304 | T65: 323 | U65: 342 | V65: 361 | W65: 380
B66: 18 | D66: =$B66*C$24 -> 18 | E66: 36 | F66: 54 | G66: 72 | H66: 90 | I66: 108 | J66: 126 | K66: 144 | L66: 162 | M66: 180 | N66: 198 | O66: 216 | P66: 234 | Q66: 252 | R66: 270 | S66: 288 | T66: 306 | U66: 324 | V66: 342 | W66: 360
B67: 17 | D67: =$B67*C$24 -> 17 | E67: 34 | F67: 51 | G67: 68 | H67: 85 | I67: 102 | J67: 119 | K67: 136 | L67: 153 | M67: 170 | N67: 187 | O67: 204 | P67: 221 | Q67: 238 | R67: 255 | S67: 272 | T67: 289 | U67: 306 | V67: 323 | W67: 340
B68: 16 | D68: =$B68*C$24 -> 16 | E68: 32 | F68: 48 | G68: 64 | H68: 80 | I68: 96 | J68: 112 | K68: 128 | L68: 144 | M68: 160 | N68: 176 | O68: 192 | P68: 208 | Q68: 224 | R68: 240 | S68: 256 | T68: 272 | U68: 288 | V68: 304 | W68: 320
B69: 15 | D69: =$B69*C$24 -> 15 | E69: 30 | F69: 45 | G69: 60 | H69: 75 | I69: 90 | J69: 105 | K69: 120 | L69: 135 | M69: 150 | N69: 165 | O69: 180 | P69: 195 | Q69: 210 | R69: 225 | S69: 240 | T69: 255 | U69: 270 | V69: 285 | W69: 300
B70: 14 | D70: =$B70*C$24 -> 14 | E70: 28 | F70: 42 | G70: 56 | H70: 70 | I70: 84 | J70: 98 | K70: 112 | L70: 126 | M70: 140 | N70: 154 | O70: 168 | P70: 182 | Q70: 196 | R70: 210 | S70: 224 | T70: 238 | U70: 252 | V70: 266 | W70: 280
A71: Consumption of Good y | B71: 13 | D71: =$B71*C$24 -> 13 | E71: 26 | F71: 39 | G71: 52 | H71: 65 | I71: 78 | J71: 91 | K71: 104 | L71: 117 | M71: 130 | N71: 143 | O71: 156 | P71: 169 | Q71: 182 | R71: 195 | S71: 208 | T71: 221 | U71: 234 | V71: 247 | W71: 260
B72: 12 | D72: =$B72*C$24 -> 12 | E72: 24 | F72: 36 | G72: 48 | H72: 60 | I72: 72 | J72: 84 | K72: 96 | L72: 108 | M72: 120 | N72: 132 | O72: 144 | P72: 156 | Q72: 168 | R72: 180 | S72: 192 | T72: 204 | U72: 216 | V72: 228 | W72: 240
B73: 11 | D73: =$B73*C$24 -> 11 | E73: 22 | F73: 33 | G73: 44 | H73: 55 | I73: 66 | J73: 77 | K73: 88 | L73: 99 | M73: 110 | N73: 121 | O73: 132 | P73: 143 | Q73: 154 | R73: 165 | S73: 176 | T73: 187 | U73: 198 | V73: 209 | W73: 220
B74: 10 | D74: =$B74*C$24 -> 10 | E74: 20 | F74: 30 | G74: 40 | H74: 50 | I74: 60 | J74: 70 | K74: 80 | L74: 90 | M74: 100 | N74: 110 | O74: 120 | P74: 130 | Q74: 140 | R74: 150 | S74: 160 | T74: 170 | U74: 180 | V74: 190 | W74: 200
B75: 9 | D75: =$B75*C$24 -> 9 | E75: 18 | F75: 27 | G75: 36 | H75: 45 | I75: 54 | J75: 63 | K75: 72 | L75: 81 | M75: 90 | N75: 99 | O75: 108 | P75: 117 | Q75: 126 | R75: 135 | S75: 144 | T75: 153 | U75: 162 | V75: 171 | W75: 180
B76: 8 | D76: =$B76*C$24 -> 8 | E76: 16 | F76: 24 | G76: 32 | H76: 40 | I76: 48 | J76: 56 | K76: 64 | L76: 72 | M76: 80 | N76: 88 | O76: 96 | P76: 104 | Q76: 112 | R76: 120 | S76: 128 | T76: 136 | U76: 144 | V76: 152 | W76: 160
B77: 7 | D77: =$B77*C$24 -> 7 | E77: 14 | F77: 21 | G77: 28 | H77: 35 | I77: 42 | J77: 49 | K77: 56 | L77: 63 | M77: 70 | N77: 77 | O77: 84 | P77: 91 | Q77: 98 | R77: 105 | S77: 112 | T77: 119 | U77: 126 | V77: 133 | W77: 140
B78: 6 | D78: =$B78*C$24 -> 6 | E78: 12 | F78: 18 | G78: 24 | H78: 30 | I78: 36 | J78: 42 | K78: 48 | L78: 54 | M78: 60 | N78: 66 | O78: 72 | P78: 78 | Q78: 84 | R78: 90 | S78: 96 | T78: 102 | U78: 108 | V78: 114 | W78: 120
B79: 5 | D79: =$B79*C$24 -> 5 | E79: 10 | F79: 15 | G79: 20 | H79: 25 | I79: 30 | J79: 35 | K79: 40 | L79: 45 | M79: 50 | N79: 55 | O79: 60 | P79: 65 | Q79: 70 | R79: 75 | S79: 80 | T79: 85 | U79: 90 | V79: 95 | W79: 100
B80: 4 | D80: =$B80*C$24 -> 4 | E80: 8 | F80: 12 | G80: 16 | H80: 20 | I80: 24 | J80: 28 | K80: 32 | L80: 36 | M80: 40 | N80: 44 | O80: 48 | P80: 52 | Q80: 56 | R80: 60 | S80: 64 | T80: 68 | U80: 72 | V80: 76 | W80: 80
B81: 3 | D81: =$B81*C$24 -> 3 | E81: 6 | F81: 9 | G81: 12 | H81: 15 | I81: 18 | J81: 21 | K81: 24 | L81: 27 | M81: 30 | N81: 33 | O81: 36 | P81: 39 | Q81: 42 | R81: 45 | S81: 48 | T81: 51 | U81: 54 | V81: 57 | W81: 60
B82: 2 | D82: =$B82*C$24 -> 2 | E82: 4 | F82: 6 | G82: 8 | H82: 10 | I82: 12 | J82: 14 | K82: 16 | L82: 18 | M82: 20 | N82: 22 | O82: 24 | P82: 26 | Q82: 28 | R82: 30 | S82: 32 | T82: 34 | U82: 36 | V82: 38 | W82: 40
B83: 1 | D83: =$B83*C$24 -> 1 | E83: 2 | F83: 3 | G83: 4 | H83: 5 | I83: 6 | J83: 7 | K83: 8 | L83: 9 | M83: 10 | N83: 11 | O83: 12 | P83: 13 | Q83: 14 | R83: 15 | S83: 16 | T83: 17 | U83: 18 | V83: 19 | W83: 20
B84: 0
C85: 0 | D85: 1 | E85: 2 | F85: 3 | G85: 4 | H85: 5 | I85: 6 | J85: 7 | K85: 8 | L85: 9 | M85: 10 | N85: 11 | O85: 12 | P85: 13 | Q85: 14 | R85: 15 | S85: 16 | T85: 17 | U85: 18 | V85: 19 | W85: 20
I86: Consumption of Good x
A89: Table 4 - An Indifference Map where y is a substitute for x | AC89: To show Table 4, click Data, What-If Analysis, Scenario Manager, then choose JETTables4and5, Show, Close on the Base sheet.
B91: 20 | C91: 127.7357873 | D91: 148.394008 | E91: 168.2524474 | F91: 187.4283726 | G91: 206.0117234 | H91: 224.0734131 | I91: 241.6706188 | J91: 258.8503028 | K91: 275.6516426 | L91: 292.1077577 | M91: 308.2469688 | N91: 324.0937357 | O91: 339.6693707 | P91: 354.992588 | Q91: 370.0799356 | R91: 384.9461375 | S91: 399.6043687 | T91: 414.0664789 | U91: 428.3431755 | V91: 442.4441752 | W91: 456.3783303
B92: 19 | C92: 122.2700331 | D92: 142.3830599 | E92: 161.7174125 | F92: 180.3872632 | G92: 198.4801783 | H92: 216.0651995 | I92: 233.1979949 | J92: 249.9242875 | K92: 266.2822209 | L92: 282.3040404 | M92: 298.0173193 | N92: 313.4458721 | O92: 328.6104483 | P92: 343.5292685 | Q92: 358.2184439 | R92: 372.6923098 | S92: 386.9636937 | T92: 401.0441324 | U92: 414.9440507 | V92: 428.672909 | W92: 442.2393259
B93: 18 | C93: 116.7421676 | D93: 136.303805 | E93: 155.1081152 | F93: 173.2661406 | G93: 190.8630467 | H93: 207.9659827 | I93: 224.6290904 | J93: 240.8968394 | K93: 256.8063275 | L93: 272.3889163 | M93: 287.6714229 | N93: 302.677009 | O93: 317.4258554 | P93: 331.935683 | Q93: 346.2221614 | R93: 360.2992329 | S93: 374.1793734 | T93: 387.8738033 | U93: 401.3926618 | V93: 414.7451497 | W93: 427.9396496
B94: 17 | C94: 111.1489495 | D94: 130.1526788 | E94: 148.4206803 | F94: 166.0608293 | G94: 183.1558625 | H94: 199.7710138 | I94: 215.958881 | J94: 231.7626653 | K94: 247.2184066 | L94: 262.3565717 | M94: 277.2032133 | N94: 291.7808322 | O94: 306.1090338 | P94: 320.2050336 | Q94: 334.0840542 | R94: 347.7596403 | S94: 361.2439119 | T94: 374.5477696 | U94: 387.6810631 | V94: 400.6527312 | W94: 413.470917
B95: 16 | C95: 105.486825 | D95: 123.925773 | E95: 141.6508586 | F95: 158.7667513 | G95: 175.3537286 | H95: 191.475086 | I95: 207.1818578 | J95: 222.5159616 | K95: 237.512366 | L95: 252.2006325 | M95: 266.6060392 | N95: 280.7504187 | O95: 294.6527933 | P95: 308.329867 | Q95: 321.79641 | R95: 335.0655646 | S95: 348.1490904 | T95: 361.057564 | U95: 373.8005427 | V95: 386.3866992 | W95: 398.823935
B96: 15 | C96: 99.7518825 | D96: 117.6187858 | E96: 134.7939733 | F96: 151.3788674 | G96: 167.451255 | H96: 183.0724679 | I96: 198.2919573 | J96: 213.1503402 | K96: 227.6815003 | L96: 241.9140822 | M96: 255.8725797 | N96: 269.5781479 | O96: 283.0492192 | P96: 296.3019792 | Q96: 309.35074 | R96: 322.2082361 | S96: 334.8858622 | T96: 347.393867 | U96: 359.7415111 | V96: 371.9371983 | W96: 383.9885848
A97: Consumption of Good y | B97: 14 | C97: 93.93979829 | D97: 111.2269622 | E97: 127.8448549 | F97: 143.8916078 | G97: 159.4424839 | H97: 174.5568248 | I97: 189.2824772 | J97: 203.6587402 | K97: 217.718398 | L97: 231.4891658 | M97: 244.9947425 | N97: 258.255597 | O97: 271.2895633 | P97: 284.1123022 | Q97: 296.7376611 | R97: 309.1779614 | S97: 321.4442281 | T97: 333.5463773 | U97: 345.4933691 | V97: 357.2933346 | W97: 368.9536817
B98: 13 | C98: 88.04577136 | D98: 104.7450223 | E98: 120.7977631 | F98: 136.2987877 | G98: 151.3207996 | H98: 165.9211223 | I98: 180.1459753 | J98: 194.0333211 | K98: 207.6148291 | L98: 220.9172717 | M98: 233.9635422 | N98: 246.773413 | O98: 259.3641119 | P98: 271.7507668 | Q98: 283.9467544 | R98: 295.963977 | S98: 307.8130846 | T98: 319.5036562 | U98: 331.044347 | V98: 342.4430118 | W98: 353.7068063
B99: 12 | C99: 82.06444379 | D99: 98.16707381 | E99: 113.6462917 | F99: 128.5935049 | G99: 143.0788193 | H99: 157.1575103 | I99: 170.8741462 | J99: 184.2653331 | K99: 197.361609 | L99: 210.1887899 | M99: 222.7689509 | N99: 235.1211582 | O99: 247.262024 | P99: 259.2061359 | Q99: 270.9663925 | R99: 282.5542708 | S99: 293.9800406 | T99: 305.2529383 | U99: 316.3813102 | V99: 327.3727302 | W99: 338.2340985
B100: 11 | C100: 75.98980306 | D100: 91.48650439 | E100: 106.3832521 | F100: 120.768014 | G100: 134.7082579 | H100: 148.2571794 | I100: 161.4576696 | J100: 174.3449572 | K100: 186.9484311 | L100: 199.2929357 | M100: 211.3997156 | N100: 223.2871196 | O100: 234.9711346 | P100: 246.4657994 | Q100: 257.7835272 | R100: 268.9353633 | S100: 279.9311907 | T100: 290.7798986 | U100: 301.4895191 | V100: 312.067341 | W100: 322.520005
B101: 10 | C101: 69.8150606 | D101: 84.69584838 | E101: 99.0005276 | F101: 112.8135697 | G101: 126.1997613 | H101: 139.2101834 | I101: 151.8860225 | J101: 164.2611072 | K101: 176.3636583 | L101: 188.2175328 | M101: 199.843131 | N101: 211.2580722 | O101: 222.4777083 | P101: 233.5155197 | Q101: 244.3834265 | R101: 255.0920349 | S101: 265.6508352 | T101: 276.0683632 | U101: 286.3523317 | V101: 296.50974 | W101: 306.5469648
B102: 9 | C102: 63.53249938 | D102: 77.78661898 | E102: 91.48889142 | F102: 104.7202309 | G102: 117.5426955 | H102: 130.0052153 | I102: 142.1472423 | J102: 154.0011804 | K102: 165.594062 | L102: 176.9487395 | M102: 188.0847539 | N102: 199.0189826 | O102: 209.766131 | P102: 220.3391118 | Q102: 230.7493432 | R102: 241.0069846 | S102: 251.1211267 | T102: 261.0999458 | U102: 270.95083 | V102: 280.6804838 | W102: 290.2950153
B103: 8 | C103: 57.13327975 | D103: 70.74909481 | E103: 83.83777463 | F103: 96.47661 | G103: 108.7248801 | H103: 120.6293239 | I103: 132.2276266 | J103: 143.5507411 | K103: 154.6244894 | L103: 165.4707003 | M103: 176.1080401 | N103: 186.5526302 | O103: 196.8185174 | P103: 206.9180364 | Q103: 216.8620939 | R103: 226.6603945 | S103: 236.3216217 | T103: 245.8535858 | U103: 255.2633439 | V103: 264.5573003 | W103: 273.7412897
B104: 7 | C104: 50.60718896 | D104: 63.57204443 | E104: 76.03496652 | F104: 88.06955081 | G104: 99.73224242 | H104: 111.0675457 | I104: 122.1113442 | J104: 132.8931111 | K104: 143.4374336 | L104: 153.7650972 | M104: 163.8938755 | N104: 173.8391194 | O104: 183.614204 | P104: 193.2308743 | Q104: 202.6995156 | R104: 212.0293684 | S104: 221.2287012 | T104: 230.3049509 | U104: 239.2648371 | V104: 248.114458 | W104: 256.8593693
B105: 6 | C105: 43.94231228 | D105: 56.24236467 | E105: 68.06622146 | F105: 79.48370447 | G105: 90.54836446 | H105: 101.3024237 | I105: 111.7799258 | J105: 122.0088325 | K105: 132.0124704 | L105: 141.810559 | M105: 151.4199607 | N105: 160.8552391 | O105: 170.1290835 | P105: 179.2526367 | Q105: 188.2357514 | R105: 197.0871943 | S105: 205.81481 | T105: 214.4256539 | U105: 222.9261011 | V105: 231.3219372 | W105: 239.6184328
B106: 5 | C106: 37.12459342 | D106: 48.74459712 | E106: 59.91473327 | F106: 70.70096333 | G106: 81.15387736 | H106: 91.3133632 | I106: 101.2115823 | J106: 110.8749504 | K106: 120.3255044 | L106: 129.5818736 | M106: 138.659988 | N106: 147.5736061 | O106: 156.3347157 | P106: 164.9538434 | Q106: 173.4402971 | R106: 181.8023591 | S106: 190.0474399 | T106: 198.1822051 | U106: 206.2126773 | V106: 214.144322 | W106: 221.9821187
B107: 4 | C107: 30.13723402 | D107: 41.06026786 | E107: 51.56041729 | F107: 61.69968738 | G107: 71.52563379 | H107: 81.0757519 | I107: 90.38027405 | J107: 99.46403164 | K107: 108.3477398 | L107: 117.0489103 | M107: 125.5825179 | N107: 133.9614956 | O107: 142.1971123 | P107: 150.2992632 | Q107: 158.2766979 | R107: 166.1372019 | S107: 173.8877414 | T107: 181.5345819 | U107: 189.083385 | V107: 196.5392883 | W107: 203.9069725
B108: 3 | C108: 22.95985306 | D108: 33.16696292 | E108: 42.9789053 | F108: 52.45362131 | G108: 61.6355497 | H108: 70.55972828 | I108: 79.2544079 | J108: 87.74279244 | K108: 96.04423928 | L108: 104.1751126 | M108: 112.1494053 | N108: 119.9792031 | O108: 127.6750361 | P108: 135.246151 | Q108: 142.700724 | R108: 150.0460301 | S108: 157.2885791 | T108: 164.4342258 | U108: 171.4882608 | V108: 178.4554848 | W108: 185.3402719
B109: 2 | C109: 15.56727516 | D109: 25.03699573 | E109: 34.14009679 | F109: 42.93033364 | G109: 51.44893462 | H109: 59.72840635 | I109: 67.79495874 | J109: 75.67011937 | K109: 83.37184719 | L109: 90.91532413 | M109: 98.31353235 | N109: 105.5776843 | O109: 112.7175495 | P109: 119.7417065 | Q109: 126.6577409 | R109: 133.4724022 | S109: 140.1917299 | T109: 146.8211557 | U109: 153.365588 | V109: 159.8294809 | W109: 166.2168924
B110: 1 | C110: 7.927722444 | D110: 16.63541867 | E110: 25.0059971 | F110: 33.08888736 | G110: 40.92200018 | H110: 48.53522638 | I110: 55.95266676 | J110: 63.1941166 | K110: 70.27608969 | L110: 77.21254628 | M110: 84.01542387 | N110: 90.69503265 | O110: 97.26035593 | P110: 103.719282 | Q110: 110.0787862 | R110: 116.3450746 | S110: 122.5237008 | T110: 128.6196596 | U110: 134.6374643 | V110: 140.5812105 | W110: 146.4546297
B111: 0 | C111: 0 | D111: 7.91692774 | E111: 15.52735223 | F111: 22.87621426 | G111: 29.99798179 | H111: 36.91983116 | I111: 43.66367454 | J111: 50.24750954 | K111: 56.68635028 | L111: 62.99288926 | M111: 69.17797988 | N111: 75.25099606 | O111: 81.2201053 | P111: 87.09247958 | Q111: 92.87446063 | R111: 98.57169117 | S111: 104.1892203 | T111: 109.7315893 | U111: 115.2029015 | V111: 120.6068807 | W111: 125.9469194
B112: y/x | C112: 0 | D112: 1 | E112: 2 | F112: 3 | G112: 4 | H112: 5 | I112: 6 | J112: 7 | K112: 8 | L112: 9 | M112: 10 | N112: 11 | O112: 12 | P112: 13 | Q112: 14 | R112: 15 | S112: 16 | T112: 17 | U112: 18 | V112: 19 | W112: 20
J113: Consumption of Good x
A115: Table 5 - Overlay of Indifference Curves and Budget Constraints showing the Substitution and Income Effects of a Price of x Increase: y is a substitute for x | AB115: The graphic overlay here requires Pxlow=1, Pxhigh=2, and Income=20 in cells N2, O2, and R2 of the Base sheet.
AC116: Next, click Data, What-If Analysis, Scenario Manager, then choose JETTables4and5, Show, Close.
B117: 20 | C117: 127.7357873 | D117: 148.394008 | E117: 168.2524474 | F117: 187.4283726 | G117: 206.0117234 | H117: 224.0734131 | I117: 241.6706188 | J117: 258.8503028 | K117: 275.6516426 | L117: 292.1077577 | M117: 308.2469688 | N117: 324.0937357 | O117: 339.6693707 | P117: 354.992588 | Q117: 370.0799356 | R117: 384.9461375 | S117: 399.6043687 | T117: 414.0664789 | U117: 428.3431755 | V117: 442.4441752 | W117: 456.3783303 | AD117: To obtain Table 5, click the graphic components you wish to use.
B118: 19 | C118: 122.2700331 | D118: 142.3830599 | E118: 161.7174125 | F118: 180.3872632 | G118: 198.4801783 | H118: 216.0651995 | I118: 233.1979949 | J118: 249.9242875 | K118: 266.2822209 | L118: 282.3040404 | M118: 298.0173193 | N118: 313.4458721 | O118: 328.6104483 | P118: 343.5292685 | Q118: 358.2184439 | R118: 372.6923098 | S118: 386.9636937 | T118: 401.0441324 | U118: 414.9440507 | V118: 428.672909 | W118: 442.2393259 | AC118: Note: Prices and income can only be changed in N2:R2 of the Base sheet.
B119: 18 | C119: 116.7421676 | D119: 136.303805 | E119: 155.1081152 | F119: 173.2661406 | G119: 190.8630467 | H119: 207.9659827 | I119: 224.6290904 | J119: 240.8968394 | K119: 256.8063275 | L119: 272.3889163 | M119: 287.6714229 | N119: 302.677009 | O119: 317.4258554 | P119: 331.935683 | Q119: 346.2221614 | R119: 360.2992329 | S119: 374.1793734 | T119: 387.8738033 | U119: 401.3926618 | V119: 414.7451497 | W119: 427.9396496 | AE119: Budget Constraint | AJ119: $L to $H | AL119: $H to $L
B120: 17 | C120: 111.1489495 | D120: 130.1526788 | E120: 148.4206803 | F120: 166.0608293 | G120: 183.1558625 | H120: 199.7710138 | I120: 215.958881 | J120: 231.7626653 | K120: 247.2184066 | L120: 262.3565717 | M120: 277.2032133 | N120: 291.7808322 | O120: 306.1090338 | P120: 320.2050336 | Q120: 334.0840542 | R120: 347.7596403 | S120: 361.2439119 | T120: 374.5477696 | U120: 387.6810631 | V120: 400.6527312 | W120: 413.470917 | AE120: Indifference Curve | AM120: Substitution BC
B121: 16 | C121: 105.486825 | D121: 123.925773 | E121: 141.6508586 | F121: 158.7667513 | G121: 175.3537286 | H121: 191.475086 | I121: 207.1818578 | J121: 222.5159616 | K121: 237.512366 | L121: 252.2006325 | M121: 266.6060392 | N121: 280.7504187 | O121: 294.6527933 | P121: 308.329867 | Q121: 321.79641 | R121: 335.0655646 | S121: 348.1490904 | T121: 361.057564 | U121: 373.8005427 | V121: 386.3866992 | W121: 398.823935 | AC121: L | AD121: H | AE121: Price of x. | AM121: Substitution effect
B122: 15 | C122: 99.7518825 | D122: 117.6187858 | E122: 134.7939733 | F122: 151.3788674 | G122: 167.451255 | H122: 183.0724679 | I122: 198.2919573 | J122: 213.1503402 | K122: 227.6815003 | L122: 241.9140822 | M122: 255.8725797 | N122: 269.5781479 | O122: 283.0492192 | P122: 296.3019792 | Q122: 309.35074 | R122: 322.2082361 | S122: 334.8858622 | T122: 347.393867 | U122: 359.7415111 | V122: 371.9371983 | W122: 383.9885848 | AM122: Income effect
A123: Consumption of Good y | B123: 14 | C123: 93.93979829 | D123: 111.2269622 | E123: 127.8448549 | F123: 143.8916078 | G123: 159.4424839 | H123: 174.5568248 | I123: 189.2824772 | J123: 203.6587402 | K123: 217.718398 | L123: 231.4891658 | M123: 244.9947425 | N123: 258.255597 | O123: 271.2895633 | P123: 284.1123022 | Q123: 296.7376611 | R123: 309.1779614 | S123: 321.4442281 | T123: 333.5463773 | U123: 345.4933691 | V123: 357.2933346 | W123: 368.9536817
B124: 13 | C124: 88.04577136 | D124: 104.7450223 | E124: 120.7977631 | F124: 136.2987877 | G124: 151.3207996 | H124: 165.9211223 | I124: 180.1459753 | J124: 194.0333211 | K124: 207.6148291 | L124: 220.9172717 | M124: 233.9635422 | N124: 246.773413 | O124: 259.3641119 | P124: 271.7507668 | Q124: 283.9467544 | R124: 295.963977 | S124: 307.8130846 | T124: 319.5036562 | U124: 331.044347 | V124: 342.4430118 | W124: 353.7068063
B125: 12 | C125: 82.06444379 | D125: 98.16707381 | E125: 113.6462917 | F125: 128.5935049 | G125: 143.0788193 | H125: 157.1575103 | I125: 170.8741462 | J125: 184.2653331 | K125: 197.361609 | L125: 210.1887899 | M125: 222.7689509 | N125: 235.1211582 | O125: 247.262024 | P125: 259.2061359 | Q125: 270.9663925 | R125: 282.5542708 | S125: 293.9800406 | T125: 305.2529383 | U125: 316.3813102 | V125: 327.3727302 | W125: 338.2340985
B126: 11 | C126: 75.98980306 | D126: 91.48650439 | E126: 106.3832521 | F126: 120.768014 | G126: 134.7082579 | H126: 148.2571794 | I126: 161.4576696 | J126: 174.3449572 | K126: 186.9484311 | L126: 199.2929357 | M126: 211.3997156 | N126: 223.2871196 | O126: 234.9711346 | P126: 246.4657994 | Q126: 257.7835272 | R126: 268.9353633 | S126: 279.9311907 | T126: 290.7798986 | U126: 301.4895191 | V126: 312.067341 | W126: 322.520005
B127: 10 | C127: 69.8150606 | D127: 84.69584838 | E127: 99.0005276 | F127: 112.8135697 | G127: 126.1997613 | H127: 139.2101834 | I127: 151.8860225 | J127: 164.2611072 | K127: 176.3636583 | L127: 188.2175328 | M127: 199.843131 | N127: 211.2580722 | O127: 222.4777083 | P127: 233.5155197 | Q127: 244.3834265 | R127: 255.0920349 | S127: 265.6508352 | T127: 276.0683632 | U127: 286.3523317 | V127: 296.50974 | W127: 306.5469648
B128: 9 | C128: 63.53249938 | D128: 77.78661898 | E128: 91.48889142 | F128: 104.7202309 | G128: 117.5426955 | H128: 130.0052153 | I128: 142.1472423 | J128: 154.0011804 | K128: 165.594062 | L128: 176.9487395 | M128: 188.0847539 | N128: 199.0189826 | O128: 209.766131 | P128: 220.3391118 | Q128: 230.7493432 | R128: 241.0069846 | S128: 251.1211267 | T128: 261.0999458 | U128: 270.95083 | V128: 280.6804838 | W128: 290.2950153
B129: 8 | C129: 57.13327975 | D129: 70.74909481 | E129: 83.83777463 | F129: 96.47661 | G129: 108.7248801 | H129: 120.6293239 | I129: 132.2276266 | J129: 143.5507411 | K129: 154.6244894 | L129: 165.4707003 | M129: 176.1080401 | N129: 186.5526302 | O129: 196.8185174 | P129: 206.9180364 | Q129: 216.8620939 | R129: 226.6603945 | S129: 236.3216217 | T129: 245.8535858 | U129: 255.2633439 | V129: 264.5573003 | W129: 273.7412897
B130: 7 | C130: 50.60718896 | D130: 63.57204443 | E130: 76.03496652 | F130: 88.06955081 | G130: 99.73224242 | H130: 111.0675457 | I130: 122.1113442 | J130: 132.8931111 | K130: 143.4374336 | L130: 153.7650972 | M130: 163.8938755 | N130: 173.8391194 | O130: 183.614204 | P130: 193.2308743 | Q130: 202.6995156 | R130: 212.0293684 | S130: 221.2287012 | T130: 230.3049509 | U130: 239.2648371 | V130: 248.114458 | W130: 256.8593693
B131: 6 | C131: 43.94231228 | D131: 56.24236467 | E131: 68.06622146 | F131: 79.48370447 | G131: 90.54836446 | H131: 101.3024237 | I131: 111.7799258 | J131: 122.0088325 | K131: 132.0124704 | L131: 141.810559 | M131: 151.4199607 | N131: 160.8552391 | O131: 170.1290835 | P131: 179.2526367 | Q131: 188.2357514 | R131: 197.0871943 | S131: 205.81481 | T131: 214.4256539 | U131: 222.9261011 | V131: 231.3219372 | W131: 239.6184328
B132: 5 | C132: 37.12459342 | D132: 48.74459712 | E132: 59.91473327 | F132: 70.70096333 | G132: 81.15387736 | H132: 91.3133632 | I132: 101.2115823 | J132: 110.8749504 | K132: 120.3255044 | L132: 129.5818736 | M132: 138.659988 | N132: 147.5736061 | O132: 156.3347157 | P132: 164.9538434 | Q132: 173.4402971 | R132: 181.8023591 | S132: 190.0474399 | T132: 198.1822051 | U132: 206.2126773 | V132: 214.144322 | W132: 221.9821187
B133: 4 | C133: 30.13723402 | D133: 41.06026786 | E133: 51.56041729 | F133: 61.69968738 | G133: 71.52563379 | H133: 81.0757519 | I133: 90.38027405 | J133: 99.46403164 | K133: 108.3477398 | L133: 117.0489103 | M133: 125.5825179 | N133: 133.9614956 | O133: 142.1971123 | P133: 150.2992632 | Q133: 158.2766979 | R133: 166.1372019 | S133: 173.8877414 | T133: 181.5345819 | U133: 189.083385 | V133: 196.5392883 | W133: 203.9069725
B134: 3 | C134: 22.95985306 | D134: 33.16696292 | E134: 42.9789053 | F134: 52.45362131 | G134: 61.6355497 | H134: 70.55972828 | I134: 79.2544079 | J134: 87.74279244 | K134: 96.04423928 | L134: 104.1751126 | M134: 112.1494053 | N134: 119.9792031 | O134: 127.6750361 | P134: 135.246151 | Q134: 142.700724 | R134: 150.0460301 | S134: 157.2885791 | T134: 164.4342258 | U134: 171.4882608 | V134: 178.4554848 | W134: 185.3402719
B135: 2 | C135: 15.56727516 | D135: 25.03699573 | E135: 34.14009679 | F135: 42.93033364 | G135: 51.44893462 | H135: 59.72840635 | I135: 67.79495874 | J135: 75.67011937 | K135: 83.37184719 | L135: 90.91532413 | M135: 98.31353235 | N135: 105.5776843 | O135: 112.7175495 | P135: 119.7417065 | Q135: 126.6577409 | R135: 133.4724022 | S135: 140.1917299 | T135: 146.8211557 | U135: 153.365588 | V135: 159.8294809 | W135: 166.2168924
B136: 1 | C136: 7.927722444 | D136: 16.63541867 | E136: 25.0059971 | F136: 33.08888736 | G136: 40.92200018 | H136: 48.53522638 | I136: 55.95266676 | J136: 63.1941166 | K136: 70.27608969 | L136: 77.21254628 | M136: 84.01542387 | N136: 90.69503265 | O136: 97.26035593 | P136: 103.719282 | Q136: 110.0787862 | R136: 116.3450746 | S136: 122.5237008 | T136: 128.6196596 | U136: 134.6374643 | V136: 140.5812105 | W136: 146.4546297
B137: 0 | C137: 0 | D137: 7.91692774 | E137: 15.52735223 | F137: 22.87621426 | G137: 29.99798179 | H137: 36.91983116 | I137: 43.66367454 | J137: 50.24750954 | K137: 56.68635028 | L137: 62.99288926 | M137: 69.17797988 | N137: 75.25099606 | O137: 81.2201053 | P137: 87.09247958 | Q137: 92.87446063 | R137: 98.57169117 | S137: 104.1892203 | T137: 109.7315893 | U137: 115.2029015 | V137: 120.6068807 | W137: 125.9469194
B138: y/x | C138: 0 | D138: 1 | E138: 2 | F138: 3 | G138: 4 | H138: 5 | I138: 6 | J138: 7 | K138: 8 | L138: 9 | M138: 10 | N138: 11 | O138: 12 | P138: 13 | Q138: 14 | R138: 15 | S138: 16 | T138: 17 | U138: 18 | V138: 19 | W138: 20
J139: Consumption of Good x
A141: Table 6 - An Indifference Map in which an Increase in the Price of x from $1 to $2 leads to the individual purchasing only y, given Income = $20 and Py = $1. | AB141: To show Table 6, click Data, What-If Analysis, Scenario Manager, then choose JETTables6and7, Show, Close on the Base sheet.
B143: 20 | C143: 176.8672565 | D143: 190.5951207 | E143: 203.288635 | F143: 215.1028737 | G143: 226.1598111 | H143: 236.5571987 | I143: 246.3746385 | J143: 255.6778554 | K143: 264.5217753 | L143: 272.9527908 | M143: 281.0104585 | N143: 288.7287922 | O143: 296.1372623 | P143: 303.2615787 | Q143: 310.1243106 | R143: 316.7453836 | S143: 323.1424807 | T143: 329.3313705 | U143: 335.3261765 | V143: 341.139601 | W143: 346.7831111
B144: 19 | C144: 169.9113797 | D144: 183.5458066 | E144: 196.1529239 | F144: 207.8867502 | G144: 218.8684297 | H144: 229.1950487 | I144: 238.9456672 | J144: 248.1855627 | K144: 256.9692874 | L144: 265.3429181 | M144: 273.3457422 | N144: 281.0115419 | O144: 288.369587 | P144: 295.4454125 | Q144: 302.261434 | R144: 308.8374414 | S144: 315.1909973 | T144: 321.3377631 | U144: 327.2917661 | V144: 333.0656222 | W144: 338.6707204
B145: 18 | C145: 162.8171204 | D145: 176.3562512 | E145: 188.8752527 | F145: 200.5270669 | G145: 211.4319914 | H145: 221.6864337 | I145: 231.3689015 | J145: 240.544216 | K145: 249.266548 | L145: 257.5816523 | M145: 265.5285416 | N145: 273.1407621 | O145: 280.4473792 | P145: 287.4737491 | Q145: 294.2421309 | R145: 300.7721761 | S145: 307.0813246 | T145: 313.1851284 | U145: 319.0975167 | V145: 324.8310171 | W145: 330.3969392
B146: 17 | C146: 155.5778261 | D146: 169.0197126 | E146: 181.4487967 | F146: 193.0169223 | G146: 203.8435225 | H146: 214.0243127 | I146: 223.6372365 | J146: 232.7466495 | K146: 241.4063337 | L146: 249.6617151 | M146: 257.5515262 | N146: 265.1090722 | O146: 272.3632097 | P146: 279.339113 | Q146: 286.0588811 | R146: 292.5420245 | S146: 298.8058578 | T146: 304.8658212 | U146: 310.735744 | V146: 316.4280638 | W146: 321.9540088
B147: 16 | C147: 148.186326 | D147: 161.5289236 | E147: 173.8662 | F147: 185.3488772 | G147: 196.0955065 | H147: 206.2010959 | I147: 215.7430136 | J147: 224.7851397 | K147: 233.3808589 | L147: 241.5752617 | M147: 249.4067944 | N147: 256.9085164 | O147: 264.109071 | P147: 271.0334466 | Q147: 277.703579 | R147: 284.1388344 | S147: 290.3563998 | T147: 296.371601 | U147: 302.1981655 | V147: 307.8484388 | W147: 313.3335662
B148: 15 | C148: 140.6348748 | D148: 153.876035 | E148: 166.1195169 | F148: 177.5148967 | G148: 188.1798244 | H148: 198.2085858 | I148: 207.6779608 | J148: 216.6513439 | K148: 225.1817139 | L148: 233.3138184 | M148: 241.0858118 | N148: 248.5305017 | O148: 255.6763139 | P148: 262.5480467 | Q148: 269.1674692 | R148: 275.5538004 | S148: 281.7240965 | T148: 287.6935671 | U148: 293.4758349 | V148: 299.0831518 | W148: 304.5265784
A149: Consumption of Good y | B149: 14 | C149: 132.9150878 | D149: 146.0525493 | E149: 158.2001458 | F149: 169.5062823 | G149: 180.0876871 | H149: 190.0379079 | I149: 199.433123 | J149: 208.3362307 | K149: 216.7997947 | L149: 224.8682124 | M149: 232.579339 | N149: 239.9657255 | O149: 247.055575 | P149: 253.8734915 | Q149: 260.4410737 | R149: 266.7773901 | S149: 272.8993633 | T149: 278.8220837 | U149: 284.5590674 | V149: 290.1224704 | W149: 295.5232666
B150: 13 | C150: 125.0178665 | D150: 138.0492459 | E150: 150.0987532 | F150: 161.313595 | G150: 171.8095573 | H150: 181.6794322 | I150: 190.998783 | J150: 199.83 | K150: 208.2252226 | L150: 216.2284895 | M150: 223.8773504 | N150: 231.2040935 | O150: 238.236694 | P150: 244.9995573 | Q150: 251.5141077 | R150: 257.7992597 | S150: 263.8717993 | T150: 269.746695 | U150: 275.4373538 | V150: 280.9558335 | W150: 286.3130195
B151: 12 | C151: 116.9333132 | D151: 129.8560939 | E151: 141.8051852 | F151: 152.9265668 | G151: 163.3350598 | H151: 173.1226829 | I151: 182.3643698 | J151: 191.1219908 | K151: 199.4472507 | L151: 207.3838215 | M151: 214.9689397 | N151: 222.2346245 | O151: 229.2086179 | P151: 235.9151221 | Q151: 242.3753828 | R151: 248.6081567 | S151: 254.6300901 | T151: 260.4560266 | U151: 266.0992617 | V151: 271.5717525 | W151: 276.8842936
B152: 11 | C152: 108.6506317 | D152: 121.4621524 | E152: 133.3083668 | F152: 144.3339978 | G152: 154.6528777 | H152: 164.3562333 | I152: 173.5183529 | J152: 182.2005743 | K152: 190.4541571 | L152: 198.3223972 | M152: 205.8422106 | N152: 213.0453407 | O152: 219.9592908 | P152: 226.6080547 | Q152: 233.0126951 | R152: 239.1918073 | S152: 245.1618942 | T152: 250.9376718 | U152: 256.5323209 | V152: 261.9576957 | W152: 267.224498
B153: 10 | C153: 100.1580124 | D153: 112.8554531 | E153: 124.596183 | F153: 135.5236363 | G153: 145.750632 | H153: 155.3675841 | I153: 164.4481198 | J153: 173.0530304 | K153: 181.2331193 | L153: 189.0312966 | M153: 196.48415 | N153: 203.6231399 | O153: 210.4755248 | P153: 217.0650849 | Q153: 223.4126952 | R153: 229.5367856 | S153: 235.4537119 | T153: 241.1780591 | U153: 246.7228907 | V153: 252.0999553 | W153: 257.3198595
B154: 9 | C154: 91.44249788 | D154: 104.0228644 | E154: 115.6553413 | F154: 126.4820403 | G154: 136.61474 | H154: 146.143021 | I154: 155.1398314 | J154: 163.6654022 | K154: 171.7700683 | L154: 179.4963441 | M154: 186.8804799 | N154: 193.9536463 | O154: 200.7428502 | P154: 207.2716525 | Q154: 213.560736 | R154: 219.6283605 | S154: 225.490731 | T154: 231.162298 | U154: 236.6560046 | V154: 241.9834911 | W154: 247.1552662
B155: 8 | C155: 82.48982477 | D155: 94.94993144 | E155: 106.4712096 | F155: 117.1944126 | G155: 127.2302505 | H155: 136.6674475 | I155: 145.5782545 | J155: 154.0223265 | K155: 162.0495174 | L155: 169.7019352 | M155: 177.0154836 | N155: 184.0210352 | O155: 190.7453389 | P155: 197.2117303 | Q155: 203.4406943 | R155: 209.4503164 | S155: 215.2566466 | T155: 220.8739972 | U155: 226.3151876 | V155: 231.5917469 | W155: 236.7140833
B156: 7 | C156: 73.28423729 | D156: 85.62068672 | E156: 97.02762486 | F156: 107.6444081 | G156: 117.5806478 | H156: 126.9241876 | I156: 135.7465615 | J156: 144.1068325 | K156: 152.0543595 | L156: 159.6308328 | M156: 166.8717997 | N156: 173.8078264 | O156: 180.4653964 | P156: 186.8676137 | Q156: 193.0347599 | R156: 198.984741 | S156: 204.7334477 | T156: 210.2950503 | U156: 215.682241 | V156: 220.9064344 | W156: 225.9779354
B157: 6 | C157: 63.80826564 | D157: 76.0174258 | E157: 87.30666551 | F157: 97.81390323 | G157: 107.6476194 | H157: 116.8947512 | I157: 125.6260946 | J157: 133.9001031 | K157: 141.7656263 | L157: 149.2639245 | M157: 156.4301781 | N157: 163.2946379 | O157: 169.8835141 | P157: 176.2196723 | Q157: 182.3231851 | R157: 188.2117734 | S157: 193.9011641 | T157: 199.4053813 | U157: 204.7369862 | V157: 209.9072756 | W157: 214.9264481
B158: 5 | C158: 54.04246089 | D158: 66.1204385 | E158: 77.28837983 | F158: 87.68272148 | G158: 97.41077825 | H158: 106.5585534 | I158: 115.1960819 | J158: 123.3811895 | K158: 131.1622009 | L158: 138.5799328 | M158: 145.6691878 | N158: 152.4598918 | O158: 158.9779732 | P158: 165.2460519 | Q158: 171.2839848 | R158: 177.1093026 | S158: 182.7375631 | T158: 188.1826397 | U158: 193.4569586 | V158: 198.5716953 | W158: 203.5369388
B159: 4 | C159: 43.96507567 | D159: 55.90768533 | E159: 66.95045823 | F159: 77.22830182 | G159: 86.84732815 | H159: 95.89257656 | I159: 104.4332971 | J159: 112.5266674 | K159: 120.2204704 | L159: 127.5550657 | M159: 134.5648655 | N159: 141.2794604 | O159: 147.7244882 | P159: 153.9223154 | Q159: 159.8925761 | R159: 165.6526047 | S159: 171.2177846 | T159: 176.6018337 | U159: 181.8170389 | V159: 186.8744505 | W159: 191.7840444
B160: 3 | C160: 33.55167666 | D160: 45.35440473 | E160: 56.26783567 | F160: 66.42529678 | G160: 75.93165722 | H160: 84.8709603 | I160: 93.31164498 | J160: 101.3102191 | K160: 108.913906 | L160: 116.1625925 | M160: 123.0902879 | N160: 129.7262359 | O160: 136.0957743 | P160: 142.2210075 | Q160: 148.1213397 | R160: 153.8139021 | S160: 159.3138981 | T160: 164.6348848 | U160: 169.7890053 | V160: 174.7871803 | W160: 179.6392691
B161: 2 | C161: 22.77467023 | D161: 34.43263243 | E161: 45.21220514 | F161: 55.24508033 | G161: 64.63484091 | H161: 73.46449935 | I161: 81.80165516 | J161: 89.70212307 | K161: 97.21254733 | L161: 104.3723254 | M161: 111.2150493 | N161: 117.7696044 | O161: 124.0610175 | P161: 130.1111219 | Q161: 135.9390839 | R161: 141.5618244 | S161: 146.9943604 | T161: 152.2500827 | U161: 157.3409856 | V161: 162.2778557 | W161: 167.0704314
B162: 1 | C162: 11.60271674 | D162: 23.11060781 | E162: 33.75141676 | F162: 43.65514031 | G162: 52.92402797 | H162: 61.64002359 | I162: 69.86985649 | J162: 77.66862291 | K162: 85.08236666 | L162: 92.14997798 | M162: 98.90461665 | N162: 105.374796 | O162: 111.5852207 | P162: 117.557443 | Q162: 123.3103825 | R162: 128.8607424 | S162: 134.2233462 | T162: 139.4114124 | U162: 144.4367809 | V162: 149.3100995 | W162: 154.040981
B163: 0 | C163: 0 | D163: 11.35203356 | E163: 21.84872836 | F163: 31.61832051 | G163: 40.76167467 | H163: 49.35962491 | I163: 57.4779968 | J163: 65.17114036 | K163: 72.48447583 | L163: 79.45636672 | M163: 86.11952371 | N163: 92.50207395 | O163: 98.62838757 | P163: 104.5197249 | Q163: 110.1947493 | R163: 115.6699377 | S163: 120.9599128 | T163: 126.0777144 | U163: 131.0350216 | V163: 135.8423382 | W163: 140.5091469
B164: y/x | C164: 0 | D164: 1 | E164: 2 | F164: 3 | G164: 4 | H164: 5 | I164: 6 | J164: 7 | K164: 8 | L164: 9 | M164: 10 | N164: 11 | O164: 12 | P164: 13 | Q164: 14 | R164: 15 | S164: 16 | T164: 17 | U164: 18 | V164: 19 | W164: 20
J165: Consumption of Good x
A167: Table 7 - Overlay of Indifference Curves and Budget Constraints for Table 6: An Increase in the Price of x Causes the Individual to Purchase only y | AB167: The graphic overlay here requires Pxlow=1, Pxhigh=2, and Income=20 in cells N2, O2, and R2 of the Base sheet.
AC168: Next, click Data, What-If Analysis, Scenario Manager, then choose JETTables6and7, Show, Close.
A169: Consumption of Good y | B169: 20 | C169: 176.8672565 | D169: 190.5951207 | E169: 203.288635 | F169: 215.1028737 | G169: 226.1598111 | H169: 236.5571987 | I169: 246.3746385 | J169: 255.6778554 | K169: 264.5217753 | L169: 272.9527908 | M169: 281.0104585 | N169: 288.7287922 | O169: 296.1372623 | P169: 303.2615787 | Q169: 310.1243106 | R169: 316.7453836 | S169: 323.1424807 | T169: 329.3313705 | U169: 335.3261765 | V169: 341.139601 | W169: 346.7831111 | AD169: To obtain Table 7, click the graphic components you wish to use and
B170: 19 | C170: 169.9113797 | D170: 183.5458066 | E170: 196.1529239 | F170: 207.8867502 | G170: 218.8684297 | H170: 229.1950487 | I170: 238.9456672 | J170: 248.1855627 | K170: 256.9692874 | L170: 265.3429181 | M170: 273.3457422 | N170: 281.0115419 | O170: 288.369587 | P170: 295.4454125 | Q170: 302.261434 | R170: 308.8374414 | S170: 315.1909973 | T170: 321.3377631 | U170: 327.2917661 | V170: 333.0656222 | W170: 338.6707204 | AC170: Note: Prices and income can only be changed in N2:R2 of the Base sheet.
B171: 18 | C171: 162.8171204 | D171: 176.3562512 | E171: 188.8752527 | F171: 200.5270669 | G171: 211.4319914 | H171: 221.6864337 | I171: 231.3689015 | J171: 240.544216 | K171: 249.266548 | L171: 257.5816523 | M171: 265.5285416 | N171: 273.1407621 | O171: 280.4473792 | P171: 287.4737491 | Q171: 294.2421309 | R171: 300.7721761 | S171: 307.0813246 | T171: 313.1851284 | U171: 319.0975167 | V171: 324.8310171 | W171: 330.3969392 | AE171: Budget Constraint | AJ171: $L to $H | AL171: $H to $L
B172: 17 | C172: 155.5778261 | D172: 169.0197126 | E172: 181.4487967 | F172: 193.0169223 | G172: 203.8435225 | H172: 214.0243127 | I172: 223.6372365 | J172: 232.7466495 | K172: 241.4063337 | L172: 249.6617151 | M172: 257.5515262 | N172: 265.1090722 | O172: 272.3632097 | P172: 279.339113 | Q172: 286.0588811 | R172: 292.5420245 | S172: 298.8058578 | T172: 304.8658212 | U172: 310.735744 | V172: 316.4280638 | W172: 321.9540088 | AE172: Indifference Curve | AM172: Substitution BC
B173: 16 | C173: 148.186326 | D173: 161.5289236 | E173: 173.8662 | F173: 185.3488772 | G173: 196.0955065 | H173: 206.2010959 | I173: 215.7430136 | J173: 224.7851397 | K173: 233.3808589 | L173: 241.5752617 | M173: 249.4067944 | N173: 256.9085164 | O173: 264.109071 | P173: 271.0334466 | Q173: 277.703579 | R173: 284.1388344 | S173: 290.3563998 | T173: 296.371601 | U173: 302.1981655 | V173: 307.8484388 | W173: 313.3335662 | AC173: L | AD173: H | AE173: Price of x. | AM173: Substitution effect
B174: 15 | C174: 140.6348748 | D174: 153.876035 | E174: 166.1195169 | F174: 177.5148967 | G174: 188.1798244 | H174: 198.2085858 | I174: 207.6779608 | J174: 216.6513439 | K174: 225.1817139 | L174: 233.3138184 | M174: 241.0858118 | N174: 248.5305017 | O174: 255.6763139 | P174: 262.5480467 | Q174: 269.1674692 | R174: 275.5538004 | S174: 281.7240965 | T174: 287.6935671 | U174: 293.4758349 | V174: 299.0831518 | W174: 304.5265784 | AM174: Income effect
B175: 14 | C175: 132.9150878 | D175: 146.0525493 | E175: 158.2001458 | F175: 169.5062823 | G175: 180.0876871 | H175: 190.0379079 | I175: 199.433123 | J175: 208.3362307 | K175: 216.7997947 | L175: 224.8682124 | M175: 232.579339 | N175: 239.9657255 | O175: 247.055575 | P175: 253.8734915 | Q175: 260.4410737 | R175: 266.7773901 | S175: 272.8993633 | T175: 278.8220837 | U175: 284.5590674 | V175: 290.1224704 | W175: 295.5232666
B176: 13 | C176: 125.0178665 | D176: 138.0492459 | E176: 150.0987532 | F176: 161.313595 | G176: 171.8095573 | H176: 181.6794322 | I176: 190.998783 | J176: 199.83 | K176: 208.2252226 | L176: 216.2284895 | M176: 223.8773504 | N176: 231.2040935 | O176: 238.236694 | P176: 244.9995573 | Q176: 251.5141077 | R176: 257.7992597 | S176: 263.8717993 | T176: 269.746695 | U176: 275.4373538 | V176: 280.9558335 | W176: 286.3130195
B177: 12 | C177: 116.9333132 | D177: 129.8560939 | E177: 141.8051852 | F177: 152.9265668 | G177: 163.3350598 | H177: 173.1226829 | I177: 182.3643698 | J177: 191.1219908 | K177: 199.4472507 | L177: 207.3838215 | M177: 214.9689397 | N177: 222.2346245 | O177: 229.2086179 | P177: 235.9151221 | Q177: 242.3753828 | R177: 248.6081567 | S177: 254.6300901 | T177: 260.4560266 | U177: 266.0992617 | V177: 271.5717525 | W177: 276.8842936
B178: 11 | C178: 108.6506317 | D178: 121.4621524 | E178: 133.3083668 | F178: 144.3339978 | G178: 154.6528777 | H178: 164.3562333 | I178: 173.5183529 | J178: 182.2005743 | K178: 190.4541571 | L178: 198.3223972 | M178: 205.8422106 | N178: 213.0453407 | O178: 219.9592908 | P178: 226.6080547 | Q178: 233.0126951 | R178: 239.1918073 | S178: 245.1618942 | T178: 250.9376718 | U178: 256.5323209 | V178: 261.9576957 | W178: 267.224498
B179: 10 | C179: 100.1580124 | D179: 112.8554531 | E179: 124.596183 | F179: 135.5236363 | G179: 145.750632 | H179: 155.3675841 | I179: 164.4481198 | J179: 173.0530304 | K179: 181.2331193 | L179: 189.0312966 | M179: 196.48415 | N179: 203.6231399 | O179: 210.4755248 | P179: 217.0650849 | Q179: 223.4126952 | R179: 229.5367856 | S179: 235.4537119 | T179: 241.1780591 | U179: 246.7228907 | V179: 252.0999553 | W179: 257.3198595
B180: 9 | C180: 91.44249788 | D180: 104.0228644 | E180: 115.6553413 | F180: 126.4820403 | G180: 136.61474 | H180: 146.143021 | I180: 155.1398314 | J180: 163.6654022 | K180: 171.7700683 | L180: 179.4963441 | M180: 186.8804799 | N180: 193.9536463 | O180: 200.7428502 | P180: 207.2716525 | Q180: 213.560736 | R180: 219.6283605 | S180: 225.490731 | T180: 231.162298 | U180: 236.6560046 | V180: 241.9834911 | W180: 247.1552662
B181: 8 | C181: 82.48982477 | D181: 94.94993144 | E181: 106.4712096 | F181: 117.1944126 | G181: 127.2302505 | H181: 136.6674475 | I181: 145.5782545 | J181: 154.0223265 | K181: 162.0495174 | L181: 169.7019352 | M181: 177.0154836 | N181: 184.0210352 | O181: 190.7453389 | P181: 197.2117303 | Q181: 203.4406943 | R181: 209.4503164 | S181: 215.2566466 | T181: 220.8739972 | U181: 226.3151876 | V181: 231.5917469 | W181: 236.7140833
B182: 7 | C182: 73.28423729 | D182: 85.62068672 | E182: 97.02762486 | F182: 107.6444081 | G182: 117.5806478 | H182: 126.9241876 | I182: 135.7465615 | J182: 144.1068325 | K182: 152.0543595 | L182: 159.6308328 | M182: 166.8717997 | N182: 173.8078264 | O182: 180.4653964 | P182: 186.8676137 | Q182: 193.0347599 | R182: 198.984741 | S182: 204.7334477 | T182: 210.2950503 | U182: 215.682241 | V182: 220.9064344 | W182: 225.9779354
B183: 6 | C183: 63.80826564 | D183: 76.0174258 | E183: 87.30666551 | F183: 97.81390323 | G183: 107.6476194 | H183: 116.8947512 | I183: 125.6260946 | J183: 133.9001031 | K183: 141.7656263 | L183: 149.2639245 | M183: 156.4301781 | N183: 163.2946379 | O183: 169.8835141 | P183: 176.2196723 | Q183: 182.3231851 | R183: 188.2117734 | S183: 193.9011641 | T183: 199.4053813 | U183: 204.7369862 | V183: 209.9072756 | W183: 214.9264481
B184: 5 | C184: 54.04246089 | D184: 66.1204385 | E184: 77.28837983 | F184: 87.68272148 | G184: 97.41077825 | H184: 106.5585534 | I184: 115.1960819 | J184: 123.3811895 | K184: 131.1622009 | L184: 138.5799328 | M184: 145.6691878 | N184: 152.4598918 | O184: 158.9779732 | P184: 165.2460519 | Q184: 171.2839848 | R184: 177.1093026 | S184: 182.7375631 | T184: 188.1826397 | U184: 193.4569586 | V184: 198.5716953 | W184: 203.5369388
B185: 4 | C185: 43.96507567 | D185: 55.90768533 | E185: 66.95045823 | F185: 77.22830182 | G185: 86.84732815 | H185: 95.89257656 | I185: 104.4332971 | J185: 112.5266674 | K185: 120.2204704 | L185: 127.5550657 | M185: 134.5648655 | N185: 141.2794604 | O185: 147.7244882 | P185: 153.9223154 | Q185: 159.8925761 | R185: 165.6526047 | S185: 171.2177846 | T185: 176.6018337 | U185: 181.8170389 | V185: 186.8744505 | W185: 191.7840444
B186: 3 | C186: 33.55167666 | D186: 45.35440473 | E186: 56.26783567 | F186: 66.42529678 | G186: 75.93165722 | H186: 84.8709603 | I186: 93.31164498 | J186: 101.3102191 | K186: 108.913906 | L186: 116.1625925 | M186: 123.0902879 | N186: 129.7262359 | O186: 136.0957743 | P186: 142.2210075 | Q186: 148.1213397 | R186: 153.8139021 | S186: 159.3138981 | T186: 164.6348848 | U186: 169.7890053 | V186: 174.7871803 | W186: 179.6392691
B187: 2 | C187: 22.77467023 | D187: 34.43263243 | E187: 45.21220514 | F187: 55.24508033 | G187: 64.63484091 | H187: 73.46449935 | I187: 81.80165516 | J187: 89.70212307 | K187: 97.21254733 | L187: 104.3723254 | M187: 111.2150493 | N187: 117.7696044 | O187: 124.0610175 | P187: 130.1111219 | Q187: 135.9390839 | R187: 141.5618244 | S187: 146.9943604 | T187: 152.2500827 | U187: 157.3409856 | V187: 162.2778557 | W187: 167.0704314
B188: 1 | C188: 11.60271674 | D188: 23.11060781 | E188: 33.75141676 | F188: 43.65514031 | G188: 52.92402797 | H188: 61.64002359 | I188: 69.86985649 | J188: 77.66862291 | K188: 85.08236666 | L188: 92.14997798 | M188: 98.90461665 | N188: 105.374796 | O188: 111.5852207 | P188: 117.557443 | Q188: 123.3103825 | R188: 128.8607424 | S188: 134.2233462 | T188: 139.4114124 | U188: 144.4367809 | V188: 149.3100995 | W188: 154.040981
B189: 0 | C189: 0 | D189: 11.35203356 | E189: 21.84872836 | F189: 31.61832051 | G189: 40.76167467 | H189: 49.35962491 | I189: 57.4779968 | J189: 65.17114036 | K189: 72.48447583 | L189: 79.45636672 | M189: 86.11952371 | N189: 92.50207395 | O189: 98.62838757 | P189: 104.5197249 | Q189: 110.1947493 | R189: 115.6699377 | S189: 120.9599128 | T189: 126.0777144 | U189: 131.0350216 | V189: 135.8423382 | W189: 140.5091469
B190: y/x | C190: 0 | D190: 1 | E190: 2 | F190: 3 | G190: 4 | H190: 5 | I190: 6 | J190: 7 | K190: 8 | L190: 9 | M190: 10 | N190: 11 | O190: 12 | P190: 13 | Q190: 14 | R190: 15 | S190: 16 | T190: 17 | U190: 18 | V190: 19 | W190: 20
C191: Consumption of Good x
A193: Table 8 - An Indifference Map where x and y are Complementary Goods | AB193: To show Table 8, click Data, What-If Analysis, Scenario Manager, then choose JETTables8and9, Show, Close on the Base sheet.
B195: 20 | D195: =E195+(E195-F195) -> 85.61850049 | E195: =F195+(F195-G195) -> 120.3692832 | F195: 155.1200659 | G195: 189.8708486 | H195: 208.5827848 | I195: 221.9044543 | J195: 232.4066777 | K195: 241.1483167 | L195: 248.6758193 | M195: 255.3105565 | N195: 261.2585921 | O195: 266.6604718 | P195: 271.6166139 | Q195: 276.2014171 | R195: 280.4716324 | S195: 284.4715985 | T195: 288.2366571 | U195: 291.7954612 | V195: 295.1715838 | W195: 298.3846659
B196: 19 | D196: 84.1307122 | E196: 118.2776323 | F196: 152.4245525 | G196: 186.5714726 | H196: 204.9582524 | I196: 218.048432 | J196: 228.3681588 | K196: 236.9578948 | L196: 244.3545923 | M196: 250.8740381 | N196: 256.718715 | O196: 262.0267265 | P196: 266.896746 | Q196: 271.4018792 | R196: 275.5978913 | S196: 279.5283502 | T196: 283.2279835 | U196: 286.7249465 | V196: 290.0424023 | W196: 293.1996509
B197: 18 | D197: 82.57051458 | E197: 116.0841827 | F197: 149.5978508 | G197: 183.111519 | H197: 201.1573173 | I197: 214.0047405 | J197: 224.1330887 | K197: 232.5635287 | L197: 239.8230551 | M197: 246.2215982 | N197: 251.957886 | O197: 257.1674609 | P197: 261.9471662 | Q197: 266.3687521 | R197: 270.4869494 | S197: 274.3445183 | T197: 277.9755422 | U197: 281.4076543 | V197: 284.6635882 | W197: 287.7622858
B198: 17 | D198: 80.92890625 | E198: 113.7762794 | F198: 146.6236526 | G198: 179.4710258 | H198: 197.1580504 | I198: 209.7500503 | J198: 219.6770338 | K198: 227.9398658 | L198: 235.0550635 | M198: 241.3263953 | N198: 246.9486383 | O198: 252.0546401 | P198: 256.7393187 | Q198: 261.0729978 | R198: 265.10932 | S198: 268.8901954 | T198: 272.4490299 | U198: 275.8129071 | V198: 279.0041089 | W198: 282.0412004
B199: 16 | D199: 79.19497919 | E199: 111.3385872 | F199: 143.4821951 | G199: 175.6258031 | H199: 192.9338777 | I199: 205.25609 | J199: 214.9703849 | K199: 223.0561831 | L199: 230.0189354 | M199: 236.155902 | N199: 241.6576867 | O199: 246.6542908 | P199: 251.2385987 | Q199: 255.4794274 | R199: 259.4292702 | S199: 263.1291391 | T199: 266.6117244 | U199: 269.9035296 | V199: 273.0263588 | W199: 275.9983797
B200: 15 | D200: 77.35531959 | E200: 108.7522477 | F200: 140.1491758 | G200: 171.5461039 | H200: 188.4521206 | I200: 200.4880941 | J200: 209.9767308 | K200: 217.8747 | L200: 224.6757111 | M200: 230.670119 | N200: 236.0441 | O200: 240.9246355 | P200: 245.4024523 | Q200: 249.5447686 | R200: 253.4028585 | S200: 257.0167814 | T200: 260.4184679 | U200: 263.6338061 | V200: 266.6840936 | W200: 269.5870759
A201: Consumption of Good y | B201: 14 | D201: 75.39314765 | E201: 105.9936706 | F201: 136.5941936 | G201: 167.1947166 | H201: 183.6719004 | I201: 195.402573 | J201: 204.6505237 | K201: 212.3481554 | L201: 218.976654 | M201: 224.8190096 | N201: 230.0566758 | O201: 234.8134131 | P201: 239.1776469 | Q201: 243.2148905 | R201: 246.9751172 | S201: 250.4973704 | T201: 253.8127708 | U201: 256.9465497 | V201: 259.9194645 | W201: 262.7488106
B202: 13 | D202: 73.28704431 | E202: 103.0327434 | F202: 132.7784425 | G202: 162.5241416 | H202: 178.5410361 | I202: 189.9440131 | J202: 198.9336228 | K202: 206.4162216 | L202: 212.8595535 | M202: 218.5387032 | N202: 223.6300555 | O202: 228.2539136 | P202: 232.4962328 | Q202: 236.4206962 | R202: 240.0758812 | S202: 243.4997405 | T202: 246.7225253 | U202: 249.7687623 | V202: 252.6586289 | W202: 255.4089374
B203: 12 | D203: 71.00899701 | E203: 99.83008371 | F203: 128.6511704 | G203: 157.4722571 | H203: 172.9912841 | I203: 184.039812 | J203: 192.7499896 | K203: 200 | L203: 206.243048 | M203: 211.7456676 | N203: 216.6787608 | O203: 221.1588913 | P203: 225.2693427 | Q203: 229.0718185 | R203: 232.6133861 | S203: 235.9308184 | T203: 239.0534266 | U203: 242.0049746 | V203: 244.8050128 | W203: 247.469831
B204: 11 | D204: 68.52126599 | E204: 96.33263401 | F204: 124.144002 | G204: 151.95537 | H204: 166.930703 | I204: 177.5921565 | J204: 185.9971816 | K204: 192.9931949 | L204: 199.0175238 | M204: 204.3273645 | N204: 209.0876315 | O204: 213.4108051 | P204: 217.3772508 | Q204: 221.0465105 | R204: 224.4640028 | S204: 227.6652121 | T204: 230.6784227 | U204: 233.5265661 | V204: 236.2285078 | W204: 238.7999666
B205: 10 | D205: 65.77108001 | E205: 92.46620428 | F205: 119.1613285 | G205: 145.8564528 | H205: 160.2307322 | I205: 170.4642751 | J205: 178.531954 | K205: 185.2471737 | L205: 191.0297087 | M205: 196.1264323 | N205: 200.6956402 | O205: 204.8452978 | P205: 208.6525452 | Q205: 212.1745347 | R205: 215.4548616 | S205: 218.5275865 | T205: 221.4198581 | U205: 224.1536878 | V205: 226.7471836 | W205: 229.2154338
B206: 9 | D206: 62.68102018 | E206: 88.12195292 | F206: 113.5628857 | G206: 139.0038184 | H206: 152.7027648 | I206: 162.4555149 | J206: 170.1441577 | K206: 176.5438827 | L206: 182.0547423 | M206: 186.9120115 | N206: 191.2665486 | O206: 195.2212468 | P206: 198.849622 | Q206: 202.2061412 | R206: 205.3323517 | S206: 208.2607136 | T206: 211.0171004 | U206: 213.6224891 | V206: 216.0941373 | W206: 218.446424
B207: 8 | D207: 59.12993931 | E207: 83.1295616 | F207: 107.1291839 | G207: 131.1288062 | H207: 144.0516633 | I207: 153.2518888 | J207: 160.5049454 | K207: 166.5421054 | L207: 171.7407572 | M207: 176.3228464 | N207: 180.430685 | O207: 184.1613369 | P207: 187.584153 | Q207: 190.7505146 | R207: 193.6996153 | S207: 196.4620761 | T207: 199.0623048 | U207: 201.5200899 | V207: 203.8517112 | W207: 206.0707334
B208: 7 | D208: 54.91005721 | E208: 77.19691643 | F208: 99.48377565 | G208: 121.7706349 | H208: 133.7712361 | I208: 142.314876 | J208: 149.0503092 | K208: 154.6566196 | L208: 159.4842632 | M208: 163.7393459 | N208: 167.5540235 | O208: 171.0184327 | P208: 174.1969752 | Q208: 177.1373655 | R208: 179.8759999 | S208: 182.4413142 | T208: 184.8559743 | U208: 187.1383565 | V208: 189.3035788 | W208: 191.3642376
B209: 6 | D209: 49.61059818 | E209: 69.74651632 | F209: 89.88243447 | G209: 110.0183526 | H209: 120.8607563 | I209: 128.5798356 | J209: 134.6652211 | K209: 139.7304575 | L209: 144.0921772 | M209: 147.936595 | N209: 151.3831118 | O209: 154.5131653 | P209: 157.3849415 | Q209: 160.0415499 | R209: 162.5158742 | S209: 164.8336059 | T209: 167.0152233 | U209: 169.077329 | V209: 171.0335821 | W209: 172.8953635
B210: 5 | D210: 42.18123122 | E210: 59.30172262 | F210: 76.42221401 | G210: 93.54270541 | H210: 102.7614198 | I210: 109.324539 | J210: 114.498616 | K210: 118.8053148 | L210: 122.5138512 | M210: 125.7825535 | N210: 128.7129419 | O210: 131.3742585 | P210: 133.8159759 | Q210: 136.0747475 | R210: 138.1785328 | S210: 140.1491758 | T210: 142.004088 | U210: 143.7573859 | V210: 145.4206831 | W210: 147.0036559
B211: 4 | D211: 27.05225864 | E211: 38.03221223 | F211: 49.01216582 | G211: 59.99211941 | H211: 65.90439461 | I211: 70.11354623 | J211: 73.43185781 | K211: 76.19389029 | L211: 78.57230088 | M211: 80.66863084 | N211: 82.54798864 | O211: 84.25478152 | P211: 85.82073791 | Q211: 87.26936502 | R211: 88.61859409 | S211: 89.88243447 | T211: 91.07205279 | U211: 92.19650241 | V211: 93.26323145 | W211: 94.27844577
B212: 3 | D212: 18 | E212: 28 | F212: =(F211+F213)/2 -> 32.00608291 | G212: 38.99605971 | H212: 43.4521973 | I212: 47.05677311 | J212: 50.21592891 | K212: 53.09694515 | L212: 55.78615044 | M212: 58.33431542 | N212: 60.77399432 | O212: 63.12739076 | P212: 65.41036896 | Q212: 67.63468251 | R212: 69.80929704 | S212: 71.94121724 | T212: 74.03602639 | U212: 76.0982512 | V212: 78.13161573 | W212: =(W211+W213)/2 -> 80.13922289
B213: 2 | D213: 9 | E213: 12 | F213: 15 | G213: 18 | H213: 21 | I213: 24 | J213: 27 | K213: 30 | L213: 33 | M213: 36 | N213: 39 | O213: 42 | P213: 45 | Q213: 48 | R213: 51 | S213: 54 | T213: 57 | U213: 60 | V213: 63 | W213: 66
B214: 1 | D214: 1 | E214: 3 | F214: 5 | G214: 7 | H214: 9 | I214: 11 | J214: 13 | K214: 15 | L214: 17 | M214: 19 | N214: 21 | O214: 23 | P214: 25 | Q214: 27 | R214: 29 | S214: 31 | T214: 33 | U214: 35 | V214: 37 | W214: 39
B215: 0
B216: y/x | C216: 0 | D216: 1 | E216: 2 | F216: 3 | G216: 4 | H216: 5 | I216: 6 | J216: 7 | K216: 8 | L216: 9 | M216: 10 | N216: 11 | O216: 12 | P216: 13 | Q216: 14 | R216: 15 | S216: 16 | T216: 17 | U216: 18 | V216: 19 | W216: 20
... 26 more rows

Sheet Affordability
A1: 12 | B1: Income
A2: 0.5 | B2: Px | F2: Cost, C, of various bundles, C = Pxx + y given Py = 1:
D3: Affordable bundles for various values of Income and Px are highlighted
B5: 20 | C5: =$B5+C$26*$A$2 -> 20 | D5: =$B5+D$26*$A$2 -> 20.5 | E5: 21 | F5: 21.5 | G5: 22 | H5: 22.5 | I5: 23 | J5: 23.5 | K5: 24 | L5: 24.5 | M5: 25 | N5: 25.5 | O5: 26 | P5: 26.5 | Q5: 27 | R5: 27.5 | S5: 28 | T5: 28.5 | U5: 29 | V5: 29.5 | W5: 30
B6: 19 | C6: 19 | D6: 19.5 | E6: 20 | F6: 20.5 | G6: 21 | H6: 21.5 | I6: 22 | J6: 22.5 | K6: 23 | L6: 23.5 | M6: 24 | N6: 24.5 | O6: 25 | P6: 25.5 | Q6: 26 | R6: 26.5 | S6: 27 | T6: 27.5 | U6: 28 | V6: 28.5 | W6: 29
B7: 18 | C7: 18 | D7: 18.5 | E7: 19 | F7: 19.5 | G7: 20 | H7: 20.5 | I7: 21 | J7: 21.5 | K7: 22 | L7: 22.5 | M7: 23 | N7: 23.5 | O7: 24 | P7: 24.5 | Q7: 25 | R7: 25.5 | S7: 26 | T7: 26.5 | U7: 27 | V7: 27.5 | W7: 28
B8: 17 | C8: 17 | D8: 17.5 | E8: 18 | F8: 18.5 | G8: 19 | H8: 19.5 | I8: 20 | J8: 20.5 | K8: 21 | L8: 21.5 | M8: 22 | N8: 22.5 | O8: 23 | P8: 23.5 | Q8: 24 | R8: 24.5 | S8: 25 | T8: 25.5 | U8: 26 | V8: 26.5 | W8: 27
B9: 16 | C9: 16 | D9: 16.5 | E9: 17 | F9: 17.5 | G9: 18 | H9: 18.5 | I9: 19 | J9: 19.5 | K9: 20 | L9: 20.5 | M9: 21 | N9: 21.5 | O9: 22 | P9: 22.5 | Q9: 23 | R9: 23.5 | S9: 24 | T9: 24.5 | U9: 25 | V9: 25.5 | W9: 26
B10: 15 | C10: 15 | D10: 15.5 | E10: 16 | F10: 16.5 | G10: 17 | H10: 17.5 | I10: 18 | J10: 18.5 | K10: 19 | L10: 19.5 | M10: 20 | N10: 20.5 | O10: 21 | P10: 21.5 | Q10: 22 | R10: 22.5 | S10: 23 | T10: 23.5 | U10: 24 | V10: 24.5 | W10: 25
A11: Consumption of Good y | B11: 14 | C11: 14 | D11: 14.5 | E11: 15 | F11: 15.5 | G11: 16 | H11: 16.5 | I11: 17 | J11: 17.5 | K11: 18 | L11: 18.5 | M11: 19 | N11: 19.5 | O11: 20 | P11: 20.5 | Q11: 21 | R11: 21.5 | S11: 22 | T11: 22.5 | U11: 23 | V11: 23.5 | W11: 24
B12: 13 | C12: 13 | D12: 13.5 | E12: 14 | F12: 14.5 | G12: 15 | H12: 15.5 | I12: 16 | J12: 16.5 | K12: 17 | L12: 17.5 | M12: 18 | N12: 18.5 | O12: 19 | P12: 19.5 | Q12: 20 | R12: 20.5 | S12: 21 | T12: 21.5 | U12: 22 | V12: 22.5 | W12: 23
B13: 12 | C13: 12 | D13: 12.5 | E13: 13 | F13: 13.5 | G13: 14 | H13: 14.5 | I13: 15 | J13: 15.5 | K13: 16 | L13: 16.5 | M13: 17 | N13: 17.5 | O13: 18 | P13: 18.5 | Q13: 19 | R13: 19.5 | S13: 20 | T13: 20.5 | U13: 21 | V13: 21.5 | W13: 22
B14: 11 | C14: 11 | D14: 11.5 | E14: 12 | F14: 12.5 | G14: 13 | H14: 13.5 | I14: 14 | J14: 14.5 | K14: 15 | L14: 15.5 | M14: 16 | N14: 16.5 | O14: 17 | P14: 17.5 | Q14: 18 | R14: 18.5 | S14: 19 | T14: 19.5 | U14: 20 | V14: 20.5 | W14: 21
B15: 10 | C15: 10 | D15: 10.5 | E15: 11 | F15: 11.5 | G15: 12 | H15: 12.5 | I15: 13 | J15: 13.5 | K15: 14 | L15: 14.5 | M15: 15 | N15: 15.5 | O15: 16 | P15: 16.5 | Q15: 17 | R15: 17.5 | S15: 18 | T15: 18.5 | U15: 19 | V15: 19.5 | W15: 20
B16: 9 | C16: 9 | D16: 9.5 | E16: 10 | F16: 10.5 | G16: 11 | H16: 11.5 | I16: 12 | J16: 12.5 | K16: 13 | L16: 13.5 | M16: 14 | N16: 14.5 | O16: 15 | P16: 15.5 | Q16: 16 | R16: 16.5 | S16: 17 | T16: 17.5 | U16: 18 | V16: 18.5 | W16: 19
B17: 8 | C17: 8 | D17: 8.5 | E17: 9 | F17: 9.5 | G17: 10 | H17: 10.5 | I17: 11 | J17: 11.5 | K17: 12 | L17: 12.5 | M17: 13 | N17: 13.5 | O17: 14 | P17: 14.5 | Q17: 15 | R17: 15.5 | S17: =$B17+S$26*$A$2 -> 16 | T17: 16.5 | U17: 17 | V17: 17.5 | W17: 18
B18: 7 | C18: 7 | D18: =$B18+D$26*$A$2 -> 7.5 | E18: 8 | F18: 8.5 | G18: 9 | H18: 9.5 | I18: 10 | J18: 10.5 | K18: 11 | L18: 11.5 | M18: 12 | N18: 12.5 | O18: 13 | P18: 13.5 | Q18: 14 | R18: 14.5 | S18: 15 | T18: 15.5 | U18: 16 | V18: 16.5 | W18: 17
B19: 6 | C19: 6 | D19: 6.5 | E19: 7 | F19: 7.5 | G19: 8 | H19: 8.5 | I19: 9 | J19: 9.5 | K19: 10 | L19: 10.5 | M19: 11 | N19: 11.5 | O19: 12 | P19: 12.5 | Q19: 13 | R19: 13.5 | S19: 14 | T19: 14.5 | U19: 15 | V19: 15.5 | W19: 16
B20: 5 | C20: 5 | D20: 5.5 | E20: 6 | F20: 6.5 | G20: 7 | H20: 7.5 | I20: 8 | J20: 8.5 | K20: 9 | L20: 9.5 | M20: 10 | N20: 10.5 | O20: 11 | P20: 11.5 | Q20: 12 | R20: 12.5 | S20: 13 | T20: 13.5 | U20: 14 | V20: 14.5 | W20: 15
B21: 4 | C21: 4 | D21: 4.5 | E21: 5 | F21: 5.5 | G21: 6 | H21: 6.5 | I21: 7 | J21: 7.5 | K21: 8 | L21: 8.5 | M21: 9 | N21: 9.5 | O21: 10 | P21: 10.5 | Q21: 11 | R21: 11.5 | S21: 12 | T21: 12.5 | U21: 13 | V21: 13.5 | W21: 14
B22: 3 | C22: 3 | D22: 3.5 | E22: 4 | F22: 4.5 | G22: 5 | H22: 5.5 | I22: 6 | J22: 6.5 | K22: 7 | L22: 7.5 | M22: 8 | N22: 8.5 | O22: 9 | P22: 9.5 | Q22: 10 | R22: 10.5 | S22: 11 | T22: 11.5 | U22: 12 | V22: 12.5 | W22: 13
B23: 2 | C23: 2 | D23: 2.5 | E23: 3 | F23: 3.5 | G23: 4 | H23: 4.5 | I23: 5 | J23: 5.5 | K23: 6 | L23: 6.5 | M23: 7 | N23: 7.5 | O23: 8 | P23: 8.5 | Q23: 9 | R23: 9.5 | S23: 10 | T23: 10.5 | U23: 11 | V23: 11.5 | W23: 12
B24: 1 | C24: 1 | D24: 1.5 | E24: 2 | F24: 2.5 | G24: 3 | H24: 3.5 | I24: 4 | J24: 4.5 | K24: 5 | L24: 5.5 | M24: 6 | N24: 6.5 | O24: 7 | P24: 7.5 | Q24: 8 | R24: 8.5 | S24: 9 | T24: 9.5 | U24: 10 | V24: 10.5 | W24: 11
B25: 0 | C25: 0 | D25: 0.5 | E25: 1 | F25: 1.5 | G25: 2 | H25: 2.5 | I25: 3 | J25: 3.5 | K25: 4 | L25: 4.5 | M25: 5 | N25: 5.5 | O25: 6 | P25: 6.5 | Q25: 7 | R25: 7.5 | S25: 8 | T25: 8.5 | U25: 9 | V25: 9.5 | W25: 10
B26: y/x | C26: 0 | D26: 1 | E26: 2 | F26: 3 | G26: 4 | H26: 5 | I26: 6 | J26: 7 | K26: 8 | L26: 9 | M26: 10 | N26: 11 | O26: 12 | P26: 13 | Q26: 14 | R26: 15 | S26: 16 | T26: 17 | U26: 18 | V26: 19 | W26: 20
J27: Consumption of Good x
A28: This is the other side of the consumer choice problem, it examines the question: What can you afford? Make sure you understand that the numbers here are NOT utility levels, they represent the cost of various bundles. Dollar signs have been suppressed to save space.

Sheet Figure 1
A1: Figure 1 - A Continuous Indifference Map Based on Table 1, with U(x, y) = x∙y, and Table 2, with V(x, y) = 10∙(x∙y)0.5, through x = y = n bundles for n = 4, 5, 6, 7, and 8
A9: Consumption of Good y
J15: Indifference curve utility levels
J19: U | K19: V
J20: x∙y a(xy)b
J21: =IF($C$47,O48," ") -> 
D27: Consumption of Good y
B29: Parameters for the utility function | J29: Show values
B30: U(x,y)=a(xy)b | E30: =D43 -> 10 | H30: Note: JET Figure 1, sets a = 10 and b = 0.50
E31: =D44 -> 0.5
B32: To drive home the point, click Show values and then vary a and b using the sliders. Note nothing happens to the indifference curves, only the values of V change.
C43: a = | D43: =B45/100 -> 10
C44: b = | D44: =B46/100 -> 0.5
B45: 1000 | C45: a slider | E45: shifted CD
B46: 50 | C46: a slider | E46: b is currently tied to a (separate by creating a second slider for b
B47: FALSE | C47: =IF(B47,1,0) -> 0 | D47: utility | E47: note: this was started from worksheet for diagram 9, X and Y are reversed in the diagram, this will cause problems once a and be are untied.
D48: 16 | F48: 25 | H48: 36 | K48: 49 | M48: 64 | N48: 8 | O48: =N48^2 -> 64 | P48: =$D$43*O48^$D$44 -> 80
C49: 0.1 | D49: =D$48/C49 -> 160 | E49: =C49 -> 0.1 | F49: =F$48/E49 -> 250 | G49: =C49 -> 0.1 | H49: =H$48/G49 -> 360 | J49: =C49 -> 0.1 | K49: =K$48/J49 -> 490 | L49: =C49 -> 0.1 | M49: =M$48/L49 -> 640 | N49: 7 | O49: =N49^2 -> 49 | P49: =$D$43*O49^$D$44 -> 70
C50: =C49+0.1 -> 0.2 | D50: 80 | E50: 0.2 | F50: 125 | G50: 0.2 | H50: 180 | J50: 0.2 | K50: 245 | L50: 0.2 | M50: 320 | N50: 6 | O50: =N50^2 -> 36 | P50: =$D$43*O50^$D$44 -> 60
C51: 0.3 | D51: 53.33333333 | E51: 0.3 | F51: 83.33333333 | G51: 0.3 | H51: 120 | J51: 0.3 | K51: 163.3333333 | L51: 0.3 | M51: 213.3333333 | N51: 5 | O51: =N51^2 -> 25 | P51: =$D$43*O51^$D$44 -> 50
C52: 0.4 | D52: 40 | E52: 0.4 | F52: 62.5 | G52: 0.4 | H52: 90 | J52: 0.4 | K52: 122.5 | L52: 0.4 | M52: 160 | N52: 4 | O52: =N52^2 -> 16 | P52: =$D$43*O52^$D$44 -> 40
C53: 0.5 | D53: 32 | E53: 0.5 | F53: 50 | G53: 0.5 | H53: 72 | J53: 0.5 | K53: 98 | L53: 0.5 | M53: 128
C54: 0.6 | D54: 26.66666667 | E54: 0.6 | F54: 41.66666667 | G54: 0.6 | H54: 60 | J54: 0.6 | K54: 81.66666667 | L54: 0.6 | M54: 106.6666667
C55: 0.7 | D55: 22.85714286 | E55: 0.7 | F55: 35.71428571 | G55: 0.7 | H55: 51.42857143 | J55: 0.7 | K55: 70 | L55: 0.7 | M55: 91.42857143
C56: 0.8 | D56: 20 | E56: 0.8 | F56: 31.25 | G56: 0.8 | H56: 45 | J56: 0.8 | K56: 61.25 | L56: 0.8 | M56: 80
C57: 0.9 | D57: 17.77777778 | E57: 0.9 | F57: 27.77777778 | G57: 0.9 | H57: 40 | J57: 0.9 | K57: 54.44444444 | L57: 0.9 | M57: 71.11111111
C58: 1 | D58: 16 | E58: 1 | F58: 25 | G58: 1 | H58: 36 | J58: 1 | K58: 49 | L58: 1 | M58: 64
C59: 1.1 | D59: 14.54545455 | E59: 1.1 | F59: 22.72727273 | G59: 1.1 | H59: 32.72727273 | J59: 1.1 | K59: 44.54545455 | L59: 1.1 | M59: 58.18181818
C60: 1.2 | D60: 13.33333333 | E60: 1.2 | F60: 20.83333333 | G60: 1.2 | H60: 30 | J60: 1.2 | K60: 40.83333333 | L60: 1.2 | M60: 53.33333333
C61: 1.3 | D61: 12.30769231 | E61: 1.3 | F61: 19.23076923 | G61: 1.3 | H61: 27.69230769 | J61: 1.3 | K61: 37.69230769 | L61: 1.3 | M61: 49.23076923
C62: 1.4 | D62: 11.42857143 | E62: 1.4 | F62: 17.85714286 | G62: 1.4 | H62: 25.71428571 | J62: 1.4 | K62: 35 | L62: 1.4 | M62: 45.71428571
C63: 1.5 | D63: 10.66666667 | E63: 1.5 | F63: 16.66666667 | G63: 1.5 | H63: 24 | J63: 1.5 | K63: 32.66666667 | L63: 1.5 | M63: 42.66666667
C64: 1.6 | D64: 10 | E64: 1.6 | F64: 15.625 | G64: 1.6 | H64: 22.5 | J64: 1.6 | K64: 30.625 | L64: 1.6 | M64: 40
C65: 1.7 | D65: 9.411764706 | E65: 1.7 | F65: 14.70588235 | G65: 1.7 | H65: 21.17647059 | J65: 1.7 | K65: 28.82352941 | L65: 1.7 | M65: 37.64705882
C66: 1.8 | D66: 8.888888889 | E66: 1.8 | F66: 13.88888889 | G66: 1.8 | H66: 20 | J66: 1.8 | K66: 27.22222222 | L66: 1.8 | M66: 35.55555556
C67: 1.9 | D67: 8.421052632 | E67: 1.9 | F67: 13.15789474 | G67: 1.9 | H67: 18.94736842 | J67: 1.9 | K67: 25.78947368 | L67: 1.9 | M67: 33.68421053
C68: 2 | D68: 8 | E68: 2 | F68: 12.5 | G68: 2 | H68: 18 | J68: 2 | K68: 24.5 | L68: 2 | M68: 32
C69: 2.1 | D69: 7.619047619 | E69: 2.1 | F69: 11.9047619 | G69: 2.1 | H69: 17.14285714 | J69: 2.1 | K69: 23.33333333 | L69: 2.1 | M69: 30.47619048
C70: 2.2 | D70: 7.272727273 | E70: 2.2 | F70: 11.36363636 | G70: 2.2 | H70: 16.36363636 | J70: 2.2 | K70: 22.27272727 | L70: 2.2 | M70: 29.09090909
C71: 2.3 | D71: 6.956521739 | E71: 2.3 | F71: 10.86956522 | G71: 2.3 | H71: 15.65217391 | J71: 2.3 | K71: 21.30434783 | L71: 2.3 | M71: 27.82608696
C72: 2.4 | D72: 6.666666667 | E72: 2.4 | F72: 10.41666667 | G72: 2.4 | H72: 15 | J72: 2.4 | K72: 20.41666667 | L72: 2.4 | M72: 26.66666667
C73: 2.5 | D73: 6.4 | E73: 2.5 | F73: 10 | G73: 2.5 | H73: 14.4 | J73: 2.5 | K73: 19.6 | L73: 2.5 | M73: 25.6
C74: 2.6 | D74: 6.153846154 | E74: 2.6 | F74: 9.615384615 | G74: 2.6 | H74: 13.84615385 | J74: 2.6 | K74: 18.84615385 | L74: 2.6 | M74: 24.61538462
C75: 2.7 | D75: 5.925925926 | E75: 2.7 | F75: 9.259259259 | G75: 2.7 | H75: 13.33333333 | J75: 2.7 | K75: 18.14814815 | L75: 2.7 | M75: 23.7037037
C76: 2.8 | D76: 5.714285714 | E76: 2.8 | F76: 8.928571429 | G76: 2.8 | H76: 12.85714286 | J76: 2.8 | K76: 17.5 | L76: 2.8 | M76: 22.85714286
C77: 2.9 | D77: 5.517241379 | E77: 2.9 | F77: 8.620689655 | G77: 2.9 | H77: 12.4137931 | J77: 2.9 | K77: 16.89655172 | L77: 2.9 | M77: 22.06896552
C78: 3 | D78: 5.333333333 | E78: 3 | F78: 8.333333333 | G78: 3 | H78: 12 | J78: 3 | K78: 16.33333333 | L78: 3 | M78: 21.33333333
C79: 3.1 | D79: 5.161290323 | E79: 3.1 | F79: 8.064516129 | G79: 3.1 | H79: 11.61290323 | J79: 3.1 | K79: 15.80645161 | L79: 3.1 | M79: 20.64516129
C80: 3.2 | D80: 5 | E80: 3.2 | F80: 7.8125 | G80: 3.2 | H80: 11.25 | J80: 3.2 | K80: 15.3125 | L80: 3.2 | M80: 20
C81: 3.3 | D81: =D$48/C81 -> 4.848484848 | E81: =C81 -> 3.3 | F81: =F$48/E81 -> 7.575757576 | G81: =C81 -> 3.3 | H81: =H$48/G81 -> 10.90909091 | J81: =C81 -> 3.3 | K81: =K$48/J81 -> 14.84848485 | L81: =C81 -> 3.3 | M81: =M$48/L81 -> 19.39393939
C82: 3.4 | D82: 4.705882353 | E82: 3.4 | F82: 7.352941176 | G82: 3.4 | H82: 10.58823529 | J82: 3.4 | K82: 14.41176471 | L82: 3.4 | M82: 18.82352941
C83: 3.5 | D83: 4.571428571 | E83: 3.5 | F83: 7.142857143 | G83: 3.5 | H83: 10.28571429 | J83: 3.5 | K83: 14 | L83: 3.5 | M83: 18.28571429
C84: 3.6 | D84: 4.444444444 | E84: 3.6 | F84: 6.944444444 | G84: 3.6 | H84: 10 | J84: 3.6 | K84: 13.61111111 | L84: 3.6 | M84: 17.77777778
C85: 3.7 | D85: 4.324324324 | E85: 3.7 | F85: 6.756756757 | G85: 3.7 | H85: 9.72972973 | J85: 3.7 | K85: 13.24324324 | L85: 3.7 | M85: 17.2972973
C86: 3.8 | D86: 4.210526316 | E86: 3.8 | F86: 6.578947368 | G86: 3.8 | H86: 9.473684211 | J86: 3.8 | K86: 12.89473684 | L86: 3.8 | M86: 16.84210526
C87: 3.9 | D87: 4.102564103 | E87: 3.9 | F87: 6.41025641 | G87: 3.9 | H87: 9.230769231 | J87: 3.9 | K87: 12.56410256 | L87: 3.9 | M87: 16.41025641
C88: 4 | D88: 4 | E88: 4 | F88: 6.25 | G88: 4 | H88: 9 | J88: 4 | K88: 12.25 | L88: 4 | M88: 16
C89: 4.1 | D89: 3.902439024 | E89: 4.1 | F89: 6.097560976 | G89: 4.1 | H89: 8.780487805 | J89: 4.1 | K89: 11.95121951 | L89: 4.1 | M89: 15.6097561
C90: 4.2 | D90: 3.80952381 | E90: 4.2 | F90: 5.952380952 | G90: 4.2 | H90: 8.571428571 | J90: 4.2 | K90: 11.66666667 | L90: 4.2 | M90: 15.23809524
C91: 4.3 | D91: 3.720930233 | E91: 4.3 | F91: 5.813953488 | G91: 4.3 | H91: 8.372093023 | J91: 4.3 | K91: 11.39534884 | L91: 4.3 | M91: 14.88372093
C92: 4.4 | D92: 3.636363636 | E92: 4.4 | F92: 5.681818182 | G92: 4.4 | H92: 8.181818182 | J92: 4.4 | K92: 11.13636364 | L92: 4.4 | M92: 14.54545455
C93: 4.5 | D93: 3.555555556 | E93: 4.5 | F93: 5.555555556 | G93: 4.5 | H93: 8 | J93: 4.5 | K93: 10.88888889 | L93: 4.5 | M93: 14.22222222
C94: 4.6 | D94: 3.47826087 | E94: 4.6 | F94: 5.434782609 | G94: 4.6 | H94: 7.826086957 | J94: 4.6 | K94: 10.65217391 | L94: 4.6 | M94: 13.91304348
C95: 4.7 | D95: 3.404255319 | E95: 4.7 | F95: 5.319148936 | G95: 4.7 | H95: 7.659574468 | J95: 4.7 | K95: 10.42553191 | L95: 4.7 | M95: 13.61702128
C96: 4.8 | D96: 3.333333333 | E96: 4.8 | F96: 5.208333333 | G96: 4.8 | H96: 7.5 | J96: 4.8 | K96: 10.20833333 | L96: 4.8 | M96: 13.33333333
C97: 5 | D97: 3.2 | E97: 5 | F97: 5 | G97: 5 | H97: 7.2 | J97: 5 | K97: 9.8 | L97: 5 | M97: 12.8
C98: 5.75 | D98: 2.782608696 | E98: 5.75 | F98: 4.347826087 | G98: 5.75 | H98: 6.260869565 | J98: 5.75 | K98: 8.52173913 | L98: 5.75 | M98: 11.13043478
C99: 6.5 | D99: 2.461538462 | E99: 6.5 | F99: 3.846153846 | G99: 6.5 | H99: 5.538461538 | J99: 6.5 | K99: 7.538461538 | L99: 6.5 | M99: 9.846153846
C100: 7.25 | D100: 2.206896552 | E100: 7.25 | F100: 3.448275862 | G100: 7.25 | H100: 4.965517241 | J100: 7.25 | K100: 6.75862069 | L100: 7.25 | M100: 8.827586207
C101: 8.5 | D101: 1.882352941 | E101: 8.5 | F101: 2.941176471 | G101: 8.5 | H101: 4.235294118 | J101: 8.5 | K101: 5.764705882 | L101: 8.5 | M101: 7.529411765
C102: 9 | D102: 1.777777778 | E102: 9 | F102: 2.777777778 | G102: 9 | H102: 4 | J102: 9 | K102: 5.444444444 | L102: 9 | M102: 7.111111111
C103: 9.5 | D103: 1.684210526 | E103: 9.5 | F103: 2.631578947 | G103: 9.5 | H103: 3.789473684 | J103: 9.5 | K103: 5.157894737 | L103: 9.5 | M103: 6.736842105
C104: 10 | D104: 1.6 | E104: 10 | F104: 2.5 | G104: 10 | H104: 3.6 | J104: 10 | K104: 4.9 | L104: 10 | M104: 6.4
C105: 10.5 | D105: 1.523809524 | E105: 10.5 | F105: 2.380952381 | G105: 10.5 | H105: 3.428571429 | J105: 10.5 | K105: 4.666666667 | L105: 10.5 | M105: 6.095238095
C106: 11 | D106: 1.454545455 | E106: 11 | F106: 2.272727273 | G106: 11 | H106: 3.272727273 | J106: 11 | K106: 4.454545455 | L106: 11 | M106: 5.818181818
C107: 11.5 | D107: 1.391304348 | E107: 11.5 | F107: 2.173913043 | G107: 11.5 | H107: 3.130434783 | J107: 11.5 | K107: 4.260869565 | L107: 11.5 | M107: 5.565217391
C108: 12 | D108: 1.333333333 | E108: 12 | F108: 2.083333333 | G108: 12 | H108: 3 | J108: 12 | K108: 4.083333333 | L108: 12 | M108: 5.333333333
C109: 12.5 | D109: 1.28 | E109: 12.5 | F109: 2 | G109: 12.5 | H109: 2.88 | J109: 12.5 | K109: 3.92 | L109: 12.5 | M109: 5.12
C110: 13 | D110: 1.230769231 | E110: 13 | F110: 1.923076923 | G110: 13 | H110: 2.769230769 | J110: 13 | K110: 3.769230769 | L110: 13 | M110: 4.923076923
C111: 13.5 | D111: 1.185185185 | E111: 13.5 | F111: 1.851851852 | G111: 13.5 | H111: 2.666666667 | J111: 13.5 | K111: 3.62962963 | L111: 13.5 | M111: 4.740740741
C112: 14 | D112: 1.142857143 | E112: 14 | F112: 1.785714286 | G112: 14 | H112: 2.571428571 | J112: 14 | K112: 3.5 | L112: 14 | M112: 4.571428571
C113: 14.5 | D113: =D$48/C113 -> 1.103448276 | E113: =C113 -> 14.5 | F113: =F$48/E113 -> 1.724137931 | G113: =C113 -> 14.5 | H113: =H$48/G113 -> 2.482758621 | J113: =C113 -> 14.5 | K113: =K$48/J113 -> 3.379310345 | L113: =C113 -> 14.5 | M113: =M$48/L113 -> 4.413793103
C114: 15 | D114: 1.066666667 | E114: 15 | F114: 1.666666667 | G114: 15 | H114: 2.4 | J114: 15 | K114: 3.266666667 | L114: 15 | M114: 4.266666667
C115: 15.5 | D115: 1.032258065 | E115: 15.5 | F115: 1.612903226 | G115: 15.5 | H115: 2.322580645 | J115: 15.5 | K115: 3.161290323 | L115: 15.5 | M115: 4.129032258
C116: 16 | D116: 1 | E116: 16 | F116: 1.5625 | G116: 16 | H116: 2.25 | J116: 16 | K116: 3.0625 | L116: 16 | M116: 4
C117: 16.5 | D117: 0.9696969697 | E117: 16.5 | F117: 1.515151515 | G117: 16.5 | H117: 2.181818182 | J117: 16.5 | K117: 2.96969697 | L117: 16.5 | M117: 3.878787879
C118: 17 | D118: 0.9411764706 | E118: 17 | F118: 1.470588235 | G118: 17 | H118: 2.117647059 | J118: 17 | K118: 2.882352941 | L118: 17 | M118: 3.764705882
C119: 17.5 | D119: 0.9142857143 | E119: 17.5 | F119: 1.428571429 | G119: 17.5 | H119: 2.057142857 | J119: 17.5 | K119: 2.8 | L119: 17.5 | M119: 3.657142857
C120: 18 | D120: 0.8888888889 | E120: 18 | F120: 1.388888889 | G120: 18 | H120: 2 | J120: 18 | K120: 2.722222222 | L120: 18 | M120: 3.555555556
C121: 18.5 | D121: 0.8648648649 | E121: 18.5 | F121: 1.351351351 | G121: 18.5 | H121: 1.945945946 | J121: 18.5 | K121: 2.648648649 | L121: 18.5 | M121: 3.459459459
C122: 19 | D122: 0.8421052632 | E122: 19 | F122: 1.315789474 | G122: 19 | H122: 1.894736842 | J122: 19 | K122: 2.578947368 | L122: 19 | M122: 3.368421053
C123: 19.5 | D123: 0.8205128205 | E123: 19.5 | F123: 1.282051282 | G123: 19.5 | H123: 1.846153846 | J123: 19.5 | K123: 2.512820513 | L123: 19.5 | M123: 3.282051282
C124: 20 | D124: 0.8 | E124: 20 | F124: 1.25 | G124: 20 | H124: 1.8 | J124: 20 | K124: 2.45 | L124: 20 | M124: 3.2
